{"text_format":"1","workbook":"xlsx","n_sheets":6,"sheets":["DICTADOS","rev aut","rev manual","D","CARTONES","cartones jugados"],"not_rendered":{"charts":0,"images":0,"macros":1,"external_links":0,"defined_names":1,"comments":0,"pivot_tables":0},"unopened":[],"bounds":{"document_bytes":16777216,"sheet_cells":100000,"rows_first":2000,"rows_last":500,"rows_between":2000,"halvings":0,"cell_chars":16384,"cell_head_chars":4096},"cells_cut":0,"cells_raw":0,"read":"whole","date_system":"1900"}

{"sheet":"DICTADOS","index":0,"n_rows":175,"n_cols":18,"rows_kept":175,"cut":false,"hidden":false,"merged":[[0,6,0,10],[13,6,15,6],[13,7,15,7],[13,8,15,8],[13,9,15,9],[13,10,15,10],[1,9,3,9],[1,10,3,10],[4,6,6,6],[4,7,6,7],[4,8,6,8],[4,9,6,9],[4,10,6,10],[0,11,0,14],[1,11,6,11],[10,6,12,6],[10,7,12,7],[10,8,12,8],[10,9,12,9],[10,10,12,10],[1,12,6,14],[7,6,9,6],[7,7,9,7],[7,8,9,8],[7,9,9,9],[7,10,9,10],[1,6,3,6],[1,7,3,7],[1,8,3,8]]}
["B","I","N","G","O",null,"JUEGO",null,null,null,null,"NUMERO"]
[1,{"$f":"+A16+1","v":16},{"$f":"+B16+1","v":31},46,61,null,"x","x","x","x","x",{"$f":"IF((AND(M2>0,M2<16))=TRUE,\"B\",IF((AND(M2>15,M2<31))=TRUE,\"I\",IF((AND(M2>30,M2<46))=TRUE,\"N\",IF((AND(M2>45,M2<61))=TRUE,\"G\",\"O\"))))","v":"O"},{"$f":"VLOOKUP((RANDBETWEEN((MIN(Q:Q)),(MAX(Q:Q)))),Q:R,2,0)","v":61}]
[2,{"$f":"+B2+1","v":17},{"$f":"+C2+1","v":32},47,62]
[3,{"$f":"+B3+1","v":18},33,48,63]
[4,19,34,49,64,null,"x","x","x","x","x"]
[5,20,35,50,65]
[6,21,36,51,66]
[7,22,37,52,67,null,"x","x","NULO","x","x",null,null,null,"TOMBOLA"]
[8,23,38,53,68,null,null,null,null,null,null," "]
[9,24,39,54,69,null,null,null,null,null,null,null," ",null," "]
[10,25,40,55,70,null,"x","x","x","x","x",null," "]
[11,26,41,56,71]
[12,27,42,57,72,null,null,null,null,null,null,null,"   "]
[13,28,43,58,73,null,"x","x","x","x","x"]
[14,29,44,59,74]
[15,30,45,60,75]
[]
[null,null,"ORDEN","NUMERO"]
[3,null,{"$f":"IF((COUNTIF($A$19:$A$93,D19))>0,0,1)","v":1},1,null,null,null,null,null,null,null,"Cartones Jugados"]
[13,null,{"$f":"IF((COUNTIF($A$19:$A$93,D20))>0,0,(MAX($C$18:C19)+1))","v":2},2]
[11,null,{"$f":"IF((COUNTIF($A$19:$A$93,D21))>0,0,(MAX($C$18:C20)+1))","v":0},3]
[5,null,{"$f":"IF((COUNTIF($A$19:$A$93,D22))>0,0,(MAX($C$18:C21)+1))","v":0},4]
[4,null,{"$f":"IF((COUNTIF($A$19:$A$93,D23))>0,0,(MAX($C$18:C22)+1))","v":0},5]
[21,null,{"$f":"IF((COUNTIF($A$19:$A$93,D24))>0,0,(MAX($C$18:C23)+1))","v":3},6]
[22,null,{"$f":"IF((COUNTIF($A$19:$A$93,D25))>0,0,(MAX($C$18:C24)+1))","v":4},7]
[17,null,{"$f":"IF((COUNTIF($A$19:$A$93,D26))>0,0,(MAX($C$18:C25)+1))","v":5},8]
[29,null,{"$f":"IF((COUNTIF($A$19:$A$93,D27))>0,0,(MAX($C$18:C26)+1))","v":6},9]
[20,null,{"$f":"IF((COUNTIF($A$19:$A$93,D28))>0,0,(MAX($C$18:C27)+1))","v":7},10]
[31,null,{"$f":"IF((COUNTIF($A$19:$A$93,D29))>0,0,(MAX($C$18:C28)+1))","v":0},11]
[32,null,{"$f":"IF((COUNTIF($A$19:$A$93,D30))>0,0,(MAX($C$18:C29)+1))","v":8},12]
[41,null,{"$f":"IF((COUNTIF($A$19:$A$93,D31))>0,0,(MAX($C$18:C30)+1))","v":0},13]
[35,null,{"$f":"IF((COUNTIF($A$19:$A$93,D32))>0,0,(MAX($C$18:C31)+1))","v":9},14]
[59,null,{"$f":"IF((COUNTIF($A$19:$A$93,D33))>0,0,(MAX($C$18:C32)+1))","v":10},15]
[46,null,{"$f":"IF((COUNTIF($A$19:$A$93,D34))>0,0,(MAX($C$18:C33)+1))","v":11},16]
[48,null,{"$f":"IF((COUNTIF($A$19:$A$93,D35))>0,0,(MAX($C$18:C34)+1))","v":0},17]
[54,null,{"$f":"IF((COUNTIF($A$19:$A$93,D36))>0,0,(MAX($C$18:C35)+1))","v":12},18]
[47,null,{"$f":"IF((COUNTIF($A$19:$A$93,D37))>0,0,(MAX($C$18:C36)+1))","v":13},19]
[71,null,{"$f":"IF((COUNTIF($A$19:$A$93,D38))>0,0,(MAX($C$18:C37)+1))","v":0},20]
[72,null,{"$f":"IF((COUNTIF($A$19:$A$93,D39))>0,0,(MAX($C$18:C38)+1))","v":0},21]
[73,null,{"$f":"IF((COUNTIF($A$19:$A$93,D40))>0,0,(MAX($C$18:C39)+1))","v":0},22]
[68,null,{"$f":"IF((COUNTIF($A$19:$A$93,D41))>0,0,(MAX($C$18:C40)+1))","v":14},23]
[75,null,{"$f":"IF((COUNTIF($A$19:$A$93,D42))>0,0,(MAX($C$18:C41)+1))","v":15},24]
[null,null,{"$f":"IF((COUNTIF($A$19:$A$93,D43))>0,0,(MAX($C$18:C42)+1))","v":16},25]
[null,null,{"$f":"IF((COUNTIF($A$19:$A$93,D44))>0,0,(MAX($C$18:C43)+1))","v":17},26]
[null,null,{"$f":"IF((COUNTIF($A$19:$A$93,D45))>0,0,(MAX($C$18:C44)+1))","v":18},27]
[null,null,{"$f":"IF((COUNTIF($A$19:$A$93,D46))>0,0,(MAX($C$18:C45)+1))","v":19},28]
[null,null,{"$f":"IF((COUNTIF($A$19:$A$93,D47))>0,0,(MAX($C$18:C46)+1))","v":0},29]
[null,null,{"$f":"IF((COUNTIF($A$19:$A$93,D48))>0,0,(MAX($C$18:C47)+1))","v":20},30]
[null,null,{"$f":"IF((COUNTIF($A$19:$A$93,D49))>0,0,(MAX($C$18:C48)+1))","v":0},31]
[null,null,{"$f":"IF((COUNTIF($A$19:$A$93,D50))>0,0,(MAX($C$18:C49)+1))","v":0},32]
[null,null,{"$f":"IF((COUNTIF($A$19:$A$93,D51))>0,0,(MAX($C$18:C50)+1))","v":21},33]
[null,null,{"$f":"IF((COUNTIF($A$19:$A$93,D52))>0,0,(MAX($C$18:C51)+1))","v":22},34]
[null,null,{"$f":"IF((COUNTIF($A$19:$A$93,D53))>0,0,(MAX($C$18:C52)+1))","v":0},35]
[null,null,{"$f":"IF((COUNTIF($A$19:$A$93,D54))>0,0,(MAX($C$18:C53)+1))","v":23},36]
[null,null,{"$f":"IF((COUNTIF($A$19:$A$93,D55))>0,0,(MAX($C$18:C54)+1))","v":24},37]
[null,null,{"$f":"IF((COUNTIF($A$19:$A$93,D56))>0,0,(MAX($C$18:C55)+1))","v":25},38]
[null,null,{"$f":"IF((COUNTIF($A$19:$A$93,D57))>0,0,(MAX($C$18:C56)+1))","v":26},39]
[null,null,{"$f":"IF((COUNTIF($A$19:$A$93,D58))>0,0,(MAX($C$18:C57)+1))","v":27},40]
[null,null,{"$f":"IF((COUNTIF($A$19:$A$93,D59))>0,0,(MAX($C$18:C58)+1))","v":0},41]
[null,null,{"$f":"IF((COUNTIF($A$19:$A$93,D60))>0,0,(MAX($C$18:C59)+1))","v":28},42]
[null,null,{"$f":"IF((COUNTIF($A$19:$A$93,D61))>0,0,(MAX($C$18:C60)+1))","v":29},43]
[null,null,{"$f":"IF((COUNTIF($A$19:$A$93,D62))>0,0,(MAX($C$18:C61)+1))","v":30},44]
[null,null,{"$f":"IF((COUNTIF($A$19:$A$93,D63))>0,0,(MAX($C$18:C62)+1))","v":31},45]
[null,null,{"$f":"IF((COUNTIF($A$19:$A$93,D64))>0,0,(MAX($C$18:C63)+1))","v":0},46]
[null,null,{"$f":"IF((COUNTIF($A$19:$A$93,D65))>0,0,(MAX($C$18:C64)+1))","v":0},47]
[null,null,{"$f":"IF((COUNTIF($A$19:$A$93,D66))>0,0,(MAX($C$18:C65)+1))","v":0},48]
[null,null,{"$f":"IF((COUNTIF($A$19:$A$93,D67))>0,0,(MAX($C$18:C66)+1))","v":32},49]
[null,null,{"$f":"IF((COUNTIF($A$19:$A$93,D68))>0,0,(MAX($C$18:C67)+1))","v":33},50]
[null,null,{"$f":"IF((COUNTIF($A$19:$A$93,D69))>0,0,(MAX($C$18:C68)+1))","v":34},51]
[null,null,{"$f":"IF((COUNTIF($A$19:$A$93,D70))>0,0,(MAX($C$18:C69)+1))","v":35},52]
[null,null,{"$f":"IF((COUNTIF($A$19:$A$93,D71))>0,0,(MAX($C$18:C70)+1))","v":36},53]
[null,null,{"$f":"IF((COUNTIF($A$19:$A$93,D72))>0,0,(MAX($C$18:C71)+1))","v":0},54]
[null,null,{"$f":"IF((COUNTIF($A$19:$A$93,D73))>0,0,(MAX($C$18:C72)+1))","v":37},55]
[null,null,{"$f":"IF((COUNTIF($A$19:$A$93,D74))>0,0,(MAX($C$18:C73)+1))","v":38},56]
[null,null,{"$f":"IF((COUNTIF($A$19:$A$93,D75))>0,0,(MAX($C$18:C74)+1))","v":39},57]
[null,null,{"$f":"IF((COUNTIF($A$19:$A$93,D76))>0,0,(MAX($C$18:C75)+1))","v":40},58]
[null,null,{"$f":"IF((COUNTIF($A$19:$A$93,D77))>0,0,(MAX($C$18:C76)+1))","v":0},59]
[null,null,{"$f":"IF((COUNTIF($A$19:$A$93,D78))>0,0,(MAX($C$18:C77)+1))","v":41},60]
[null,null,{"$f":"IF((COUNTIF($A$19:$A$93,D79))>0,0,(MAX($C$18:C78)+1))","v":42},61]
[null,null,{"$f":"IF((COUNTIF($A$19:$A$93,D80))>0,0,(MAX($C$18:C79)+1))","v":43},62]
[null,null,{"$f":"IF((COUNTIF($A$19:$A$93,D81))>0,0,(MAX($C$18:C80)+1))","v":44},63]
[null,null,{"$f":"IF((COUNTIF($A$19:$A$93,D82))>0,0,(MAX($C$18:C81)+1))","v":45},64]
[null,null,{"$f":"IF((COUNTIF($A$19:$A$93,D83))>0,0,(MAX($C$18:C82)+1))","v":46},65]
[null,null,{"$f":"IF((COUNTIF($A$19:$A$93,D84))>0,0,(MAX($C$18:C83)+1))","v":47},66]
[null,null,{"$f":"IF((COUNTIF($A$19:$A$93,D85))>0,0,(MAX($C$18:C84)+1))","v":48},67]
[null,null,{"$f":"IF((COUNTIF($A$19:$A$93,D86))>0,0,(MAX($C$18:C85)+1))","v":0},68]
[null,null,{"$f":"IF((COUNTIF($A$19:$A$93,D87))>0,0,(MAX($C$18:C86)+1))","v":49},69]
[null,null,{"$f":"IF((COUNTIF($A$19:$A$93,D88))>0,0,(MAX($C$18:C87)+1))","v":50},70]
[null,null,{"$f":"IF((COUNTIF($A$19:$A$93,D89))>0,0,(MAX($C$18:C88)+1))","v":0},71]
[null,null,{"$f":"IF((COUNTIF($A$19:$A$93,D90))>0,0,(MAX($C$18:C89)+1))","v":0},72]
[null,null,{"$f":"IF((COUNTIF($A$19:$A$93,D91))>0,0,(MAX($C$18:C90)+1))","v":0},73]
[null,null,{"$f":"IF((COUNTIF($A$19:$A$93,D92))>0,0,(MAX($C$18:C91)+1))","v":51},74]
[null,null,{"$f":"IF((COUNTIF($A$19:$A$93,D93))>0,0,(MAX($C$18:C92)+1))","v":0},75]
[]
[]
[]
[]
[]
[]
[null,null,null,null,null,null,null,null,null,null,null,null,null,null,null,null,"ORDEN","NUMERO"]
[null,null,null,null,null,null,null,null,null,null,null,null,null,null,null,null,1,1]
[null,null,null,null,null,null,null,null,null,null,null,null,null,null,null,null,2,2]
[null,null,null,null,null,null,null,null,null,null,null,null,null,null,null,null,3,3]
[null,null,null,null,null,null,null,null,null,null,null,null,null,null,null,null,4,4]
[null,null,null,null,null,null,null,null,null,null,null,null,null,null,null,null,5,5]
[null,null,null,null,null,null,null,null,null,null,null,null,null,null,null,null,6,6]
[null,null,null,null,null,null,null,null,null,null,null,null,null,null,null,null,7,7]
[null,null,null,null,null,null,null,null,null,null,null,null,null,null,null,null,8,8]
[null,null,null,null,null,null,null,null,null,null,null,null,null,null,null,null,9,9]
[null,null,null,null,null,null,null,null,null,null,null,null,null,null,null,null,10,10]
[null,null,null,null,null,null,null,null,null,null,null,null,null,null,null,null,11,11]
[null,null,null,null,null,null,null,null,null,null,null,null,null,null,null,null,12,12]
[null,null,null,null,null,null,null,null,null,null,null,null,null,null,null,null,13,13]
[null,null,null,null,null,null,null,null,null,null,null,null,null,null,null,null,14,14]
[null,null,null,null,null,null,null,null,null,null,null,null,null,null,null,null,15,15]
[null,null,null,null,null,null,null,null,null,null,null,null,null,null,null,null,16,16]
[null,null,null,null,null,null,null,null,null,null,null,null,null,null,null,null,17,17]
[null,null,null,null,null,null,null,null,null,null,null,null,null,null,null,null,18,18]
[null,null,null,null,null,null,null,null,null,null,null,null,null,null,null,null,19,19]
[null,null,null,null,null,null,null,null,null,null,null,null,null,null,null,null,20,20]
[null,null,null,null,null,null,null,null,null,null,null,null,null,null,null,null,21,21]
[null,null,null,null,null,null,null,null,null,null,null,null,null,null,null,null,22,22]
[null,null,null,null,null,null,null,null,null,null,null,null,null,null,null,null,23,23]
[null,null,null,null,null,null,null,null,null,null,null,null,null,null,null,null,24,24]
[null,null,null,null,null,null,null,null,null,null,null,null,null,null,null,null,25,25]
[null,null,null,null,null,null,null,null,null,null,null,null,null,null,null,null,26,26]
[null,null,null,null,null,null,null,null,null,null,null,null,null,null,null,null,27,27]
[null,null,null,null,null,null,null,null,null,null,null,null,null,null,null,null,28,28]
[null,null,null,null,null,null,null,null,null,null,null,null,null,null,null,null,29,29]
[null,null,null,null,null,null,null,null,null,null,null,null,null,null,null,null,30,30]
[null,null,null,null,null,null,null,null,null,null,null,null,null,null,null,null,31,31]
[null,null,null,null,null,null,null,null,null,null,null,null,null,null,null,null,32,32]
[null,null,null,null,null,null,null,null,null,null,null,null,null,null,null,null,33,33]
[null,null,null,null,null,null,null,null,null,null,null,null,null,null,null,null,34,34]
[null,null,null,null,null,null,null,null,null,null,null,null,null,null,null,null,35,35]
[null,null,null,null,null,null,null,null,null,null,null,null,null,null,null,null,36,36]
[null,null,null,null,null,null,null,null,null,null,null,null,null,null,null,null,37,37]
[null,null,null,null,null,null,null,null,null,null,null,null,null,null,null,null,38,38]
[null,null,null,null,null,null,null,null,null,null,null,null,null,null,null,null,39,39]
[null,null,null,null,null,null,null,null,null,null,null,null,null,null,null,null,40,40]
[null,null,null,null,null,null,null,null,null,null,null,null,null,null,null,null,41,41]
[null,null,null,null,null,null,null,null,null,null,null,null,null,null,null,null,42,42]
[null,null,null,null,null,null,null,null,null,null,null,null,null,null,null,null,43,43]
[null,null,null,null,null,null,null,null,null,null,null,null,null,null,null,null,44,44]
[null,null,null,null,null,null,null,null,null,null,null,null,null,null,null,null,45,45]
[null,null,null,null,null,null,null,null,null,null,null,null,null,null,null,null,46,46]
[null,null,null,null,null,null,null,null,null,null,null,null,null,null,null,null,47,47]
[null,null,null,null,null,null,null,null,null,null,null,null,null,null,null,null,48,48]
[null,null,null,null,null,null,null,null,null,null,null,null,null,null,null,null,49,49]
[null,null,null,null,null,null,null,null,null,null,null,null,null,null,null,null,50,50]
[null,null,null,null,null,null,null,null,null,null,null,null,null,null,null,null,51,51]
[null,null,null,null,null,null,null,null,null,null,null,null,null,null,null,null,52,52]
[null,null,null,null,null,null,null,null,null,null,null,null,null,null,null,null,53,53]
[null,null,null,null,null,null,null,null,null,null,null,null,null,null,null,null,54,54]
[null,null,null,null,null,null,null,null,null,null,null,null,null,null,null,null,55,55]
[null,null,null,null,null,null,null,null,null,null,null,null,null,null,null,null,56,56]
[null,null,null,null,null,null,null,null,null,null,null,null,null,null,null,null,57,57]
[null,null,null,null,null,null,null,null,null,null,null,null,null,null,null,null,58,58]
[null,null,null,null,null,null,null,null,null,null,null,null,null,null,null,null,59,59]
[null,null,null,null,null,null,null,null,null,null,null,null,null,null,null,null,60,60]
[null,null,null,null,null,null,null,null,null,null,null,null,null,null,null,null,61,61]
[null,null,null,null,null,null,null,null,null,null,null,null,null,null,null,null,62,62]
[null,null,null,null,null,null,null,null,null,null,null,null,null,null,null,null,63,63]
[null,null,null,null,null,null,null,null,null,null,null,null,null,null,null,null,64,64]
[null,null,null,null,null,null,null,null,null,null,null,null,null,null,null,null,65,65]
[null,null,null,null,null,null,null,null,null,null,null,null,null,null,null,null,66,66]
[null,null,null,null,null,null,null,null,null,null,null,null,null,null,null,null,67,67]
[null,null,null,null,null,null,null,null,null,null,null,null,null,null,null,null,68,68]
[null,null,null,null,null,null,null,null,null,null,null,null,null,null,null,null,69,69]
[null,null,null,null,null,null,null,null,null,null,null,null,null,null,null,null,70,70]
[null,null,null,null,null,null,null,null,null,null,null,null,null,null,null,null,71,71]
[null,null,null,null,null,null,null,null,null,null,null,null,null,null,null,null,72,72]
[null,null,null,null,null,null,null,null,null,null,null,null,null,null,null,null,73,73]
[null,null,null,null,null,null,null,null,null,null,null,null,null,null,null,null,74,74]
[null,null,null,null,null,null,null,null,null,null,null,null,null,null,null,null,75,75]

{"sheet":"rev aut","index":1,"n_rows":104,"n_cols":20,"rows_kept":104,"cut":false,"hidden":false,"merged":[[1,1,1,5],[2,1,4,1],[2,2,4,2],[2,3,4,3],[2,4,4,4],[2,5,4,5],[5,3,7,3],[5,4,7,4],[5,5,7,5],[8,1,10,1],[8,2,10,2],[8,3,10,3],[8,4,10,4],[8,5,10,5],[5,1,7,1],[5,2,7,2],[14,1,16,1],[14,2,16,2],[14,3,16,3],[14,4,16,4],[14,5,16,5],[11,1,13,1],[11,2,13,2],[11,3,13,3],[11,4,13,4],[11,5,13,5],[2,13,4,13],[5,9,7,9],[5,10,7,10],[5,11,7,11],[5,12,7,12],[5,13,7,13],[14,13,16,13],[8,9,10,9],[8,10,10,10],[8,11,10,11],[8,12,10,12],[8,13,10,13],[11,9,13,9],[11,10,13,10],[11,11,13,11],[11,12,13,12],[11,13,13,13],[2,7,4,7],[14,9,16,9],[14,10,16,10],[14,11,16,11],[14,12,16,12],[2,9,4,9],[2,10,4,10],[2,11,4,11],[2,12,4,12]]}
[]
[null,"B I N G O",null,null,null,null,null,"CARTON Nº",null,"B","I","N","G","O"]
[null,{"$f":"+DICTADOS!G2","v":"x"},{"$f":"+DICTADOS!H2","v":"x"},{"$f":"+DICTADOS!I2","v":"x"},{"$f":"+DICTADOS!J2","v":"x"},{"$f":"+DICTADOS!K2","v":"x"},null,591,null,{"$f":"INDIRECT(\"CARTONES!a\"&P3)","v":13},{"$f":"INDIRECT(\"CARTONES!b\"&Q3)","v":16},{"$f":"INDIRECT(\"CARTONES!c\"&R3)","v":32},{"$f":"INDIRECT(\"CARTONES!d\"&S3)","v":51},{"$f":"INDIRECT(\"CARTONES!e\"&T3)","v":73},null,{"$f":"((H3*7)-7)+3","v":4133},{"$f":"+P3","v":4133},{"$f":"+Q3","v":4133},4133,4133]
[]
[]
[null,{"$f":"+DICTADOS!G5","v":"x"},{"$f":"+DICTADOS!H5","v":"x"},{"$f":"+DICTADOS!I5","v":"x"},{"$f":"+DICTADOS!J5","v":"x"},{"$f":"+DICTADOS!K5","v":"x"},null,null,null,{"$f":"INDIRECT(\"CARTONES!a\"&P6)","v":15},{"$f":"INDIRECT(\"CARTONES!b\"&Q6)","v":29},{"$f":"INDIRECT(\"CARTONES!c\"&R6)","v":31},{"$f":"INDIRECT(\"CARTONES!d\"&S6)","v":49},{"$f":"INDIRECT(\"CARTONES!e\"&T6)","v":72},null,{"$f":"+P3+1","v":4134},{"$f":"+Q3+1","v":4134},4134,4134,4134]
[]
[]
[null,{"$f":"+DICTADOS!G8","v":"x"},{"$f":"+DICTADOS!H8","v":"x"},{"$f":"+DICTADOS!I8","v":"NULO"},{"$f":"+DICTADOS!J8","v":"x"},{"$f":"+DICTADOS!K8","v":"x"},null,null,null,{"$f":"INDIRECT(\"CARTONES!a\"&P9)","v":12},{"$f":"INDIRECT(\"CARTONES!b\"&Q9)","v":19},{"$f":"INDIRECT(\"CARTONES!c\"&R9)","v":0},{"$f":"INDIRECT(\"CARTONES!d\"&S9)","v":47},{"$f":"INDIRECT(\"CARTONES!e\"&T9)","v":65},null,{"$f":"+P6+1","v":4135},{"$f":"+P9","v":4135},{"$f":"+Q9","v":4135},{"$f":"+R9","v":4135},{"$f":"+S9","v":4135}]
[]
[null,null,null,null,null,null,null,"DESEA VALIDAR CARTONES JUGADOS?"]
[null,{"$f":"+DICTADOS!G11","v":"x"},{"$f":"+DICTADOS!H11","v":"x"},{"$f":"+DICTADOS!I11","v":"x"},{"$f":"+DICTADOS!J11","v":"x"},{"$f":"+DICTADOS!K11","v":"x"},null,"SI",null,{"$f":"INDIRECT(\"CARTONES!a\"&P12)","v":2},{"$f":"INDIRECT(\"CARTONES!b\"&Q12)","v":30},{"$f":"INDIRECT(\"CARTONES!c\"&R12)","v":43},{"$f":"INDIRECT(\"CARTONES!d\"&S12)","v":52},{"$f":"INDIRECT(\"CARTONES!e\"&T12)","v":66},null,{"$f":"+P9+1","v":4136},{"$f":"+P12","v":4136},{"$f":"+Q12","v":4136},{"$f":"+R12","v":4136},{"$f":"+S12","v":4136}]
[]
[null,null,null,null,null,null,null,{"$f":"IF((AND(COUNTIF('cartones jugados'!E:E,H3)>0,H12=\"SI\"))=TRUE,\"CARTON INVALIDO (JUGADO)\",\"\")","v":""}]
[null,{"$f":"+DICTADOS!G14","v":"x"},{"$f":"+DICTADOS!H14","v":"x"},{"$f":"+DICTADOS!I14","v":"x"},{"$f":"+DICTADOS!J14","v":"x"},{"$f":"+DICTADOS!K14","v":"x"},null,null,null,{"$f":"INDIRECT(\"CARTONES!a\"&P15)","v":1},{"$f":"INDIRECT(\"CARTONES!b\"&Q15)","v":18},{"$f":"INDIRECT(\"CARTONES!c\"&R15)","v":39},{"$f":"INDIRECT(\"CARTONES!d\"&S15)","v":46},{"$f":"INDIRECT(\"CARTONES!e\"&T15)","v":69},null,{"$f":"+P12+1","v":4137},{"$f":"+P15","v":4137},{"$f":"+Q15","v":4137},{"$f":"+R15","v":4137},{"$f":"+S15","v":4137}]
[]
[]
[]
[]
[]
[]
[]
[]
[]
[]
[]
[]
[]
[]
[null,{"$f":"+DICTADOS!A19","v":3}]
[null,{"$f":"+DICTADOS!A20","v":13}]
[null,{"$f":"+DICTADOS!A21","v":11}]
[null,{"$f":"+DICTADOS!A22","v":5}]
[null,{"$f":"+DICTADOS!A23","v":4}]
[null,{"$f":"+DICTADOS!A24","v":21}]
[null,{"$f":"+DICTADOS!A25","v":22}]
[null,{"$f":"+DICTADOS!A26","v":17}]
[null,{"$f":"+DICTADOS!A27","v":29}]
[null,{"$f":"+DICTADOS!A28","v":20}]
[null,{"$f":"+DICTADOS!A29","v":31}]
[null,{"$f":"+DICTADOS!A30","v":32}]
[null,{"$f":"+DICTADOS!A31","v":41}]
[null,{"$f":"+DICTADOS!A32","v":35}]
[null,{"$f":"+DICTADOS!A33","v":59}]
[null,{"$f":"+DICTADOS!A34","v":46}]
[null,{"$f":"+DICTADOS!A35","v":48}]
[null,{"$f":"+DICTADOS!A36","v":54}]
[null,{"$f":"+DICTADOS!A37","v":47}]
[null,{"$f":"+DICTADOS!A38","v":71}]
[null,{"$f":"+DICTADOS!A39","v":72}]
[null,{"$f":"+DICTADOS!A40","v":73}]
[null,{"$f":"+DICTADOS!A41","v":68}]
[null,{"$f":"+DICTADOS!A42","v":75}]
[null,{"$f":"+DICTADOS!A43","v":0}]
[null,{"$f":"+DICTADOS!A44","v":0}]
[null,{"$f":"+DICTADOS!A45","v":0}]
[null,{"$f":"+DICTADOS!A46","v":0}]
[null,{"$f":"+DICTADOS!A47","v":0}]
[null,{"$f":"+DICTADOS!A48","v":0}]
[null,{"$f":"+DICTADOS!A49","v":0}]
[null,{"$f":"+DICTADOS!A50","v":0}]
[null,{"$f":"+DICTADOS!A51","v":0}]
[null,{"$f":"+DICTADOS!A52","v":0}]
[null,{"$f":"+DICTADOS!A53","v":0}]
[null,{"$f":"+DICTADOS!A54","v":0}]
[null,{"$f":"+DICTADOS!A55","v":0}]
[null,{"$f":"+DICTADOS!A56","v":0}]
[null,{"$f":"+DICTADOS!A57","v":0}]
[null,{"$f":"+DICTADOS!A58","v":0}]
[null,{"$f":"+DICTADOS!A59","v":0}]
[null,{"$f":"+DICTADOS!A60","v":0}]
[null,{"$f":"+DICTADOS!A61","v":0}]
[null,{"$f":"+DICTADOS!A62","v":0}]
[null,{"$f":"+DICTADOS!A63","v":0}]
[null,{"$f":"+DICTADOS!A64","v":0}]
[null,{"$f":"+DICTADOS!A65","v":0}]
[null,{"$f":"+DICTADOS!A66","v":0}]
[null,{"$f":"+DICTADOS!A67","v":0}]
[null,{"$f":"+DICTADOS!A68","v":0}]
[null,{"$f":"+DICTADOS!A69","v":0}]
[null,{"$f":"+DICTADOS!A70","v":0}]
[null,{"$f":"+DICTADOS!A71","v":0}]
[null,{"$f":"+DICTADOS!A72","v":0}]
[null,{"$f":"+DICTADOS!A73","v":0}]
[null,{"$f":"+DICTADOS!A74","v":0}]
[null,{"$f":"+DICTADOS!A75","v":0}]
[null,{"$f":"+DICTADOS!A76","v":0}]
[null,{"$f":"+DICTADOS!A77","v":0}]
[null,{"$f":"+DICTADOS!A78","v":0}]
[null,{"$f":"+DICTADOS!A79","v":0}]
[null,{"$f":"+DICTADOS!A80","v":0}]
[null,{"$f":"+DICTADOS!A81","v":0}]
[null,{"$f":"+DICTADOS!A82","v":0}]
[null,{"$f":"+DICTADOS!A83","v":0}]
[null,{"$f":"+DICTADOS!A84","v":0}]
[null,{"$f":"+DICTADOS!A85","v":0}]
[null,{"$f":"+DICTADOS!A86","v":0}]
[null,{"$f":"+DICTADOS!A87","v":0}]
[null,{"$f":"+DICTADOS!A88","v":0}]
[null,{"$f":"+DICTADOS!A89","v":0}]
[null,{"$f":"+DICTADOS!A90","v":0}]
[null,{"$f":"+DICTADOS!A91","v":0}]
[null,{"$f":"+DICTADOS!A92","v":0}]
[null,{"$f":"+DICTADOS!A93","v":0}]

{"sheet":"rev manual","index":2,"n_rows":76,"n_cols":3,"rows_kept":76,"cut":false,"hidden":false,"merged":[]}
["NÚMEROS DICTADOS",null,"NÚMEROS DE CARTÒN"]
[{"$f":"+DICTADOS!A19","v":3}]
[{"$f":"+DICTADOS!A20","v":13}]
[{"$f":"+DICTADOS!A21","v":11}]
[{"$f":"+DICTADOS!A22","v":5}]
[{"$f":"+DICTADOS!A23","v":4}]
[{"$f":"+DICTADOS!A24","v":21}]
[{"$f":"+DICTADOS!A25","v":22}]
[{"$f":"+DICTADOS!A26","v":17}]
[{"$f":"+DICTADOS!A27","v":29}]
[{"$f":"+DICTADOS!A28","v":20}]
[{"$f":"+DICTADOS!A29","v":31}]
[{"$f":"+DICTADOS!A30","v":32}]
[{"$f":"+DICTADOS!A31","v":41}]
[{"$f":"+DICTADOS!A32","v":35}]
[{"$f":"+DICTADOS!A33","v":59}]
[{"$f":"+DICTADOS!A34","v":46}]
[{"$f":"+DICTADOS!A35","v":48}]
[{"$f":"+DICTADOS!A36","v":54}]
[{"$f":"+DICTADOS!A37","v":47}]
[{"$f":"+DICTADOS!A38","v":71}]
[{"$f":"+DICTADOS!A39","v":72}]
[{"$f":"+DICTADOS!A40","v":73}]
[{"$f":"+DICTADOS!A41","v":68}]
[{"$f":"+DICTADOS!A42","v":75}]
[{"$f":"+DICTADOS!A43","v":0}]
[{"$f":"+DICTADOS!A44","v":0}]
[{"$f":"+DICTADOS!A45","v":0}]
[{"$f":"+DICTADOS!A46","v":0}]
[{"$f":"+DICTADOS!A47","v":0}]
[{"$f":"+DICTADOS!A48","v":0}]
[{"$f":"+DICTADOS!A49","v":0}]
[{"$f":"+DICTADOS!A50","v":0}]
[{"$f":"+DICTADOS!A51","v":0}]
[{"$f":"+DICTADOS!A52","v":0}]
[{"$f":"+DICTADOS!A53","v":0}]
[{"$f":"+DICTADOS!A54","v":0}]
[{"$f":"+DICTADOS!A55","v":0}]
[{"$f":"+DICTADOS!A56","v":0}]
[{"$f":"+DICTADOS!A57","v":0}]
[{"$f":"+DICTADOS!A58","v":0}]
[{"$f":"+DICTADOS!A59","v":0}]
[{"$f":"+DICTADOS!A60","v":0}]
[{"$f":"+DICTADOS!A61","v":0}]
[{"$f":"+DICTADOS!A62","v":0}]
[{"$f":"+DICTADOS!A63","v":0}]
[{"$f":"+DICTADOS!A64","v":0}]
[{"$f":"+DICTADOS!A65","v":0}]
[{"$f":"+DICTADOS!A66","v":0}]
[{"$f":"+DICTADOS!A67","v":0}]
[{"$f":"+DICTADOS!A68","v":0}]
[{"$f":"+DICTADOS!A69","v":0}]
[{"$f":"+DICTADOS!A70","v":0}]
[{"$f":"+DICTADOS!A71","v":0}]
[{"$f":"+DICTADOS!A72","v":0}]
[{"$f":"+DICTADOS!A73","v":0}]
[{"$f":"+DICTADOS!A74","v":0}]
[{"$f":"+DICTADOS!A75","v":0}]
[{"$f":"+DICTADOS!A76","v":0}]
[{"$f":"+DICTADOS!A77","v":0}]
[{"$f":"+DICTADOS!A78","v":0}]
[{"$f":"+DICTADOS!A79","v":0}]
[{"$f":"+DICTADOS!A80","v":0}]
[{"$f":"+DICTADOS!A81","v":0}]
[{"$f":"+DICTADOS!A82","v":0}]
[{"$f":"+DICTADOS!A83","v":0}]
[{"$f":"+DICTADOS!A84","v":0}]
[{"$f":"+DICTADOS!A85","v":0}]
[{"$f":"+DICTADOS!A86","v":0}]
[{"$f":"+DICTADOS!A87","v":0}]
[{"$f":"+DICTADOS!A88","v":0}]
[{"$f":"+DICTADOS!A89","v":0}]
[{"$f":"+DICTADOS!A90","v":0}]
[{"$f":"+DICTADOS!A91","v":0}]
[{"$f":"+DICTADOS!A92","v":0}]
[{"$f":"+DICTADOS!A93","v":0}]

{"sheet":"D","index":3,"n_rows":29,"n_cols":25,"rows_kept":29,"cut":false,"hidden":false,"merged":[[7,7,7,9],[6,7,6,9],[1,1,1,5],[1,7,1,9],[2,7,2,9],[4,7,4,9],[5,7,5,9],[3,7,3,9]]}
[]
[null,18,null,null,null,null,null,"Parroquia"]
[null,"B","I","N","G","O",null,"Nuestra Señora del Carmen"]
[null,14,19,44,58,63]
[null,13,20,42,54,72]
[null,9,27,null,53,69]
[null,5,21,43,52,61,null,"Apoyemos Nuestra Parroquia"]
[null,11,24,31,49,67]
[]
[]
[null,null,null,null,null,null,null,null,null,null,null,null,null,null,null,{"$f":"RANDBETWEEN(1,15)","v":15},null,{"$f":"RANDBETWEEN(16,30)","v":17},null,{"$f":"RANDBETWEEN(31,45)","v":38},null,{"$f":"RANDBETWEEN(46,60)","v":56},null,{"$f":"RANDBETWEEN(61,75)","v":73}]
[null,null,null,null,null,null,null,null,null,null,null,null,null,null,null,{"$f":"RANDBETWEEN(MIN(P15:P29),MAX(P15:P29))","v":8},{"$f":"VLOOKUP(P12,P15:Q29,2,0)","v":10},{"$f":"RANDBETWEEN(MIN(R15:R29),MAX(R15:R29))","v":16},{"$f":"VLOOKUP(R12,R15:S29,2,0)","v":16},{"$f":"RANDBETWEEN(MIN(T15:T29),MAX(T15:T29))","v":31},{"$f":"VLOOKUP(T12,T15:U29,2,0)","v":31},{"$f":"RANDBETWEEN(MIN(V15:V29),MAX(V15:V29))","v":46},{"$f":"VLOOKUP(V12,V15:W29,2,0)","v":46},{"$f":"RANDBETWEEN(MIN(X15:X29),MAX(X15:X29))","v":7},{"$f":"VLOOKUP(X12,X15:Y29,2,0)","v":71}]
[]
[null,null,null,null,null,null,null,null,null,"B","I","N","G","O",null,"B",null,"I",null,"N",null,"G",null,"O"]
[null,null,null,null,null,null,null,null,null,14,19,44,58,63,null,{"$f":"IF((COUNTIF($J$15:$J$19,Q15))>0,\"\",1)","v":1},1,{"$f":"IF((COUNTIF($K$15:$K$19,S15))>0,\"\",16)","v":16},16,{"$f":"IF((COUNTIF($L$15:$L$19,S15))>0,\"\",31)","v":31},31,{"$f":"IF((COUNTIF($M$15:$M$19,W15))>0,\"\",46)","v":46},46,{"$f":"IF((COUNTIF($N$15:$N$19,Y15))>0,\"\",61)","v":""},61]
[null,null,null,null,null,null,null,null,null,13,20,42,54,72,null,{"$f":"IF((COUNTIF($J$15:$J$19,Q16))>0,\"\",(MAX($P$14:P15)+1))","v":2},2,{"$f":"IF((COUNTIF($K$15:$K$19,S16))>0,\"\",(MAX($R$14:R15)+1))","v":17},17,{"$f":"IF((COUNTIF($L$15:$L$19,U16))>0,\"\",(MAX($T$14:T15)+1))","v":32},32,{"$f":"IF((COUNTIF($M$15:$M$19,W16))>0,\"\",(MAX($V$14:V15)+1))","v":47},47,{"$f":"IF((COUNTIF($N$15:$N$19,Y16))>0,\"\",(MAX($X$14:X15)+1))","v":1},62]
[null,null,null,null,null,null,null,null,null,9,27,45,53,69,null,{"$f":"IF((COUNTIF($J$15:$J$19,Q17))>0,\"\",(MAX($P$14:P16)+1))","v":3},3,{"$f":"IF((COUNTIF($K$15:$K$19,S17))>0,\"\",(MAX($R$14:R16)+1))","v":18},18,{"$f":"IF((COUNTIF($L$15:$L$19,U17))>0,\"\",(MAX($T$14:T16)+1))","v":33},33,{"$f":"IF((COUNTIF($M$15:$M$19,W17))>0,\"\",(MAX($V$14:V16)+1))","v":48},48,{"$f":"IF((COUNTIF($N$15:$N$19,Y17))>0,\"\",(MAX($X$14:X16)+1))","v":""},63]
[null,null,null,null,null,null,null,null,null,5,21,43,52,61,null,{"$f":"IF((COUNTIF($J$15:$J$19,Q18))>0,\"\",(MAX($P$14:P17)+1))","v":4},4,{"$f":"IF((COUNTIF($K$15:$K$19,S18))>0,\"\",(MAX($R$14:R17)+1))","v":""},19,{"$f":"IF((COUNTIF($L$15:$L$19,U18))>0,\"\",(MAX($T$14:T17)+1))","v":34},34,{"$f":"IF((COUNTIF($M$15:$M$19,W18))>0,\"\",(MAX($V$14:V17)+1))","v":""},49,{"$f":"IF((COUNTIF($N$15:$N$19,Y18))>0,\"\",(MAX($X$14:X17)+1))","v":2},64]
[null,null,null,null,null,null,null,null,null,11,24,31,49,67,null,{"$f":"IF((COUNTIF($J$15:$J$19,Q19))>0,\"\",(MAX($P$14:P18)+1))","v":""},5,{"$f":"IF((COUNTIF($K$15:$K$19,S19))>0,\"\",(MAX($R$14:R18)+1))","v":""},20,{"$f":"IF((COUNTIF($L$15:$L$19,U19))>0,\"\",(MAX($T$14:T18)+1))","v":35},35,{"$f":"IF((COUNTIF($M$15:$M$19,W19))>0,\"\",(MAX($V$14:V18)+1))","v":49},50,{"$f":"IF((COUNTIF($N$15:$N$19,Y19))>0,\"\",(MAX($X$14:X18)+1))","v":3},65]
[null,null,null,null,null,null,null,null,null,null,null,null,null,null,null,{"$f":"IF((COUNTIF($J$15:$J$19,Q20))>0,\"\",(MAX($P$14:P19)+1))","v":5},6,{"$f":"IF((COUNTIF($K$15:$K$19,S20))>0,\"\",(MAX($R$14:R19)+1))","v":""},21,{"$f":"IF((COUNTIF($L$15:$L$19,U20))>0,\"\",(MAX($T$14:T19)+1))","v":36},36,{"$f":"IF((COUNTIF($M$15:$M$19,W20))>0,\"\",(MAX($V$14:V19)+1))","v":50},51,{"$f":"IF((COUNTIF($N$15:$N$19,Y20))>0,\"\",(MAX($X$14:X19)+1))","v":4},66]
[null,null,null,null,null,null,null,null,null,null,null,null,null,null,null,{"$f":"IF((COUNTIF($J$15:$J$19,Q21))>0,\"\",(MAX($P$14:P20)+1))","v":6},7,{"$f":"IF((COUNTIF($K$15:$K$19,S21))>0,\"\",(MAX($R$14:R20)+1))","v":19},22,{"$f":"IF((COUNTIF($L$15:$L$19,U21))>0,\"\",(MAX($T$14:T20)+1))","v":37},37,{"$f":"IF((COUNTIF($M$15:$M$19,W21))>0,\"\",(MAX($V$14:V20)+1))","v":""},52,{"$f":"IF((COUNTIF($N$15:$N$19,Y21))>0,\"\",(MAX($X$14:X20)+1))","v":""},67]
[null,null,null,null,null,null,null,null,null,null,null,null,null,null,null,{"$f":"IF((COUNTIF($J$15:$J$19,Q22))>0,\"\",(MAX($P$14:P21)+1))","v":7},8,{"$f":"IF((COUNTIF($K$15:$K$19,S22))>0,\"\",(MAX($R$14:R21)+1))","v":20},23,{"$f":"IF((COUNTIF($L$15:$L$19,U22))>0,\"\",(MAX($T$14:T21)+1))","v":38},38,{"$f":"IF((COUNTIF($M$15:$M$19,W22))>0,\"\",(MAX($V$14:V21)+1))","v":""},53,{"$f":"IF((COUNTIF($N$15:$N$19,Y22))>0,\"\",(MAX($X$14:X21)+1))","v":5},68]
[null,null,null,null,null,null,null,null,null,null,null,null,null,null,null,{"$f":"IF((COUNTIF($J$15:$J$19,Q23))>0,\"\",(MAX($P$14:P22)+1))","v":""},9,{"$f":"IF((COUNTIF($K$15:$K$19,S23))>0,\"\",(MAX($R$14:R22)+1))","v":""},24,{"$f":"IF((COUNTIF($L$15:$L$19,U23))>0,\"\",(MAX($T$14:T22)+1))","v":39},39,{"$f":"IF((COUNTIF($M$15:$M$19,W23))>0,\"\",(MAX($V$14:V22)+1))","v":""},54,{"$f":"IF((COUNTIF($N$15:$N$19,Y23))>0,\"\",(MAX($X$14:X22)+1))","v":""},69]
[null,null,null,null,null,null,null,null,null,null,null,null,null,null,null,{"$f":"IF((COUNTIF($J$15:$J$19,Q24))>0,\"\",(MAX($P$14:P23)+1))","v":8},10,{"$f":"IF((COUNTIF($K$15:$K$19,S24))>0,\"\",(MAX($R$14:R23)+1))","v":21},25,{"$f":"IF((COUNTIF($L$15:$L$19,U24))>0,\"\",(MAX($T$14:T23)+1))","v":40},40,{"$f":"IF((COUNTIF($M$15:$M$19,W24))>0,\"\",(MAX($V$14:V23)+1))","v":51},55,{"$f":"IF((COUNTIF($N$15:$N$19,Y24))>0,\"\",(MAX($X$14:X23)+1))","v":6},70]
[null,null,null,null,null,null,null,null,null,null,null,null,null,null,null,{"$f":"IF((COUNTIF($J$15:$J$19,Q25))>0,\"\",(MAX($P$14:P24)+1))","v":""},11,{"$f":"IF((COUNTIF($K$15:$K$19,S25))>0,\"\",(MAX($R$14:R24)+1))","v":22},26,{"$f":"IF((COUNTIF($L$15:$L$19,U25))>0,\"\",(MAX($T$14:T24)+1))","v":41},41,{"$f":"IF((COUNTIF($M$15:$M$19,W25))>0,\"\",(MAX($V$14:V24)+1))","v":52},56,{"$f":"IF((COUNTIF($N$15:$N$19,Y25))>0,\"\",(MAX($X$14:X24)+1))","v":7},71]
[null,null,null,null,null,null,null,null,null,null,null,null,null,null,null,{"$f":"IF((COUNTIF($J$15:$J$19,Q26))>0,\"\",(MAX($P$14:P25)+1))","v":9},12,{"$f":"IF((COUNTIF($K$15:$K$19,S26))>0,\"\",(MAX($R$14:R25)+1))","v":""},27,{"$f":"IF((COUNTIF($L$15:$L$19,U26))>0,\"\",(MAX($T$14:T25)+1))","v":""},42,{"$f":"IF((COUNTIF($M$15:$M$19,W26))>0,\"\",(MAX($V$14:V25)+1))","v":53},57,{"$f":"IF((COUNTIF($N$15:$N$19,Y26))>0,\"\",(MAX($X$14:X25)+1))","v":""},72]
[null,null,null,null,null,null,null,null,null,null,null,null,null,null,null,{"$f":"IF((COUNTIF($J$15:$J$19,Q27))>0,\"\",(MAX($P$14:P26)+1))","v":""},13,{"$f":"IF((COUNTIF($K$15:$K$19,S27))>0,\"\",(MAX($R$14:R26)+1))","v":23},28,{"$f":"IF((COUNTIF($L$15:$L$19,U27))>0,\"\",(MAX($T$14:T26)+1))","v":""},43,{"$f":"IF((COUNTIF($M$15:$M$19,W27))>0,\"\",(MAX($V$14:V26)+1))","v":""},58,{"$f":"IF((COUNTIF($N$15:$N$19,Y27))>0,\"\",(MAX($X$14:X26)+1))","v":8},73]
[null,null,null,null,null,null,null,null,null,null,null,null,null,null,null,{"$f":"IF((COUNTIF($J$15:$J$19,Q28))>0,\"\",(MAX($P$14:P27)+1))","v":""},14,{"$f":"IF((COUNTIF($K$15:$K$19,S28))>0,\"\",(MAX($R$14:R27)+1))","v":24},29,{"$f":"IF((COUNTIF($L$15:$L$19,U28))>0,\"\",(MAX($T$14:T27)+1))","v":""},44,{"$f":"IF((COUNTIF($M$15:$M$19,W28))>0,\"\",(MAX($V$14:V27)+1))","v":54},59,{"$f":"IF((COUNTIF($N$15:$N$19,Y28))>0,\"\",(MAX($X$14:X27)+1))","v":9},74]
[null,null,null,null,null,null,null,null,null,null,null,null,null,null,null,{"$f":"IF((COUNTIF($J$15:$J$19,Q29))>0,\"\",(MAX($P$14:P28)+1))","v":10},15,{"$f":"IF((COUNTIF($K$15:$K$19,S29))>0,\"\",(MAX($R$14:R28)+1))","v":25},30,{"$f":"IF((COUNTIF($L$15:$L$19,U29))>0,\"\",(MAX($T$14:T28)+1))","v":""},45,{"$f":"IF((COUNTIF($M$15:$M$19,W29))>0,\"\",(MAX($V$14:V28)+1))","v":55},60,{"$f":"IF((COUNTIF($N$15:$N$19,Y29))>0,\"\",(MAX($X$14:X28)+1))","v":10},75]

{"sheet":"CARTONES","index":4,"n_rows":4270,"n_cols":5,"rows_kept":4270,"cut":false,"hidden":false,"merged":[]}
[null,null,null,null,1]
[]
[1,18,35,58,73]
[11,28,34,56,68]
[8,27,null,46,71]
[4,22,33,50,64]
[7,20,36,59,74]
[null,null,null,null,{"$f":"+E1+1","v":2}]
[]
[14,24,41,53,72]
[2,30,44,59,65]
[8,17,null,54,69]
[1,18,31,52,70]
[15,26,33,51,74]
[null,null,null,null,{"$f":"+E8+1","v":3}]
[]
[1,21,45,51,69]
[14,16,35,57,70]
[13,28,null,56,75]
[4,25,40,58,72]
[15,18,37,59,66]
[null,null,null,null,{"$f":"+E15+1","v":4}]
[]
[8,27,31,49,70]
[6,21,42,54,65]
[9,18,null,47,69]
[2,30,34,56,67]
[7,22,41,52,64]
[null,null,null,null,{"$f":"+E22+1","v":5}]
[]
[14,30,35,53,72]
[9,27,40,52,69]
[2,17,null,48,62]
[7,28,38,55,66]
[12,22,41,59,75]
[null,null,null,null,{"$f":"+E29+1","v":6}]
[]
[2,19,40,57,64]
[5,22,33,47,71]
[14,20,null,60,62]
[4,17,37,49,61]
[9,25,36,58,65]
[null,null,null,null,{"$f":"+E36+1","v":7}]
[]
[10,18,31,60,71]
[12,20,41,56,75]
[5,26,null,59,68]
[13,28,32,48,63]
[15,30,34,54,73]
[null,null,null,null,{"$f":"+E43+1","v":8}]
[]
[4,20,35,59,62]
[1,28,40,57,69]
[7,26,null,52,75]
[14,22,42,47,74]
[5,25,41,60,68]
[null,null,null,null,{"$f":"+E50+1","v":9}]
[]
[15,17,43,55,67]
[14,24,44,51,63]
[1,25,null,48,71]
[3,18,37,56,61]
[7,30,31,60,72]
[null,null,null,null,{"$f":"+E57+1","v":10}]
[]
[8,18,38,53,67]
[2,27,42,60,65]
[12,16,null,58,71]
[3,19,33,57,61]
[9,20,40,48,68]
[null,null,null,null,{"$f":"+E64+1","v":11}]
[]
[9,24,40,49,61]
[11,18,31,53,63]
[5,25,null,54,69]
[2,21,43,55,65]
[3,16,39,58,72]
[null,null,null,null,{"$f":"+E71+1","v":12}]
[]
[12,27,39,60,67]
[8,28,43,46,63]
[1,29,null,54,75]
[4,18,36,57,66]
[9,22,45,53,68]
[null,null,null,null,{"$f":"+E78+1","v":13}]
[]
[5,19,45,46,70]
[8,30,42,49,72]
[2,16,null,59,69]
[14,17,31,53,68]
[1,22,35,54,67]
[null,null,null,null,{"$f":"+E85+1","v":14}]
[]
[8,23,31,57,63]
[6,26,32,48,71]
[11,21,null,46,69]
[3,25,34,49,70]
[1,27,36,60,68]
[null,null,null,null,{"$f":"+E92+1","v":15}]
[]
[12,29,41,52,75]
[5,16,31,50,61]
[1,27,null,57,70]
[2,20,44,48,68]
[9,30,38,60,62]
[null,null,null,null,{"$f":"+E99+1","v":16}]
[]
[12,16,42,60,61]
[6,26,31,58,66]
[1,20,null,57,69]
[8,18,37,54,70]
[2,24,38,52,72]
[null,null,null,null,{"$f":"+E106+1","v":17}]
[]
[6,21,43,58,71]
[9,16,34,59,67]
[4,30,null,56,65]
[8,17,37,57,72]
[2,20,35,46,75]
[null,null,null,null,{"$f":"+E113+1","v":18}]
[]
[14,21,38,48,70]
[6,18,39,56,67]
[3,22,null,52,74]
[4,23,40,59,62]
[12,20,43,49,72]
[null,null,null,null,{"$f":"+E120+1","v":19}]
[]
[13,19,32,55,61]
[4,28,42,48,62]
[11,16,null,50,68]
[7,24,35,53,65]
[10,30,39,57,64]
[null,null,null,null,{"$f":"+E127+1","v":20}]
[]
[7,29,32,60,65]
[3,24,38,46,68]
[5,25,null,51,70]
[10,20,42,50,61]
[14,17,45,56,66]
[null,null,null,null,{"$f":"+E134+1","v":21}]
[]
[11,16,33,55,63]
[14,27,42,46,68]
[10,24,null,49,70]
[13,21,35,51,61]
[5,28,32,52,62]
[null,null,null,null,{"$f":"+E141+1","v":22}]
[]
[5,21,32,47,63]
[15,22,34,48,70]
[3,16,null,57,67]
[12,26,39,49,62]
[14,20,38,50,72]
[null,null,null,null,{"$f":"+E148+1","v":23}]
[]
[13,19,42,52,68]
[5,25,33,50,70]
[14,28,null,51,63]
[12,20,39,57,69]
[8,17,38,54,74]
[null,null,null,null,{"$f":"+E155+1","v":24}]
[]
[7,30,37,48,64]
[11,17,42,55,74]
[1,26,null,47,75]
[4,18,31,49,69]
[3,27,32,60,70]
[null,null,null,null,{"$f":"+E162+1","v":25}]
[]
[5,27,41,60,65]
[8,30,31,58,66]
[13,25,null,57,63]
[14,26,40,49,70]
[9,16,43,50,61]
[null,null,null,null,{"$f":"+E169+1","v":26}]
[]
[6,27,31,60,66]
[9,29,37,59,73]
[10,26,null,52,61]
[2,20,32,48,67]
[11,22,34,46,71]
[null,null,null,null,{"$f":"+E176+1","v":27}]
[]
[14,16,45,52,70]
[9,25,37,56,74]
[11,28,null,59,65]
[10,22,42,47,75]
[6,29,44,57,66]
[null,null,null,null,{"$f":"+E183+1","v":28}]
[]
[11,20,45,51,74]
[9,23,33,56,72]
[13,27,null,54,68]
[2,24,40,50,69]
[4,25,39,47,64]
[null,null,null,null,{"$f":"+E190+1","v":29}]
[]
[10,27,35,52,68]
[1,23,44,51,73]
[7,20,null,49,74]
[9,30,41,48,69]
[13,19,37,47,66]
[null,null,null,null,{"$f":"+E197+1","v":30}]
[]
[1,17,40,49,71]
[12,27,31,53,64]
[5,19,null,55,66]
[13,16,41,59,72]
[15,23,42,47,73]
[null,null,null,null,{"$f":"+E204+1","v":31}]
[]
[5,24,45,59,68]
[7,28,37,47,64]
[12,25,null,50,70]
[9,19,38,58,65]
[1,23,40,54,71]
[null,null,null,null,{"$f":"+E211+1","v":32}]
[]
[1,25,40,58,74]
[2,18,31,53,72]
[14,24,null,56,66]
[12,26,38,52,61]
[15,22,37,54,62]
[null,null,null,null,{"$f":"+E218+1","v":33}]
[]
[6,17,43,53,65]
[1,18,45,48,72]
[3,23,null,51,70]
[8,16,42,56,69]
[12,30,44,49,74]
[null,null,null,null,{"$f":"+E225+1","v":34}]
[]
[2,24,36,48,70]
[7,17,44,58,66]
[3,21,null,51,67]
[13,25,40,55,69]
[5,28,38,49,68]
[null,null,null,null,{"$f":"+E232+1","v":35}]
[]
[2,17,38,50,72]
[10,19,35,49,74]
[11,20,null,57,66]
[8,27,39,52,70]
[3,16,43,54,61]
[null,null,null,null,{"$f":"+E239+1","v":36}]
[]
[10,23,38,56,61]
[12,28,34,54,67]
[14,24,null,59,70]
[2,21,41,58,69]
[11,16,33,49,72]
[null,null,null,null,{"$f":"+E246+1","v":37}]
[]
[8,20,32,48,61]
[1,29,34,49,63]
[7,19,null,46,75]
[12,22,41,52,71]
[11,23,36,59,67]
[null,null,null,null,{"$f":"+E253+1","v":38}]
[]
[15,24,43,52,72]
[6,16,34,55,62]
[3,29,null,57,65]
[9,19,39,50,66]
[1,18,36,54,63]
[null,null,null,null,{"$f":"+E260+1","v":39}]
[]
[9,26,39,59,68]
[12,24,36,46,61]
[6,19,null,52,71]
[13,18,44,53,64]
[14,27,35,54,63]
[null,null,null,null,{"$f":"+E267+1","v":40}]
[]
[2,27,42,47,68]
[3,22,37,53,67]
[4,18,null,48,66]
[12,16,45,54,70]
[15,23,41,49,73]
[null,null,null,null,{"$f":"+E274+1","v":41}]
[]
[6,19,38,46,75]
[9,22,32,48,65]
[11,27,null,52,67]
[2,23,40,51,61]
[13,21,44,47,66]
[null,null,null,null,{"$f":"+E281+1","v":42}]
[]
[6,21,45,46,71]
[1,23,42,50,67]
[5,18,null,57,63]
[9,17,33,56,74]
[3,30,36,49,64]
[null,null,null,null,{"$f":"+E288+1","v":43}]
[]
[7,27,42,48,69]
[15,17,43,54,70]
[3,24,null,60,67]
[11,22,31,46,75]
[14,26,39,56,71]
[null,null,null,null,{"$f":"+E295+1","v":44}]
[]
[9,29,40,51,69]
[8,24,33,60,74]
[11,17,null,58,72]
[5,20,35,49,73]
[14,19,31,57,66]
[null,null,null,null,{"$f":"+E302+1","v":45}]
[]
[10,27,43,47,70]
[14,24,31,57,69]
[3,16,null,48,68]
[15,18,34,53,64]
[13,19,32,58,66]
[null,null,null,null,{"$f":"+E309+1","v":46}]
[]
[6,29,43,50,69]
[7,18,42,55,66]
[5,25,null,46,67]
[11,30,31,48,71]
[4,24,45,54,70]
[null,null,null,null,{"$f":"+E316+1","v":47}]
[]
[14,19,41,54,65]
[6,17,32,48,74]
[5,28,null,59,62]
[12,22,36,47,70]
[15,30,40,51,67]
[null,null,null,null,{"$f":"+E323+1","v":48}]
[]
[1,29,32,50,72]
[7,28,38,49,65]
[12,30,null,56,71]
[14,20,34,53,74]
[11,24,44,48,68]
[null,null,null,null,{"$f":"+E330+1","v":49}]
[]
[5,21,42,49,68]
[10,26,31,55,66]
[1,29,null,47,65]
[13,18,45,48,74]
[7,30,44,50,69]
[null,null,null,null,{"$f":"+E337+1","v":50}]
[]
[7,30,31,49,63]
[8,27,40,50,64]
[6,28,null,47,67]
[5,17,41,60,73]
[12,23,39,48,65]
[null,null,null,null,{"$f":"+E344+1","v":51}]
[]
[11,25,43,46,64]
[14,24,31,52,65]
[10,23,null,47,75]
[13,29,37,53,66]
[15,28,32,48,73]
[null,null,null,null,{"$f":"+E351+1","v":52}]
[]
[1,28,43,52,73]
[2,18,35,49,72]
[5,26,null,55,67]
[7,25,38,59,71]
[10,21,32,56,74]
[null,null,null,null,{"$f":"+E358+1","v":53}]
[]
[2,26,41,52,62]
[4,25,44,58,70]
[9,19,null,48,74]
[11,18,45,60,71]
[5,22,38,53,63]
[null,null,null,null,{"$f":"+E365+1","v":54}]
[]
[15,23,38,48,69]
[10,24,34,52,71]
[9,30,null,54,63]
[14,26,45,47,65]
[6,27,33,56,66]
[null,null,null,null,{"$f":"+E372+1","v":55}]
[]
[4,16,32,51,73]
[10,21,36,52,74]
[5,18,null,57,69]
[14,23,31,53,72]
[11,17,33,55,70]
[null,null,null,null,{"$f":"+E379+1","v":56}]
[]
[2,23,45,47,70]
[6,28,35,55,61]
[4,24,null,57,68]
[11,16,37,60,71]
[1,18,43,52,72]
[null,null,null,null,{"$f":"+E386+1","v":57}]
[]
[11,26,41,60,68]
[4,24,43,52,62]
[1,25,null,47,73]
[3,21,44,46,67]
[6,29,42,48,70]
[null,null,null,null,{"$f":"+E393+1","v":58}]
[]
[11,23,34,49,73]
[10,22,41,57,67]
[3,25,null,56,72]
[1,28,42,46,70]
[15,20,37,55,62]
[null,null,null,null,{"$f":"+E400+1","v":59}]
[]
[12,30,44,51,61]
[8,29,34,59,75]
[3,26,null,50,73]
[5,23,38,54,63]
[11,28,33,47,68]
[null,null,null,null,{"$f":"+E407+1","v":60}]
[]
[12,28,43,57,68]
[3,20,40,50,74]
[10,30,null,59,69]
[13,25,32,55,72]
[6,29,33,52,65]
[null,null,null,null,{"$f":"+E414+1","v":61}]
[]
[15,27,32,60,74]
[2,24,33,47,64]
[1,23,null,51,68]
[12,18,40,46,62]
[6,19,44,55,75]
[null,null,null,null,{"$f":"+E421+1","v":62}]
[]
[4,28,42,51,65]
[15,27,44,47,64]
[2,26,null,55,71]
[1,21,33,53,74]
[14,24,41,48,63]
[null,null,null,null,{"$f":"+E428+1","v":63}]
[]
[5,16,37,58,61]
[11,30,43,56,63]
[9,20,null,52,70]
[1,22,35,55,64]
[8,25,39,46,73]
[null,null,null,null,{"$f":"+E435+1","v":64}]
[]
[2,18,41,47,68]
[14,26,36,48,72]
[11,30,null,54,67]
[1,20,43,51,61]
[8,19,33,46,65]
[null,null,null,null,{"$f":"+E442+1","v":65}]
[]
[12,30,31,53,64]
[6,28,35,58,70]
[15,18,null,52,63]
[10,16,44,49,62]
[11,26,45,47,71]
[null,null,null,null,{"$f":"+E449+1","v":66}]
[]
[1,18,44,46,73]
[13,23,38,55,64]
[6,28,null,56,61]
[10,24,43,54,65]
[7,26,31,52,66]
[null,null,null,null,{"$f":"+E456+1","v":67}]
[]
[4,24,45,58,75]
[14,26,32,59,69]
[9,25,null,54,62]
[1,17,38,57,71]
[3,30,37,55,70]
[null,null,null,null,{"$f":"+E463+1","v":68}]
[]
[3,16,33,47,62]
[15,19,35,58,72]
[5,23,null,49,66]
[7,22,31,60,69]
[8,27,38,55,70]
[null,null,null,null,{"$f":"+E470+1","v":69}]
[]
[7,24,32,48,70]
[1,18,36,57,72]
[5,30,null,49,65]
[4,16,39,46,63]
[3,28,37,47,75]
[null,null,null,null,{"$f":"+E477+1","v":70}]
[]
[13,16,45,57,73]
[11,17,33,58,61]
[10,24,null,54,63]
[12,29,36,55,71]
[15,18,37,56,68]
[null,null,null,null,{"$f":"+E484+1","v":71}]
[]
[15,30,33,49,64]
[12,23,32,51,63]
[1,24,null,47,67]
[8,26,36,53,66]
[11,17,31,55,71]
[null,null,null,null,{"$f":"+E491+1","v":72}]
[]
[4,28,39,57,65]
[13,24,43,60,75]
[15,19,null,52,67]
[6,17,42,46,70]
[5,20,44,54,74]
[null,null,null,null,{"$f":"+E498+1","v":73}]
[]
[11,26,37,57,63]
[10,20,44,50,61]
[2,18,null,56,69]
[12,25,42,53,67]
[13,23,41,60,62]
[null,null,null,null,{"$f":"+E505+1","v":74}]
[]
[12,22,32,52,63]
[15,19,36,59,64]
[4,17,null,48,61]
[9,20,43,50,73]
[13,25,41,54,72]
[null,null,null,null,{"$f":"+E512+1","v":75}]
[]
[1,18,31,57,65]
[3,28,42,49,67]
[9,24,null,47,70]
[14,22,39,56,73]
[6,30,44,52,64]
[null,null,null,null,{"$f":"+E519+1","v":76}]
[]
[4,20,40,52,68]
[8,24,36,46,65]
[6,19,null,58,75]
[10,29,32,56,63]
[12,23,35,49,69]
[null,null,null,null,{"$f":"+E526+1","v":77}]
[]
[12,27,38,47,70]
[15,17,35,49,69]
[7,21,null,59,67]
[4,18,32,60,65]
[1,29,37,52,73]
[null,null,null,null,{"$f":"+E533+1","v":78}]
[]
[4,22,31,58,62]
[3,21,38,59,71]
[9,27,null,56,75]
[2,26,32,55,73]
[7,20,35,60,65]
[null,null,null,null,{"$f":"+E540+1","v":79}]
[]
[13,16,40,51,73]
[10,27,45,47,61]
[6,20,null,49,69]
[15,17,42,58,65]
[11,30,36,54,74]
[null,null,null,null,{"$f":"+E547+1","v":80}]
[]
[13,24,43,58,69]
[3,25,33,56,66]
[12,30,null,51,68]
[2,19,31,54,64]
[6,23,42,53,65]
[null,null,null,null,{"$f":"+E554+1","v":81}]
[]
[3,30,39,58,62]
[11,17,33,49,66]
[8,18,null,54,68]
[14,27,31,52,73]
[7,28,37,46,72]
[null,null,null,null,{"$f":"+E561+1","v":82}]
[]
[9,30,42,57,71]
[4,27,33,50,72]
[2,24,null,48,62]
[3,17,35,54,67]
[5,20,31,60,61]
[null,null,null,null,{"$f":"+E568+1","v":83}]
[]
[12,24,32,46,67]
[3,21,36,49,71]
[9,22,null,50,63]
[11,29,42,55,68]
[13,18,44,52,75]
[null,null,null,null,{"$f":"+E575+1","v":84}]
[]
[5,25,34,51,69]
[13,30,33,49,66]
[9,16,null,55,63]
[3,20,31,56,73]
[11,28,38,50,61]
[null,null,null,null,{"$f":"+E582+1","v":85}]
[]
[15,26,35,49,74]
[9,24,42,53,75]
[1,28,null,50,69]
[7,27,37,58,61]
[12,21,31,56,63]
[null,null,null,null,{"$f":"+E589+1","v":86}]
[]
[6,28,35,55,68]
[9,16,36,58,61]
[14,29,null,56,64]
[12,27,33,51,74]
[15,24,41,53,62]
[null,null,null,null,{"$f":"+E596+1","v":87}]
[]
[12,29,44,51,64]
[15,27,43,49,69]
[5,16,null,53,72]
[1,26,37,56,66]
[3,17,36,58,70]
[null,null,null,null,{"$f":"+E603+1","v":88}]
[]
[12,22,44,49,73]
[5,30,43,58,68]
[2,25,null,47,69]
[9,21,38,56,67]
[11,23,41,60,72]
[null,null,null,null,{"$f":"+E610+1","v":89}]
[]
[5,22,42,51,73]
[8,27,38,55,65]
[9,29,null,56,72]
[3,25,32,46,64]
[2,17,33,58,67]
[null,null,null,null,{"$f":"+E617+1","v":90}]
[]
[7,18,32,55,65]
[3,28,34,59,73]
[6,24,null,53,67]
[2,27,45,49,69]
[4,23,38,54,74]
[null,null,null,null,{"$f":"+E624+1","v":91}]
[]
[4,25,40,56,66]
[10,29,31,55,70]
[6,27,null,46,75]
[3,16,42,52,63]
[7,23,44,59,61]
[null,null,null,null,{"$f":"+E631+1","v":92}]
[]
[11,21,31,50,73]
[2,28,35,47,72]
[6,22,null,46,62]
[8,23,34,55,71]
[5,25,39,49,66]
[null,null,null,null,{"$f":"+E638+1","v":93}]
[]
[13,16,33,55,69]
[4,22,42,53,61]
[3,21,null,46,72]
[9,20,32,51,66]
[2,24,35,58,71]
[null,null,null,null,{"$f":"+E645+1","v":94}]
[]
[1,27,33,59,73]
[11,26,31,50,67]
[8,24,null,54,62]
[3,25,32,53,72]
[7,29,39,47,71]
[null,null,null,null,{"$f":"+E652+1","v":95}]
[]
[1,21,41,49,65]
[8,30,36,50,63]
[6,17,null,55,70]
[12,28,37,47,61]
[5,25,40,52,64]
[null,null,null,null,{"$f":"+E659+1","v":96}]
[]
[15,30,40,60,64]
[4,22,34,56,72]
[3,21,null,52,61]
[9,20,44,51,67]
[11,26,38,49,65]
[null,null,null,null,{"$f":"+E666+1","v":97}]
[]
[1,19,35,58,65]
[3,23,33,54,62]
[2,27,null,53,68]
[11,18,40,55,61]
[10,17,31,60,74]
[null,null,null,null,{"$f":"+E673+1","v":98}]
[]
[6,19,42,48,64]
[5,22,32,55,69]
[7,26,null,56,71]
[15,21,31,60,62]
[2,24,33,53,65]
[null,null,null,null,{"$f":"+E680+1","v":99}]
[]
[6,16,38,57,62]
[9,29,39,50,70]
[4,21,null,47,65]
[14,27,31,56,72]
[1,28,34,53,71]
[null,null,null,null,{"$f":"+E687+1","v":100}]
[]
[1,20,34,57,73]
[2,30,43,49,74]
[8,17,null,48,68]
[11,21,31,53,71]
[14,26,38,54,64]
[null,null,null,null,{"$f":"+E694+1","v":101}]
[]
[1,30,34,53,74]
[4,17,44,49,65]
[6,29,null,56,71]
[12,20,33,46,67]
[13,22,45,57,73]
[null,null,null,null,{"$f":"+E701+1","v":102}]
[]
[8,18,45,48,71]
[14,22,40,55,68]
[1,20,null,47,64]
[5,27,35,52,61]
[3,29,32,50,65]
[null,null,null,null,{"$f":"+E708+1","v":103}]
[]
[6,17,33,58,72]
[8,29,32,46,66]
[13,22,null,60,65]
[3,27,38,51,68]
[12,18,39,52,71]
[null,null,null,null,{"$f":"+E715+1","v":104}]
[]
[3,27,41,59,68]
[12,23,34,54,73]
[15,21,null,51,75]
[10,28,39,53,62]
[13,25,44,58,74]
[null,null,null,null,{"$f":"+E722+1","v":105}]
[]
[5,26,34,46,73]
[2,22,42,50,68]
[13,18,null,52,63]
[10,19,45,47,67]
[1,25,35,49,61]
[null,null,null,null,{"$f":"+E729+1","v":106}]
[]
[9,23,39,50,72]
[15,24,36,46,63]
[10,29,null,59,71]
[4,16,32,58,74]
[6,26,41,60,67]
[null,null,null,null,{"$f":"+E736+1","v":107}]
[]
[5,27,35,48,65]
[7,30,45,49,63]
[12,20,null,57,61]
[4,29,32,53,69]
[11,18,34,56,75]
[null,null,null,null,{"$f":"+E743+1","v":108}]
[]
[12,18,44,55,64]
[14,24,41,56,61]
[1,22,null,53,71]
[11,16,42,51,66]
[2,28,34,46,74]
[null,null,null,null,{"$f":"+E750+1","v":109}]
[]
[14,16,36,57,65]
[6,29,37,46,64]
[5,24,null,56,72]
[2,23,33,58,67]
[8,19,38,52,68]
[null,null,null,null,{"$f":"+E757+1","v":110}]
[]
[7,21,38,60,67]
[2,23,37,47,73]
[13,17,null,54,75]
[12,19,31,55,66]
[10,24,41,49,70]
[null,null,null,null,{"$f":"+E764+1","v":111}]
[]
[2,24,41,56,65]
[9,29,35,57,62]
[10,21,null,53,67]
[11,18,40,48,75]
[8,27,39,49,61]
[null,null,null,null,{"$f":"+E771+1","v":112}]
[]
[10,23,39,46,75]
[5,27,34,55,67]
[13,29,null,52,62]
[14,25,33,50,69]
[4,17,43,57,68]
[null,null,null,null,{"$f":"+E778+1","v":113}]
[]
[1,18,35,49,73]
[9,16,45,58,64]
[4,17,null,52,70]
[15,19,32,48,61]
[2,24,31,55,72]
[null,null,null,null,{"$f":"+E785+1","v":114}]
[]
[11,26,43,46,75]
[1,25,34,50,63]
[4,30,null,53,70]
[5,28,32,49,65]
[8,19,45,60,73]
[null,null,null,null,{"$f":"+E792+1","v":115}]
[]
[11,21,40,46,74]
[3,27,34,57,66]
[1,16,null,56,72]
[7,26,43,49,62]
[14,25,41,48,69]
[null,null,null,null,{"$f":"+E799+1","v":116}]
[]
[13,28,35,55,69]
[11,17,40,59,67]
[15,25,null,56,73]
[5,19,45,60,71]
[12,20,39,48,74]
[null,null,null,null,{"$f":"+E806+1","v":117}]
[]
[5,29,42,46,63]
[10,24,45,48,62]
[4,27,null,47,68]
[15,16,35,51,65]
[1,25,37,59,67]
[null,null,null,null,{"$f":"+E813+1","v":118}]
[]
[3,26,32,54,65]
[14,24,45,58,72]
[9,22,null,51,74]
[2,25,31,55,68]
[8,29,35,57,67]
[null,null,null,null,{"$f":"+E820+1","v":119}]
[]
[15,24,42,47,67]
[1,28,37,60,75]
[7,29,null,50,68]
[4,21,38,49,74]
[9,16,41,58,62]
[null,null,null,null,{"$f":"+E827+1","v":120}]
[]
[8,28,32,51,66]
[15,19,42,58,64]
[13,22,null,48,73]
[11,18,37,60,61]
[14,23,34,57,75]
[null,null,null,null,{"$f":"+E834+1","v":121}]
[]
[5,28,45,50,70]
[14,25,43,47,73]
[10,18,null,49,72]
[15,24,39,48,67]
[13,26,35,57,71]
[null,null,null,null,{"$f":"+E841+1","v":122}]
[]
[7,27,44,58,69]
[14,16,41,46,66]
[10,21,null,51,75]
[9,17,42,47,63]
[1,19,33,57,68]
[null,null,null,null,{"$f":"+E848+1","v":123}]
[]
[6,25,36,49,68]
[3,24,33,54,73]
[4,23,null,50,64]
[7,18,39,59,69]
[12,21,42,56,63]
[null,null,null,null,{"$f":"+E855+1","v":124}]
[]
[1,24,43,51,67]
[12,19,34,49,61]
[2,28,null,58,62]
[7,20,35,59,65]
[10,26,45,46,70]
[null,null,null,null,{"$f":"+E862+1","v":125}]
[]
[3,30,43,50,67]
[15,26,40,46,70]
[9,22,null,49,62]
[1,29,34,55,63]
[2,21,41,53,64]
[null,null,null,null,{"$f":"+E869+1","v":126}]
[]
[1,30,45,55,65]
[15,22,42,52,72]
[13,16,null,51,69]
[3,19,43,54,68]
[11,25,41,47,63]
[null,null,null,null,{"$f":"+E876+1","v":127}]
[]
[4,23,31,49,75]
[12,25,33,54,67]
[5,21,null,53,70]
[10,19,40,48,65]
[8,24,45,58,66]
[null,null,null,null,{"$f":"+E883+1","v":128}]
[]
[11,21,40,51,72]
[8,23,34,48,68]
[4,27,null,52,73]
[12,17,37,47,66]
[5,18,42,53,69]
[null,null,null,null,{"$f":"+E890+1","v":129}]
[]
[3,21,31,59,71]
[13,22,32,46,72]
[11,17,null,48,73]
[5,29,41,54,68]
[4,20,35,47,75]
[null,null,null,null,{"$f":"+E897+1","v":130}]
[]
[6,29,38,49,63]
[1,28,45,46,70]
[7,25,null,59,62]
[8,24,39,48,68]
[4,22,37,54,61]
[null,null,null,null,{"$f":"+E904+1","v":131}]
[]
[8,16,38,60,75]
[5,18,35,47,70]
[3,29,null,58,67]
[6,20,43,53,62]
[9,21,39,56,71]
[null,null,null,null,{"$f":"+E911+1","v":132}]
[]
[7,19,35,48,68]
[14,16,32,54,63]
[3,21,null,57,69]
[9,25,39,50,67]
[4,20,38,49,71]
[null,null,null,null,{"$f":"+E918+1","v":133}]
[]
[1,22,41,46,72]
[12,29,39,58,67]
[10,18,null,55,65]
[14,27,33,48,70]
[5,21,31,59,69]
[null,null,null,null,{"$f":"+E925+1","v":134}]
[]
[4,22,41,50,65]
[13,24,34,57,69]
[10,16,null,55,70]
[11,25,44,58,75]
[8,21,38,59,64]
[null,null,null,null,{"$f":"+E932+1","v":135}]
[]
[12,16,34,58,71]
[7,28,40,54,74]
[4,23,null,57,70]
[10,26,36,60,69]
[14,19,38,52,66]
[null,null,null,null,{"$f":"+E939+1","v":136}]
[]
[10,27,33,58,70]
[9,17,45,51,71]
[1,23,null,46,69]
[2,20,35,59,73]
[6,18,42,52,63]
[null,null,null,null,{"$f":"+E946+1","v":137}]
[]
[15,20,37,54,70]
[11,25,38,59,75]
[7,28,null,51,68]
[12,24,40,47,65]
[3,16,35,53,74]
[null,null,null,null,{"$f":"+E953+1","v":138}]
[]
[14,26,40,49,71]
[4,22,36,52,70]
[1,24,null,58,66]
[8,27,34,59,61]
[15,20,31,57,73]
[null,null,null,null,{"$f":"+E960+1","v":139}]
[]
[5,20,37,59,62]
[13,18,39,54,63]
[3,25,null,53,73]
[7,24,34,55,66]
[9,22,44,56,68]
[null,null,null,null,{"$f":"+E967+1","v":140}]
[]
[5,25,42,58,71]
[10,24,31,47,61]
[1,20,null,52,63]
[4,18,37,59,67]
[14,27,34,49,72]
[null,null,null,null,{"$f":"+E974+1","v":141}]
[]
[13,24,39,50,65]
[7,21,31,58,62]
[15,29,null,52,74]
[14,19,36,48,67]
[11,27,44,59,71]
[null,null,null,null,{"$f":"+E981+1","v":142}]
[]
[8,25,44,56,63]
[12,18,40,49,65]
[9,28,null,54,74]
[14,19,39,60,75]
[10,20,42,55,69]
[null,null,null,null,{"$f":"+E988+1","v":143}]
[]
[8,27,45,46,69]
[14,21,41,57,65]
[3,23,null,47,63]
[6,28,39,48,66]
[4,26,44,60,72]
[null,null,null,null,{"$f":"+E995+1","v":144}]
[]
[3,26,36,48,71]
[7,17,45,58,62]
[2,20,null,55,65]
[13,27,39,54,70]
[15,19,38,60,75]
[null,null,null,null,{"$f":"+E1002+1","v":145}]
[]
[6,24,35,54,73]
[7,30,32,58,67]
[1,23,null,46,61]
[15,18,43,55,68]
[4,17,45,60,64]
[null,null,null,null,{"$f":"+E1009+1","v":146}]
[]
[10,23,36,54,66]
[6,17,42,50,61]
[14,26,null,53,75]
[3,25,41,59,64]
[12,20,34,46,68]
[null,null,null,null,{"$f":"+E1016+1","v":147}]
[]
[10,22,38,46,68]
[7,27,43,48,73]
[4,29,null,56,75]
[5,28,36,47,66]
[6,21,45,55,65]
[null,null,null,null,{"$f":"+E1023+1","v":148}]
[]
[4,17,44,52,72]
[2,26,36,58,61]
[12,29,null,48,73]
[6,30,34,53,68]
[8,19,45,60,75]
[null,null,null,null,{"$f":"+E1030+1","v":149}]
[]
[1,23,42,48,71]
[5,25,38,55,65]
[3,29,null,59,73]
[8,17,31,53,70]
[10,26,35,54,67]
[null,null,null,null,{"$f":"+E1037+1","v":150}]
[]
[9,25,37,60,73]
[11,24,45,58,64]
[14,30,null,59,70]
[12,27,42,47,68]
[8,16,44,46,71]
[null,null,null,null,{"$f":"+E1044+1","v":151}]
[]
[8,26,44,56,63]
[6,20,32,59,65]
[9,29,null,53,72]
[2,18,35,49,73]
[15,22,39,46,61]
[null,null,null,null,{"$f":"+E1051+1","v":152}]
[]
[9,29,32,46,70]
[6,16,39,54,61]
[13,17,null,57,62]
[10,27,34,53,71]
[14,28,31,48,65]
[null,null,null,null,{"$f":"+E1058+1","v":153}]
[]
[11,28,41,50,66]
[9,27,39,56,61]
[5,21,null,58,72]
[14,30,35,53,74]
[3,23,34,57,68]
[null,null,null,null,{"$f":"+E1065+1","v":154}]
[]
[8,18,43,52,71]
[10,24,32,60,70]
[7,16,null,58,75]
[1,21,33,53,66]
[2,17,39,54,62]
[null,null,null,null,{"$f":"+E1072+1","v":155}]
[]
[12,16,41,50,62]
[13,25,43,60,65]
[3,28,null,52,74]
[10,18,38,56,73]
[15,27,34,59,61]
[null,null,null,null,{"$f":"+E1079+1","v":156}]
[]
[7,30,36,48,75]
[8,23,32,56,66]
[6,16,null,54,68]
[12,22,39,46,73]
[14,29,37,60,65]
[null,null,null,null,{"$f":"+E1086+1","v":157}]
[]
[1,17,38,60,65]
[10,18,42,51,75]
[3,27,null,50,68]
[4,26,31,55,69]
[6,24,34,53,74]
[null,null,null,null,{"$f":"+E1093+1","v":158}]
[]
[9,20,39,49,65]
[12,23,36,57,74]
[10,21,null,52,75]
[14,16,37,50,71]
[1,27,43,58,73]
[null,null,null,null,{"$f":"+E1100+1","v":159}]
[]
[4,18,32,52,70]
[15,20,35,53,69]
[13,19,null,57,73]
[6,22,42,46,66]
[3,21,38,48,67]
[null,null,null,null,{"$f":"+E1107+1","v":160}]
[]
[8,29,35,58,62]
[3,24,45,51,68]
[4,19,null,52,61]
[12,18,41,56,64]
[2,16,34,55,74]
[null,null,null,null,{"$f":"+E1114+1","v":161}]
[]
[5,23,32,53,66]
[7,19,31,60,64]
[2,16,null,47,75]
[14,30,44,55,61]
[3,20,35,56,74]
[null,null,null,null,{"$f":"+E1121+1","v":162}]
[]
[10,27,38,47,73]
[7,22,31,50,71]
[4,20,null,52,68]
[12,18,42,51,66]
[1,21,44,54,63]
[null,null,null,null,{"$f":"+E1128+1","v":163}]
[]
[15,29,32,51,74]
[3,17,35,47,67]
[14,18,null,54,68]
[4,27,41,59,61]
[5,22,38,53,70]
[null,null,null,null,{"$f":"+E1135+1","v":164}]
[]
[8,19,44,49,71]
[1,21,31,58,66]
[10,17,null,59,68]
[3,18,39,54,63]
[2,29,36,48,64]
[null,null,null,null,{"$f":"+E1142+1","v":165}]
[]
[12,24,34,49,72]
[10,22,42,59,69]
[4,28,null,55,62]
[2,17,37,56,75]
[7,21,35,52,63]
[null,null,null,null,{"$f":"+E1149+1","v":166}]
[]
[5,21,40,55,61]
[13,24,35,58,72]
[14,28,null,53,69]
[1,20,34,51,66]
[11,30,44,54,62]
[null,null,null,null,{"$f":"+E1156+1","v":167}]
[]
[5,26,35,51,73]
[7,19,39,52,64]
[8,21,null,59,68]
[1,23,45,53,75]
[6,18,37,47,63]
[null,null,null,null,{"$f":"+E1163+1","v":168}]
[]
[1,25,38,57,66]
[6,21,37,60,75]
[8,27,null,49,61]
[13,18,33,53,63]
[4,19,40,50,62]
[null,null,null,null,{"$f":"+E1170+1","v":169}]
[]
[14,19,44,51,72]
[7,28,43,50,61]
[4,29,null,56,66]
[8,20,36,57,73]
[1,30,41,60,69]
[null,null,null,null,{"$f":"+E1177+1","v":170}]
[]
[15,28,42,53,63]
[7,20,33,59,68]
[6,24,null,47,66]
[10,16,31,56,72]
[9,25,34,51,61]
[null,null,null,null,{"$f":"+E1184+1","v":171}]
[]
[8,23,43,58,61]
[9,20,36,56,72]
[5,21,null,50,65]
[4,19,38,60,70]
[13,30,34,53,69]
[null,null,null,null,{"$f":"+E1191+1","v":172}]
[]
[3,17,41,54,75]
[6,30,32,47,71]
[4,28,null,50,72]
[5,27,44,56,64]
[14,24,40,46,62]
[null,null,null,null,{"$f":"+E1198+1","v":173}]
[]
[3,28,31,46,72]
[1,25,32,54,73]
[9,26,null,59,65]
[5,18,40,57,71]
[6,30,35,52,61]
[null,null,null,null,{"$f":"+E1205+1","v":174}]
[]
[10,22,42,55,75]
[3,19,39,52,64]
[8,18,null,57,68]
[9,25,33,47,71]
[14,17,38,59,72]
[null,null,null,null,{"$f":"+E1212+1","v":175}]
[]
[15,24,45,51,73]
[8,23,39,53,70]
[6,25,null,50,62]
[12,26,33,56,65]
[3,18,41,55,74]
[null,null,null,null,{"$f":"+E1219+1","v":176}]
[]
[15,26,40,55,64]
[2,30,32,56,65]
[13,22,null,60,69]
[5,17,35,53,67]
[12,28,34,49,74]
[null,null,null,null,{"$f":"+E1226+1","v":177}]
[]
[12,21,41,54,66]
[5,25,40,58,67]
[2,22,null,55,70]
[9,23,44,51,71]
[1,28,33,59,72]
[null,null,null,null,{"$f":"+E1233+1","v":178}]
[]
[15,17,36,49,74]
[7,28,45,56,65]
[8,16,null,55,63]
[1,29,44,58,72]
[4,27,41,50,69]
[null,null,null,null,{"$f":"+E1240+1","v":179}]
[]
[3,28,45,52,71]
[14,18,43,55,63]
[11,23,null,60,65]
[5,17,34,59,64]
[9,19,33,47,61]
[null,null,null,null,{"$f":"+E1247+1","v":180}]
[]
[8,17,39,58,72]
[13,18,45,49,68]
[7,23,null,48,71]
[15,26,37,54,67]
[3,16,32,51,70]
[null,null,null,null,{"$f":"+E1254+1","v":181}]
[]
[3,30,33,54,66]
[15,23,36,56,67]
[14,17,null,59,74]
[6,29,39,58,75]
[9,24,42,55,63]
[null,null,null,null,{"$f":"+E1261+1","v":182}]
[]
[13,19,33,53,74]
[3,20,38,48,73]
[1,23,null,59,68]
[14,21,44,57,62]
[5,28,31,52,64]
[null,null,null,null,{"$f":"+E1268+1","v":183}]
[]
[11,26,43,54,72]
[15,23,42,60,69]
[6,20,null,58,75]
[8,24,33,51,63]
[5,27,35,47,70]
[null,null,null,null,{"$f":"+E1275+1","v":184}]
[]
[11,28,44,55,62]
[15,17,34,57,63]
[5,22,null,48,70]
[6,19,37,54,68]
[8,26,36,46,73]
[null,null,null,null,{"$f":"+E1282+1","v":185}]
[]
[14,20,40,58,62]
[5,23,39,57,73]
[6,19,null,51,67]
[13,26,33,50,74]
[7,16,31,52,63]
[null,null,null,null,{"$f":"+E1289+1","v":186}]
[]
[6,18,36,57,62]
[1,17,45,58,64]
[11,24,null,59,73]
[7,27,34,55,71]
[9,21,40,49,72]
[null,null,null,null,{"$f":"+E1296+1","v":187}]
[]
[1,21,38,50,75]
[15,20,34,49,74]
[11,17,null,59,62]
[3,19,37,46,61]
[10,18,35,52,65]
[null,null,null,null,{"$f":"+E1303+1","v":188}]
[]
[8,24,38,56,74]
[14,19,35,52,68]
[9,23,null,58,65]
[2,17,36,55,61]
[10,18,33,59,70]
[null,null,null,null,{"$f":"+E1310+1","v":189}]
[]
[1,20,37,59,67]
[3,22,32,46,63]
[2,19,null,57,70]
[13,27,33,48,66]
[6,23,45,50,71]
[null,null,null,null,{"$f":"+E1317+1","v":190}]
[]
[1,26,44,54,64]
[3,28,36,50,73]
[10,17,null,53,62]
[9,20,34,56,66]
[15,27,31,55,61]
[null,null,null,null,{"$f":"+E1324+1","v":191}]
[]
[11,16,39,47,72]
[7,17,32,53,68]
[13,29,null,51,75]
[8,18,42,48,63]
[4,19,44,46,74]
[null,null,null,null,{"$f":"+E1331+1","v":192}]
[]
[1,25,42,57,63]
[10,23,41,50,74]
[8,26,null,59,75]
[9,20,44,55,65]
[6,27,40,49,72]
[null,null,null,null,{"$f":"+E1338+1","v":193}]
[]
[13,29,44,54,68]
[5,19,37,47,63]
[15,26,null,51,72]
[14,30,41,60,65]
[1,27,45,59,64]
[null,null,null,null,{"$f":"+E1345+1","v":194}]
[]
[12,28,35,60,64]
[15,27,39,50,68]
[3,25,null,48,71]
[6,30,45,57,74]
[1,17,44,52,75]
[null,null,null,null,{"$f":"+E1352+1","v":195}]
[]
[13,25,41,60,61]
[2,22,45,54,70]
[12,16,null,57,69]
[3,21,35,55,75]
[10,18,39,51,71]
[null,null,null,null,{"$f":"+E1359+1","v":196}]
[]
[11,22,43,52,72]
[15,21,31,51,73]
[4,17,null,55,61]
[12,18,39,49,64]
[2,20,33,58,66]
[null,null,null,null,{"$f":"+E1366+1","v":197}]
[]
[7,18,38,50,61]
[3,25,36,48,73]
[8,26,null,57,65]
[13,19,40,54,69]
[1,21,39,47,67]
[null,null,null,null,{"$f":"+E1373+1","v":198}]
[]
[7,16,38,60,69]
[6,17,43,57,70]
[1,28,null,49,75]
[11,26,42,54,66]
[10,27,45,55,62]
[null,null,null,null,{"$f":"+E1380+1","v":199}]
[]
[14,17,43,46,72]
[1,21,38,48,63]
[3,16,null,57,61]
[15,30,40,60,71]
[7,27,44,51,64]
[null,null,null,null,{"$f":"+E1387+1","v":200}]
[]
[5,23,44,60,63]
[15,19,34,49,67]
[14,30,null,54,66]
[4,20,33,58,74]
[13,18,36,53,71]
[null,null,null,null,{"$f":"+E1394+1","v":201}]
[]
[3,22,45,56,63]
[14,21,34,46,75]
[6,27,null,47,74]
[13,19,32,48,62]
[1,16,31,59,68]
[null,null,null,null,{"$f":"+E1401+1","v":202}]
[]
[4,25,32,56,75]
[14,30,36,46,69]
[2,22,null,57,64]
[3,17,31,55,73]
[5,27,37,50,72]
[null,null,null,null,{"$f":"+E1408+1","v":203}]
[]
[10,17,33,47,66]
[12,28,39,50,73]
[7,26,null,53,69]
[3,20,31,58,71]
[14,21,43,57,61]
[null,null,null,null,{"$f":"+E1415+1","v":204}]
[]
[12,25,32,58,67]
[2,20,38,49,73]
[5,28,null,52,72]
[8,22,40,54,61]
[1,19,41,56,74]
[null,null,null,null,{"$f":"+E1422+1","v":205}]
[]
[11,26,44,46,61]
[15,30,33,60,72]
[12,27,null,50,63]
[2,17,36,56,62]
[9,25,37,52,73]
[null,null,null,null,{"$f":"+E1429+1","v":206}]
[]
[8,16,39,50,62]
[11,30,42,46,74]
[5,28,null,48,73]
[9,20,40,49,75]
[15,23,45,56,67]
[null,null,null,null,{"$f":"+E1436+1","v":207}]
[]
[15,23,35,48,70]
[6,19,38,58,67]
[13,16,null,54,65]
[3,28,34,55,71]
[12,17,43,52,62]
[null,null,null,null,{"$f":"+E1443+1","v":208}]
[]
[9,26,39,60,63]
[2,21,34,47,66]
[3,30,null,51,68]
[11,22,45,58,62]
[1,27,38,50,73]
[null,null,null,null,{"$f":"+E1450+1","v":209}]
[]
[8,29,33,51,66]
[12,30,38,54,68]
[11,25,null,57,61]
[15,24,39,55,74]
[2,28,36,56,75]
[null,null,null,null,{"$f":"+E1457+1","v":210}]
[]
[4,18,31,52,72]
[7,22,39,56,67]
[13,29,null,46,73]
[6,24,38,59,69]
[3,21,36,48,64]
[null,null,null,null,{"$f":"+E1464+1","v":211}]
[]
[1,29,40,52,65]
[7,28,42,54,73]
[14,30,null,48,66]
[13,18,34,47,71]
[12,19,41,53,72]
[null,null,null,null,{"$f":"+E1471+1","v":212}]
[]
[7,29,41,52,72]
[6,22,44,59,67]
[10,23,null,51,64]
[4,25,43,58,61]
[8,17,33,57,69]
[null,null,null,null,{"$f":"+E1478+1","v":213}]
[]
[15,24,41,56,74]
[5,23,37,59,73]
[13,29,null,46,62]
[11,27,33,50,65]
[1,26,31,49,64]
[null,null,null,null,{"$f":"+E1485+1","v":214}]
[]
[6,16,43,49,65]
[13,24,31,59,75]
[11,23,null,55,72]
[15,20,42,53,69]
[14,19,37,48,64]
[null,null,null,null,{"$f":"+E1492+1","v":215}]
[]
[10,25,36,53,69]
[15,30,38,56,68]
[5,21,null,47,62]
[11,17,33,60,73]
[9,20,45,51,75]
[null,null,null,null,{"$f":"+E1499+1","v":216}]
[]
[9,24,35,50,63]
[10,30,31,59,67]
[7,19,null,55,64]
[2,25,39,46,70]
[1,21,43,60,62]
[null,null,null,null,{"$f":"+E1506+1","v":217}]
[]
[15,28,38,50,66]
[1,25,40,49,63]
[6,22,null,59,69]
[9,20,36,60,68]
[12,30,39,52,72]
[null,null,null,null,{"$f":"+E1513+1","v":218}]
[]
[5,16,45,48,61]
[3,30,43,60,73]
[1,19,null,59,74]
[12,20,40,47,69]
[15,22,31,52,62]
[null,null,null,null,{"$f":"+E1520+1","v":219}]
[]
[11,20,44,60,73]
[3,18,32,58,72]
[1,22,null,49,63]
[7,26,45,55,62]
[5,19,33,46,66]
[null,null,null,null,{"$f":"+E1527+1","v":220}]
[]
[10,16,33,58,68]
[7,25,36,49,62]
[3,20,null,46,67]
[4,24,44,47,65]
[12,27,39,60,74]
[null,null,null,null,{"$f":"+E1534+1","v":221}]
[]
[7,30,34,48,72]
[10,27,31,57,66]
[13,22,null,52,62]
[2,29,37,50,73]
[1,25,43,49,67]
[null,null,null,null,{"$f":"+E1541+1","v":222}]
[]
[4,21,41,60,75]
[9,23,43,50,72]
[15,25,null,53,74]
[5,26,33,55,63]
[14,16,31,58,68]
[null,null,null,null,{"$f":"+E1548+1","v":223}]
[]
[8,23,34,53,72]
[13,16,41,58,75]
[1,19,null,52,70]
[3,21,33,59,74]
[10,17,31,57,62]
[null,null,null,null,{"$f":"+E1555+1","v":224}]
[]
[15,30,31,52,71]
[8,25,37,55,62]
[3,23,null,56,69]
[13,17,38,50,68]
[4,24,42,57,63]
[null,null,null,null,{"$f":"+E1562+1","v":225}]
[]
[9,29,34,51,74]
[7,26,37,47,61]
[5,20,null,46,69]
[12,16,39,60,71]
[10,24,43,55,70]
[null,null,null,null,{"$f":"+E1569+1","v":226}]
[]
[2,21,33,47,62]
[7,28,37,46,70]
[14,26,null,53,61]
[15,19,39,48,65]
[10,17,35,50,64]
[null,null,null,null,{"$f":"+E1576+1","v":227}]
[]
[3,28,37,58,71]
[14,18,40,53,65]
[11,23,null,52,70]
[10,19,38,51,64]
[8,30,36,55,63]
[null,null,null,null,{"$f":"+E1583+1","v":228}]
[]
[9,16,42,54,61]
[4,20,35,59,73]
[15,26,null,55,67]
[11,28,33,50,70]
[3,30,38,49,66]
[null,null,null,null,{"$f":"+E1590+1","v":229}]
[]
[13,25,32,54,67]
[14,26,43,46,64]
[10,30,null,57,71]
[11,16,31,49,75]
[2,22,34,52,70]
[null,null,null,null,{"$f":"+E1597+1","v":230}]
[]
[1,23,44,46,64]
[12,17,34,57,75]
[6,27,null,58,73]
[14,21,45,48,66]
[5,26,37,60,70]
[null,null,null,null,{"$f":"+E1604+1","v":231}]
[]
[13,22,38,48,65]
[12,18,41,54,73]
[9,17,null,46,63]
[1,27,37,53,75]
[4,23,33,56,62]
[null,null,null,null,{"$f":"+E1611+1","v":232}]
[]
[1,23,35,49,64]
[12,29,39,57,62]
[2,26,null,56,75]
[7,22,36,48,69]
[13,24,32,50,65]
[null,null,null,null,{"$f":"+E1618+1","v":233}]
[]
[1,18,44,48,64]
[3,20,39,47,75]
[5,19,null,55,73]
[8,22,38,57,70]
[13,26,42,46,72]
[null,null,null,null,{"$f":"+E1625+1","v":234}]
[]
[1,18,35,59,73]
[4,20,32,53,68]
[13,25,null,47,62]
[9,26,42,57,63]
[12,28,43,46,64]
[null,null,null,null,{"$f":"+E1632+1","v":235}]
[]
[15,20,42,54,70]
[11,22,36,56,62]
[9,28,null,50,71]
[3,27,35,55,74]
[10,30,33,59,67]
[null,null,null,null,{"$f":"+E1639+1","v":236}]
[]
[6,30,36,54,70]
[14,27,43,46,68]
[4,19,null,51,73]
[5,25,35,47,61]
[11,16,34,55,75]
[null,null,null,null,{"$f":"+E1646+1","v":237}]
[]
[1,24,36,60,70]
[11,28,39,51,67]
[9,19,null,55,71]
[14,16,33,58,73]
[5,17,44,48,68]
[null,null,null,null,{"$f":"+E1653+1","v":238}]
[]
[15,29,35,52,68]
[7,17,37,53,73]
[6,19,null,55,71]
[11,20,32,51,61]
[9,23,39,46,64]
[null,null,null,null,{"$f":"+E1660+1","v":239}]
[]
[3,30,36,60,75]
[14,29,44,47,74]
[1,20,null,49,73]
[13,18,33,56,70]
[5,19,43,53,66]
[null,null,null,null,{"$f":"+E1667+1","v":240}]
[]
[12,21,45,52,62]
[3,16,34,55,71]
[7,29,null,58,70]
[6,25,33,50,64]
[15,20,42,60,63]
[null,null,null,null,{"$f":"+E1674+1","v":241}]
[]
[1,16,41,47,61]
[15,19,36,51,62]
[4,23,null,53,68]
[8,22,33,46,75]
[5,20,34,54,71]
[null,null,null,null,{"$f":"+E1681+1","v":242}]
[]
[6,27,31,59,66]
[14,22,42,54,63]
[5,24,null,53,73]
[1,23,41,48,65]
[15,25,40,56,62]
[null,null,null,null,{"$f":"+E1688+1","v":243}]
[]
[3,24,37,54,66]
[4,22,44,47,70]
[13,23,null,59,65]
[12,27,34,49,69]
[5,25,39,60,68]
[null,null,null,null,{"$f":"+E1695+1","v":244}]
[]
[7,19,44,50,65]
[4,22,35,59,72]
[2,28,null,55,66]
[3,21,39,56,71]
[15,16,33,51,73]
[null,null,null,null,{"$f":"+E1702+1","v":245}]
[]
[13,29,31,52,67]
[5,30,41,50,65]
[3,23,null,48,66]
[11,16,44,46,69]
[4,28,43,54,70]
[null,null,null,null,{"$f":"+E1709+1","v":246}]
[]
[2,24,35,54,66]
[13,28,38,52,65]
[15,25,null,55,70]
[3,23,32,60,71]
[10,26,31,58,75]
[null,null,null,null,{"$f":"+E1716+1","v":247}]
[]
[10,25,42,56,63]
[8,17,41,49,74]
[7,26,null,54,73]
[4,18,45,50,62]
[1,16,39,55,72]
[null,null,null,null,{"$f":"+E1723+1","v":248}]
[]
[1,25,38,56,74]
[13,17,32,46,62]
[14,27,null,54,66]
[2,20,39,57,69]
[8,24,41,48,68]
[null,null,null,null,{"$f":"+E1730+1","v":249}]
[]
[5,30,31,54,70]
[9,20,41,57,71]
[7,19,null,56,68]
[6,16,33,47,62]
[1,25,37,59,66]
[null,null,null,null,{"$f":"+E1737+1","v":250}]
[]
[8,30,37,54,69]
[12,21,33,52,62]
[2,28,null,58,66]
[3,16,34,55,63]
[7,25,31,60,73]
[null,null,null,null,{"$f":"+E1744+1","v":251}]
[]
[4,21,32,53,66]
[3,20,39,46,74]
[14,26,null,58,61]
[7,25,36,60,64]
[8,18,40,51,70]
[null,null,null,null,{"$f":"+E1751+1","v":252}]
[]
[6,22,36,51,73]
[10,30,41,50,72]
[15,23,null,55,63]
[3,28,35,46,67]
[1,18,38,60,68]
[null,null,null,null,{"$f":"+E1758+1","v":253}]
[]
[9,25,44,48,73]
[1,20,40,57,61]
[15,28,null,53,72]
[8,16,35,58,68]
[7,19,34,55,70]
[null,null,null,null,{"$f":"+E1765+1","v":254}]
[]
[6,21,39,59,61]
[9,26,34,60,71]
[3,27,null,53,68]
[5,16,40,54,65]
[12,23,38,46,72]
[null,null,null,null,{"$f":"+E1772+1","v":255}]
[]
[11,22,43,56,62]
[4,29,42,53,72]
[5,18,null,50,74]
[13,17,39,55,65]
[6,25,41,59,64]
[null,null,null,null,{"$f":"+E1779+1","v":256}]
[]
[13,18,32,52,62]
[6,22,43,49,67]
[14,25,null,59,70]
[10,24,37,50,68]
[8,19,35,48,71]
[null,null,null,null,{"$f":"+E1786+1","v":257}]
[]
[8,20,36,54,69]
[7,25,32,49,65]
[4,23,null,52,73]
[11,29,44,51,70]
[10,26,42,55,61]
[null,null,null,null,{"$f":"+E1793+1","v":258}]
[]
[9,16,44,46,70]
[14,18,37,55,62]
[11,25,null,52,75]
[3,20,33,60,63]
[2,24,41,59,71]
[null,null,null,null,{"$f":"+E1800+1","v":259}]
[]
[10,29,31,54,63]
[3,20,37,47,68]
[15,22,null,57,65]
[2,24,35,48,75]
[8,30,39,56,64]
[null,null,null,null,{"$f":"+E1807+1","v":260}]
[]
[2,17,32,47,75]
[4,28,41,46,74]
[12,27,null,51,65]
[13,16,35,56,66]
[14,29,44,50,67]
[null,null,null,null,{"$f":"+E1814+1","v":261}]
[]
[6,22,31,60,63]
[15,18,32,48,70]
[1,28,null,56,64]
[10,19,34,50,73]
[3,24,43,47,75]
[null,null,null,null,{"$f":"+E1821+1","v":262}]
[]
[10,22,36,47,73]
[11,27,39,49,74]
[4,20,null,52,72]
[15,21,40,60,66]
[5,30,41,51,64]
[null,null,null,null,{"$f":"+E1828+1","v":263}]
[]
[2,28,34,49,66]
[14,30,43,52,64]
[3,25,null,59,68]
[13,23,41,56,65]
[12,19,38,51,71]
[null,null,null,null,{"$f":"+E1835+1","v":264}]
[]
[10,30,37,55,71]
[11,22,40,58,67]
[3,19,null,59,73]
[15,21,42,52,65]
[5,27,35,48,72]
[null,null,null,null,{"$f":"+E1842+1","v":265}]
[]
[14,16,33,47,66]
[4,19,41,57,74]
[9,29,null,59,65]
[1,18,32,46,61]
[8,27,40,56,63]
[null,null,null,null,{"$f":"+E1849+1","v":266}]
[]
[6,25,43,55,66]
[7,17,39,53,61]
[14,21,null,47,74]
[12,28,31,49,62]
[5,16,37,48,68]
[null,null,null,null,{"$f":"+E1856+1","v":267}]
[]
[13,25,35,46,75]
[11,27,31,58,64]
[4,22,null,48,66]
[12,26,45,55,74]
[2,29,33,59,73]
[null,null,null,null,{"$f":"+E1863+1","v":268}]
[]
[5,26,42,47,73]
[12,29,36,59,67]
[2,20,null,51,72]
[11,22,32,60,71]
[9,19,39,53,74]
[null,null,null,null,{"$f":"+E1870+1","v":269}]
[]
[6,20,38,54,67]
[7,29,32,59,62]
[4,22,null,56,68]
[2,30,37,58,74]
[14,26,43,46,73]
[null,null,null,null,{"$f":"+E1877+1","v":270}]
[]
[9,25,41,58,69]
[14,18,42,54,71]
[2,27,null,60,61]
[1,26,43,59,72]
[7,23,39,48,70]
[null,null,null,null,{"$f":"+E1884+1","v":271}]
[]
[3,30,38,51,70]
[6,26,45,48,64]
[9,24,null,52,65]
[15,25,44,59,72]
[5,17,33,60,67]
[null,null,null,null,{"$f":"+E1891+1","v":272}]
[]
[8,25,39,53,64]
[9,16,44,49,66]
[10,21,null,60,73]
[5,23,41,47,74]
[2,27,36,48,62]
[null,null,null,null,{"$f":"+E1898+1","v":273}]
[]
[9,16,37,53,73]
[2,23,38,47,66]
[14,17,null,59,74]
[11,22,36,46,63]
[8,21,39,60,61]
[null,null,null,null,{"$f":"+E1905+1","v":274}]
[]
[5,20,38,54,61]
[7,26,39,47,66]
[10,19,null,55,74]
[13,27,36,53,65]
[9,21,37,56,75]
[null,null,null,null,{"$f":"+E1912+1","v":275}]
[]
[4,27,31,57,61]
[15,29,34,55,67]
[14,21,null,54,65]
[13,18,39,60,64]
[6,23,45,52,70]
[null,null,null,null,{"$f":"+E1919+1","v":276}]
[]
[6,19,38,50,70]
[3,17,34,48,71]
[15,28,null,59,67]
[1,22,32,51,75]
[13,18,40,47,69]
[null,null,null,null,{"$f":"+E1926+1","v":277}]
[]
[10,27,42,51,62]
[4,25,34,52,61]
[3,26,null,56,70]
[15,24,43,60,71]
[12,22,44,53,68]
[null,null,null,null,{"$f":"+E1933+1","v":278}]
[]
[5,16,36,57,71]
[13,19,37,60,72]
[8,23,null,59,74]
[9,26,43,53,73]
[11,29,44,56,62]
[null,null,null,null,{"$f":"+E1940+1","v":279}]
[]
[3,24,34,47,70]
[5,23,31,59,69]
[6,30,null,48,62]
[9,21,43,60,71]
[14,17,38,49,64]
[null,null,null,null,{"$f":"+E1947+1","v":280}]
[]
[10,25,38,51,71]
[13,28,39,46,70]
[1,23,null,57,74]
[9,19,43,56,72]
[2,24,40,49,64]
[null,null,null,null,{"$f":"+E1954+1","v":281}]
[]
[8,21,31,55,66]
[6,26,32,57,72]
[3,25,null,47,68]
[9,28,45,58,62]
[10,18,42,53,73]
[null,null,null,null,{"$f":"+E1961+1","v":282}]
[]
[15,21,37,53,66]
[1,19,36,46,75]
[11,28,null,58,73]
[9,22,31,55,72]
[5,29,33,57,67]
[null,null,null,null,{"$f":"+E1968+1","v":283}]
[]
[7,17,42,53,70]
[15,20,33,46,69]
[9,21,null,50,63]
[12,18,38,51,74]
[6,23,40,59,67]
[null,null,null,null,{"$f":"+E1975+1","v":284}]
[]
[9,25,37,54,62]
[5,27,43,48,61]
[12,18,null,60,75]
[6,26,39,55,70]
[1,16,32,46,67]
[null,null,null,null,{"$f":"+E1982+1","v":285}]
[]
[1,27,36,58,68]
[11,22,43,54,65]
[15,23,null,53,73]
[2,24,41,51,70]
[5,19,42,46,74]
[null,null,null,null,{"$f":"+E1989+1","v":286}]
[]
[15,16,45,48,70]
[12,24,37,52,66]
[10,28,null,56,71]
[11,26,44,54,69]
[14,17,38,51,68]
[null,null,null,null,{"$f":"+E1996+1","v":287}]
[]
[10,22,39,51,70]
[8,21,45,50,69]
[3,17,null,48,62]
[15,23,31,60,67]
[2,16,34,59,66]
[null,null,null,null,{"$f":"+E2003+1","v":288}]
[]
[1,16,37,49,70]
[10,25,42,47,69]
[13,20,null,57,73]
[6,18,31,59,62]
[14,29,44,52,64]
[null,null,null,null,{"$f":"+E2010+1","v":289}]
[]
[4,22,35,51,61]
[13,18,45,60,66]
[7,26,null,50,71]
[10,19,37,53,63]
[9,17,32,48,73]
[null,null,null,null,{"$f":"+E2017+1","v":290}]
[]
[4,20,33,54,64]
[2,30,35,50,62]
[3,17,null,49,70]
[13,24,37,48,69]
[6,26,44,53,71]
[null,null,null,null,{"$f":"+E2024+1","v":291}]
[]
[14,24,40,55,67]
[3,22,35,50,74]
[13,18,null,46,72]
[5,28,37,54,73]
[7,30,31,60,75]
[null,null,null,null,{"$f":"+E2031+1","v":292}]
[]
[6,27,32,49,67]
[10,24,43,50,62]
[11,20,null,52,63]
[8,29,39,47,70]
[13,30,36,46,71]
[null,null,null,null,{"$f":"+E2038+1","v":293}]
[]
[10,25,45,58,70]
[6,29,42,51,71]
[13,27,null,52,73]
[15,20,36,50,61]
[2,28,35,57,66]
[null,null,null,null,{"$f":"+E2045+1","v":294}]
[]
[7,23,38,46,69]
[13,17,41,47,65]
[3,27,null,58,71]
[2,16,35,51,66]
[8,18,43,48,67]
[null,null,null,null,{"$f":"+E2052+1","v":295}]
[]
[11,17,33,49,74]
[1,18,39,50,65]
[3,27,null,59,72]
[4,23,38,57,66]
[10,26,37,55,61]
[null,null,null,null,{"$f":"+E2059+1","v":296}]
[]
[12,24,35,47,63]
[11,19,33,57,72]
[14,27,null,58,71]
[10,18,32,46,66]
[7,29,37,55,67]
[null,null,null,null,{"$f":"+E2066+1","v":297}]
[]
[3,19,35,53,72]
[8,29,43,57,64]
[11,27,null,60,68]
[7,18,42,55,66]
[15,26,41,50,62]
[null,null,null,null,{"$f":"+E2073+1","v":298}]
[]
[6,24,34,53,67]
[8,29,31,56,75]
[12,21,null,60,66]
[13,17,44,46,71]
[9,30,32,47,65]
[null,null,null,null,{"$f":"+E2080+1","v":299}]
[]
[14,17,44,47,75]
[15,16,40,55,68]
[1,20,null,52,74]
[2,29,34,58,72]
[8,23,42,60,73]
[null,null,null,null,{"$f":"+E2087+1","v":300}]
[]
[12,21,44,54,68]
[14,22,42,49,65]
[8,17,null,56,64]
[13,18,37,55,73]
[6,24,40,57,61]
[null,null,null,null,{"$f":"+E2094+1","v":301}]
[]
[11,17,37,46,71]
[13,22,32,59,61]
[15,25,null,58,74]
[5,23,36,52,69]
[7,29,43,48,70]
[null,null,null,null,{"$f":"+E2101+1","v":302}]
[]
[4,26,40,50,69]
[13,22,36,51,64]
[3,17,null,47,74]
[2,24,34,60,62]
[10,30,31,56,61]
[null,null,null,null,{"$f":"+E2108+1","v":303}]
[]
[2,27,33,47,66]
[10,28,41,54,62]
[13,16,null,56,75]
[6,21,44,48,68]
[14,24,43,55,64]
[null,null,null,null,{"$f":"+E2115+1","v":304}]
[]
[7,25,43,49,61]
[2,22,38,47,65]
[6,26,null,57,70]
[15,30,39,53,73]
[8,23,33,60,71]
[null,null,null,null,{"$f":"+E2122+1","v":305}]
[]
[1,23,44,46,73]
[11,24,43,53,62]
[15,17,null,55,70]
[13,19,38,51,61]
[4,21,36,60,75]
[null,null,null,null,{"$f":"+E2129+1","v":306}]
[]
[12,30,38,54,75]
[7,23,36,48,68]
[14,26,null,46,69]
[4,22,42,59,62]
[15,18,35,53,73]
[null,null,null,null,{"$f":"+E2136+1","v":307}]
[]
[3,16,34,47,65]
[1,25,31,51,72]
[14,23,null,58,66]
[4,19,43,57,74]
[2,27,35,49,73]
[null,null,null,null,{"$f":"+E2143+1","v":308}]
[]
[9,23,43,60,69]
[1,21,41,47,68]
[7,29,null,53,71]
[6,16,38,46,62]
[11,27,31,54,61]
[null,null,null,null,{"$f":"+E2150+1","v":309}]
[]
[8,22,39,48,62]
[9,20,36,56,68]
[12,29,null,46,67]
[10,27,33,50,61]
[6,24,42,60,71]
[null,null,null,null,{"$f":"+E2157+1","v":310}]
[]
[15,28,34,54,65]
[3,26,45,48,63]
[5,20,null,49,73]
[10,27,31,51,75]
[2,21,43,50,70]
[null,null,null,null,{"$f":"+E2164+1","v":311}]
[]
[11,27,40,52,68]
[1,23,43,48,74]
[8,24,null,53,75]
[9,28,39,57,64]
[7,18,35,55,62]
[null,null,null,null,{"$f":"+E2171+1","v":312}]
[]
[1,29,34,56,67]
[11,17,38,57,62]
[10,26,null,55,64]
[12,20,42,53,63]
[9,24,35,60,66]
[null,null,null,null,{"$f":"+E2178+1","v":313}]
[]
[13,16,41,54,63]
[2,27,39,57,74]
[1,29,null,58,75]
[15,20,32,55,62]
[5,23,31,50,71]
[null,null,null,null,{"$f":"+E2185+1","v":314}]
[]
[6,25,38,59,71]
[10,24,34,48,62]
[4,21,null,55,72]
[1,19,33,50,68]
[11,23,35,53,73]
[null,null,null,null,{"$f":"+E2192+1","v":315}]
[]
[5,18,39,52,74]
[2,22,31,56,69]
[8,23,null,57,75]
[6,17,35,53,73]
[1,27,36,50,70]
[null,null,null,null,{"$f":"+E2199+1","v":316}]
[]
[12,27,32,49,65]
[8,20,38,52,62]
[9,28,null,50,68]
[15,18,45,59,72]
[7,23,34,55,64]
[null,null,null,null,{"$f":"+E2206+1","v":317}]
[]
[11,16,34,51,65]
[2,23,43,50,64]
[1,21,null,58,74]
[12,28,37,49,69]
[9,17,41,59,71]
[null,null,null,null,{"$f":"+E2213+1","v":318}]
[]
[6,20,34,51,62]
[13,19,38,59,68]
[11,21,null,60,72]
[9,28,39,56,67]
[8,22,43,53,65]
[null,null,null,null,{"$f":"+E2220+1","v":319}]
[]
[4,17,43,52,64]
[12,21,34,58,66]
[10,29,null,60,61]
[5,28,31,56,73]
[2,16,45,48,70]
[null,null,null,null,{"$f":"+E2227+1","v":320}]
[]
[6,20,45,50,69]
[9,18,32,53,68]
[4,28,null,51,62]
[2,29,34,56,73]
[14,25,37,55,63]
[null,null,null,null,{"$f":"+E2234+1","v":321}]
[]
[6,19,42,57,69]
[3,20,45,51,72]
[9,18,null,46,73]
[12,30,35,48,61]
[10,21,44,54,64]
[null,null,null,null,{"$f":"+E2241+1","v":322}]
[]
[12,19,37,60,62]
[8,24,45,59,70]
[4,26,null,47,74]
[9,16,31,50,68]
[1,17,33,55,64]
[null,null,null,null,{"$f":"+E2248+1","v":323}]
[]
[6,19,42,48,61]
[13,24,40,60,69]
[7,21,null,46,71]
[2,25,45,59,63]
[5,20,32,57,62]
[null,null,null,null,{"$f":"+E2255+1","v":324}]
[]
[14,30,43,48,67]
[11,21,40,52,73]
[15,27,null,58,61]
[3,17,39,46,65]
[2,19,35,53,75]
[null,null,null,null,{"$f":"+E2262+1","v":325}]
[]
[11,20,35,60,62]
[5,23,33,58,74]
[10,30,null,59,63]
[14,22,40,51,75]
[12,21,45,57,64]
[null,null,null,null,{"$f":"+E2269+1","v":326}]
[]
[12,26,42,54,66]
[10,29,39,49,72]
[14,24,null,55,65]
[11,21,41,53,62]
[2,20,45,56,68]
[null,null,null,null,{"$f":"+E2276+1","v":327}]
[]
[12,17,33,57,75]
[8,27,45,52,65]
[9,23,null,58,70]
[11,28,34,56,68]
[14,20,44,49,67]
[null,null,null,null,{"$f":"+E2283+1","v":328}]
[]
[6,29,42,57,65]
[12,24,33,60,68]
[9,26,null,59,69]
[10,23,31,55,61]
[7,16,35,58,74]
[null,null,null,null,{"$f":"+E2290+1","v":329}]
[]
[8,28,45,48,64]
[13,16,31,55,75]
[4,29,null,46,69]
[11,17,43,54,73]
[3,26,34,52,68]
[null,null,null,null,{"$f":"+E2297+1","v":330}]
[]
[13,29,35,60,64]
[7,16,33,58,63]
[5,18,null,53,67]
[8,30,32,46,65]
[11,19,43,52,66]
[null,null,null,null,{"$f":"+E2304+1","v":331}]
[]
[1,29,41,52,63]
[11,21,45,48,72]
[2,18,null,50,64]
[7,26,35,58,65]
[15,27,31,46,70]
[null,null,null,null,{"$f":"+E2311+1","v":332}]
[]
[1,19,37,59,65]
[9,30,31,51,71]
[11,29,null,50,67]
[15,28,42,58,61]
[8,17,41,48,72]
[null,null,null,null,{"$f":"+E2318+1","v":333}]
[]
[7,29,36,47,68]
[14,26,31,56,63]
[5,23,null,54,74]
[3,27,44,55,71]
[10,18,35,51,62]
[null,null,null,null,{"$f":"+E2325+1","v":334}]
[]
[7,24,44,57,71]
[3,17,35,60,68]
[14,25,null,56,72]
[8,19,43,48,62]
[9,22,37,51,74]
[null,null,null,null,{"$f":"+E2332+1","v":335}]
[]
[12,26,40,60,69]
[7,24,44,52,67]
[1,17,null,59,65]
[11,21,35,47,63]
[2,29,41,55,64]
[null,null,null,null,{"$f":"+E2339+1","v":336}]
[]
[1,28,44,55,66]
[8,29,36,54,62]
[12,20,null,59,69]
[2,17,37,49,71]
[14,27,42,53,67]
[null,null,null,null,{"$f":"+E2346+1","v":337}]
[]
[13,21,40,55,71]
[15,25,44,48,66]
[1,16,null,57,67]
[5,27,31,53,64]
[6,26,35,46,62]
[null,null,null,null,{"$f":"+E2353+1","v":338}]
[]
[5,25,31,47,67]
[7,16,35,58,63]
[10,21,null,52,73]
[1,29,42,50,61]
[3,20,44,60,69]
[null,null,null,null,{"$f":"+E2360+1","v":339}]
[]
[11,17,39,59,66]
[7,23,44,52,72]
[12,22,null,51,73]
[13,30,35,54,63]
[10,25,36,55,62]
[null,null,null,null,{"$f":"+E2367+1","v":340}]
[]
[10,20,35,51,75]
[4,18,43,47,74]
[6,19,null,49,70]
[2,30,33,50,68]
[7,24,44,57,69]
[null,null,null,null,{"$f":"+E2374+1","v":341}]
[]
[15,20,42,59,65]
[14,24,43,50,71]
[5,17,null,60,61]
[4,22,41,47,64]
[3,21,31,46,63]
[null,null,null,null,{"$f":"+E2381+1","v":342}]
[]
[13,24,38,53,63]
[14,30,34,47,61]
[10,25,null,54,67]
[7,29,40,55,73]
[3,26,39,50,62]
[null,null,null,null,{"$f":"+E2388+1","v":343}]
[]
[1,26,31,51,68]
[8,24,35,48,72]
[12,23,null,59,71]
[5,22,38,55,69]
[14,18,44,50,62]
[null,null,null,null,{"$f":"+E2395+1","v":344}]
[]
[13,27,33,47,73]
[3,28,31,55,61]
[4,18,null,46,69]
[12,19,44,52,71]
[8,22,35,56,74]
[null,null,null,null,{"$f":"+E2402+1","v":345}]
[]
[3,30,40,57,64]
[1,19,37,51,74]
[2,21,null,49,71]
[10,28,35,46,61]
[8,23,45,52,73]
[null,null,null,null,{"$f":"+E2409+1","v":346}]
[]
[10,30,36,57,68]
[12,29,45,52,71]
[13,26,null,50,65]
[3,27,41,60,61]
[8,25,43,58,62]
[null,null,null,null,{"$f":"+E2416+1","v":347}]
[]
[5,28,35,56,62]
[15,17,36,58,61]
[10,23,null,49,74]
[3,27,33,50,65]
[8,26,45,57,71]
[null,null,null,null,{"$f":"+E2423+1","v":348}]
[]
[10,28,40,51,71]
[14,26,33,59,69]
[15,18,null,55,66]
[3,27,41,53,70]
[12,25,45,56,73]
[null,null,null,null,{"$f":"+E2430+1","v":349}]
[]
[7,25,39,56,63]
[14,21,32,51,66]
[1,17,null,53,71]
[2,18,35,57,67]
[11,29,38,49,70]
[null,null,null,null,{"$f":"+E2437+1","v":350}]
[]
[6,27,37,58,61]
[15,20,35,55,63]
[9,26,null,52,74]
[10,19,43,51,66]
[5,16,36,48,68]
[null,null,null,null,{"$f":"+E2444+1","v":351}]
[]
[7,27,42,53,70]
[8,28,41,50,67]
[4,22,null,54,72]
[1,25,38,55,64]
[12,19,31,59,75]
[null,null,null,null,{"$f":"+E2451+1","v":352}]
[]
[8,23,39,52,61]
[15,16,37,60,67]
[11,18,null,51,70]
[2,29,41,59,74]
[6,28,42,55,69]
[null,null,null,null,{"$f":"+E2458+1","v":353}]
[]
[10,29,45,49,68]
[9,18,38,50,69]
[11,17,null,47,71]
[14,26,31,46,65]
[4,20,44,57,62]
[null,null,null,null,{"$f":"+E2465+1","v":354}]
[]
[5,27,33,47,72]
[13,29,42,49,75]
[8,17,null,54,61]
[10,25,35,57,71]
[2,20,43,53,65]
[null,null,null,null,{"$f":"+E2472+1","v":355}]
[]
[11,29,42,51,75]
[7,26,36,55,63]
[4,22,null,56,67]
[14,25,40,60,61]
[6,21,31,53,71]
[null,null,null,null,{"$f":"+E2479+1","v":356}]
[]
[8,22,40,60,71]
[3,19,32,52,66]
[12,30,null,50,62]
[5,24,44,54,64]
[6,18,31,53,61]
[null,null,null,null,{"$f":"+E2486+1","v":357}]
[]
[8,16,32,57,73]
[15,21,34,56,72]
[7,23,null,58,69]
[11,27,35,49,70]
[12,29,39,60,66]
[null,null,null,null,{"$f":"+E2493+1","v":358}]
[]
[6,23,41,58,62]
[12,29,40,53,63]
[13,27,null,48,66]
[15,20,45,49,65]
[2,17,34,51,72]
[null,null,null,null,{"$f":"+E2500+1","v":359}]
[]
[4,20,33,48,61]
[15,23,31,57,67]
[2,21,null,51,64]
[6,29,43,55,75]
[9,25,45,52,65]
[null,null,null,null,{"$f":"+E2507+1","v":360}]
[]
[15,18,35,48,66]
[7,22,36,51,64]
[13,30,null,49,72]
[2,23,37,46,71]
[1,19,31,58,75]
[null,null,null,null,{"$f":"+E2514+1","v":361}]
[]
[14,20,37,52,70]
[9,21,31,59,65]
[12,30,null,60,69]
[10,22,45,54,72]
[8,29,34,51,68]
[null,null,null,null,{"$f":"+E2521+1","v":362}]
[]
[5,25,42,51,75]
[1,18,39,53,64]
[2,26,null,60,71]
[11,27,40,46,70]
[6,29,45,52,69]
[null,null,null,null,{"$f":"+E2528+1","v":363}]
[]
[12,23,31,57,68]
[15,26,36,48,63]
[6,16,null,47,73]
[2,30,38,54,61]
[1,17,39,56,70]
[null,null,null,null,{"$f":"+E2535+1","v":364}]
[]
[1,28,45,46,73]
[12,16,44,55,66]
[13,17,null,54,69]
[7,25,42,57,62]
[6,19,34,56,63]
[null,null,null,null,{"$f":"+E2542+1","v":365}]
[]
[2,20,41,49,72]
[7,19,43,46,73]
[5,28,null,54,64]
[11,29,31,52,65]
[8,26,38,57,71]
[null,null,null,null,{"$f":"+E2549+1","v":366}]
[]
[1,22,45,55,62]
[14,28,37,51,72]
[9,29,null,48,63]
[6,19,34,53,74]
[5,30,44,52,64]
[null,null,null,null,{"$f":"+E2556+1","v":367}]
[]
[6,21,39,58,62]
[13,24,37,46,67]
[5,30,null,49,65]
[14,26,35,54,61]
[1,22,45,51,68]
[null,null,null,null,{"$f":"+E2563+1","v":368}]
[]
[7,29,43,58,62]
[4,16,42,53,73]
[13,19,null,56,71]
[8,17,32,57,74]
[5,20,37,52,63]
[null,null,null,null,{"$f":"+E2570+1","v":369}]
[]
[12,16,32,58,69]
[4,30,41,46,71]
[5,19,null,53,67]
[14,29,39,49,74]
[11,27,35,50,68]
[null,null,null,null,{"$f":"+E2577+1","v":370}]
[]
[10,29,40,48,71]
[5,18,45,53,75]
[13,28,null,50,65]
[15,27,39,60,62]
[3,23,34,58,69]
[null,null,null,null,{"$f":"+E2584+1","v":371}]
[]
[1,27,34,58,69]
[4,28,42,54,67]
[11,26,null,47,68]
[9,16,35,59,66]
[12,23,31,51,73]
[null,null,null,null,{"$f":"+E2591+1","v":372}]
[]
[4,21,33,46,73]
[7,19,43,56,64]
[9,23,null,50,70]
[14,29,37,59,63]
[10,16,31,51,67]
[null,null,null,null,{"$f":"+E2598+1","v":373}]
[]
[7,18,43,55,74]
[4,24,45,49,71]
[10,30,null,59,65]
[14,29,37,53,64]
[3,23,35,58,72]
[null,null,null,null,{"$f":"+E2605+1","v":374}]
[]
[9,24,38,51,71]
[14,30,44,49,73]
[4,28,null,52,64]
[5,26,36,47,74]
[13,21,32,56,67]
[null,null,null,null,{"$f":"+E2612+1","v":375}]
[]
[2,16,36,51,75]
[5,30,42,57,73]
[14,20,null,50,70]
[9,22,41,52,62]
[15,28,31,58,68]
[null,null,null,null,{"$f":"+E2619+1","v":376}]
[]
[15,17,34,60,64]
[6,26,44,52,68]
[7,16,null,54,66]
[3,18,39,56,63]
[4,29,31,51,70]
[null,null,null,null,{"$f":"+E2626+1","v":377}]
[]
[8,24,38,59,61]
[2,27,40,52,65]
[10,16,null,51,71]
[5,19,37,48,69]
[13,29,44,58,63]
[null,null,null,null,{"$f":"+E2633+1","v":378}]
[]
[14,27,32,51,66]
[1,24,33,58,69]
[2,18,null,47,62]
[9,23,36,54,67]
[6,26,43,46,63]
[null,null,null,null,{"$f":"+E2640+1","v":379}]
[]
[10,22,43,47,63]
[2,20,38,48,75]
[14,26,null,57,70]
[4,25,41,53,74]
[11,16,33,51,61]
[null,null,null,null,{"$f":"+E2647+1","v":380}]
[]
[15,18,32,49,73]
[12,22,36,50,65]
[4,21,null,48,69]
[5,16,40,47,72]
[1,20,44,59,66]
[null,null,null,null,{"$f":"+E2654+1","v":381}]
[]
[1,24,42,59,70]
[9,21,32,58,74]
[5,29,null,57,61]
[2,22,44,46,68]
[12,20,45,54,73]
[null,null,null,null,{"$f":"+E2661+1","v":382}]
[]
[7,21,31,55,72]
[6,30,33,53,66]
[9,29,null,59,69]
[4,24,36,54,75]
[1,23,40,47,61]
[null,null,null,null,{"$f":"+E2668+1","v":383}]
[]
[1,23,37,53,68]
[15,21,44,56,69]
[4,19,null,46,64]
[8,29,32,57,66]
[10,20,41,48,61]
[null,null,null,null,{"$f":"+E2675+1","v":384}]
[]
[10,23,39,51,68]
[14,24,45,52,67]
[3,27,null,54,73]
[5,30,41,53,72]
[1,18,33,46,65]
[null,null,null,null,{"$f":"+E2682+1","v":385}]
[]
[5,16,40,51,71]
[1,18,42,49,62]
[4,23,null,55,66]
[3,25,36,56,74]
[12,26,38,48,68]
[null,null,null,null,{"$f":"+E2689+1","v":386}]
[]
[13,24,37,59,71]
[6,18,32,58,75]
[2,26,null,50,64]
[10,27,33,51,63]
[4,16,34,52,72]
[null,null,null,null,{"$f":"+E2696+1","v":387}]
[]
[8,24,43,55,72]
[4,27,31,49,71]
[3,26,null,51,74]
[13,28,45,46,64]
[5,17,44,60,75]
[null,null,null,null,{"$f":"+E2703+1","v":388}]
[]
[13,17,41,56,67]
[4,18,43,50,68]
[1,26,null,57,71]
[5,25,37,53,73]
[7,21,42,46,75]
[null,null,null,null,{"$f":"+E2710+1","v":389}]
[]
[9,19,38,47,69]
[2,24,31,59,68]
[12,25,null,56,70]
[4,20,34,46,67]
[14,18,32,51,66]
[null,null,null,null,{"$f":"+E2717+1","v":390}]
[]
[7,19,39,56,63]
[1,24,35,50,66]
[13,17,null,52,61]
[11,16,37,48,62]
[14,20,42,57,75]
[null,null,null,null,{"$f":"+E2724+1","v":391}]
[]
[10,19,37,58,66]
[9,17,44,49,70]
[7,27,null,57,68]
[11,22,31,53,67]
[2,25,40,50,72]
[null,null,null,null,{"$f":"+E2731+1","v":392}]
[]
[6,23,41,56,63]
[15,28,33,58,66]
[14,20,null,48,62]
[12,29,34,52,61]
[13,16,37,51,74]
[null,null,null,null,{"$f":"+E2738+1","v":393}]
[]
[14,23,45,50,65]
[1,28,33,58,72]
[3,24,null,49,66]
[7,17,31,57,63]
[9,27,32,54,61]
[null,null,null,null,{"$f":"+E2745+1","v":394}]
[]
[14,24,39,50,68]
[7,21,32,47,66]
[15,18,null,51,72]
[11,22,45,59,70]
[3,28,43,58,73]
[null,null,null,null,{"$f":"+E2752+1","v":395}]
[]
[2,18,37,60,70]
[1,24,40,48,61]
[13,30,null,56,62]
[9,27,44,57,68]
[4,21,31,54,75]
[null,null,null,null,{"$f":"+E2759+1","v":396}]
[]
[12,29,39,47,62]
[1,30,37,48,75]
[9,16,null,58,65]
[13,24,42,52,64]
[6,23,38,54,63]
[null,null,null,null,{"$f":"+E2766+1","v":397}]
[]
[6,18,36,58,73]
[13,27,41,60,70]
[5,21,null,49,67]
[9,19,43,57,71]
[15,24,33,50,74]
[null,null,null,null,{"$f":"+E2773+1","v":398}]
[]
[4,26,33,60,61]
[7,27,45,46,69]
[1,20,null,52,68]
[3,19,44,51,62]
[6,18,32,55,72]
[null,null,null,null,{"$f":"+E2780+1","v":399}]
[]
[7,30,31,57,72]
[15,20,32,48,74]
[13,16,null,49,62]
[5,29,38,58,69]
[4,17,40,54,64]
[null,null,null,null,{"$f":"+E2787+1","v":400}]
[]
[5,18,44,49,71]
[3,19,33,59,69]
[13,27,null,48,62]
[12,16,43,53,63]
[14,24,39,51,75]
[null,null,null,null,{"$f":"+E2794+1","v":401}]
[]
[7,16,44,55,73]
[12,17,34,60,75]
[6,24,null,58,69]
[4,23,38,51,62]
[10,29,43,47,72]
[null,null,null,null,{"$f":"+E2801+1","v":402}]
[]
[1,24,42,57,65]
[13,28,32,47,71]
[8,17,null,59,64]
[5,22,44,49,74]
[12,26,38,60,62]
[null,null,null,null,{"$f":"+E2808+1","v":403}]
[]
[1,21,40,48,61]
[7,22,38,47,62]
[11,26,null,50,66]
[9,20,31,51,63]
[5,29,45,56,68]
[null,null,null,null,{"$f":"+E2815+1","v":404}]
[]
[7,16,33,48,66]
[6,25,34,50,74]
[13,28,null,54,63]
[1,18,31,49,62]
[9,24,43,60,67]
[null,null,null,null,{"$f":"+E2822+1","v":405}]
[]
[5,23,40,46,71]
[10,26,37,50,67]
[12,30,null,52,64]
[13,29,43,51,63]
[7,17,35,48,73]
[null,null,null,null,{"$f":"+E2829+1","v":406}]
[]
[1,25,34,46,69]
[15,18,44,59,63]
[14,23,null,56,70]
[13,17,31,60,61]
[6,29,43,57,66]
[null,null,null,null,{"$f":"+E2836+1","v":407}]
[]
[6,25,37,57,65]
[2,23,40,47,63]
[10,24,null,46,62]
[9,16,44,52,69]
[15,19,33,55,67]
[null,null,null,null,{"$f":"+E2843+1","v":408}]
[]
[10,27,38,50,65]
[12,18,41,52,62]
[14,20,null,54,70]
[13,29,33,59,74]
[2,19,34,47,64]
[null,null,null,null,{"$f":"+E2850+1","v":409}]
[]
[8,20,43,57,70]
[10,19,41,60,71]
[13,24,null,56,66]
[4,28,31,52,62]
[3,30,36,48,74]
[null,null,null,null,{"$f":"+E2857+1","v":410}]
[]
[8,18,40,60,65]
[11,22,45,57,71]
[5,28,null,58,75]
[1,27,41,52,64]
[12,30,38,46,73]
[null,null,null,null,{"$f":"+E2864+1","v":411}]
[]
[15,27,32,59,66]
[1,17,38,57,61]
[8,16,null,53,71]
[3,20,36,48,72]
[11,22,41,50,64]
[null,null,null,null,{"$f":"+E2871+1","v":412}]
[]
[15,20,41,56,63]
[11,25,39,60,62]
[8,29,null,48,70]
[7,26,43,58,68]
[4,16,40,57,75]
[null,null,null,null,{"$f":"+E2878+1","v":413}]
[]
[5,22,32,51,61]
[11,25,34,55,72]
[13,19,null,56,70]
[14,30,39,48,74]
[2,26,42,52,63]
[null,null,null,null,{"$f":"+E2885+1","v":414}]
[]
[9,20,40,46,72]
[12,28,38,51,63]
[2,25,null,56,66]
[4,24,39,48,71]
[5,29,42,49,68]
[null,null,null,null,{"$f":"+E2892+1","v":415}]
[]
[6,16,33,55,68]
[5,21,32,48,65]
[15,25,null,57,70]
[1,29,43,53,61]
[3,28,40,49,67]
[null,null,null,null,{"$f":"+E2899+1","v":416}]
[]
[10,25,34,52,72]
[5,24,35,54,61]
[13,19,null,59,67]
[11,26,44,47,74]
[4,18,36,49,75]
[null,null,null,null,{"$f":"+E2906+1","v":417}]
[]
[12,17,37,52,68]
[3,27,44,49,69]
[9,19,null,56,64]
[11,22,43,50,67]
[13,24,38,58,73]
[null,null,null,null,{"$f":"+E2913+1","v":418}]
[]
[7,29,42,60,63]
[4,25,37,58,74]
[14,20,null,59,68]
[15,26,41,50,70]
[2,24,32,53,66]
[null,null,null,null,{"$f":"+E2920+1","v":419}]
[]
[2,29,43,60,71]
[1,18,38,50,68]
[9,28,null,58,72]
[10,24,37,51,73]
[3,19,45,46,69]
[null,null,null,null,{"$f":"+E2927+1","v":420}]
[]
[6,29,43,46,61]
[14,28,31,56,68]
[2,22,null,54,63]
[9,18,37,47,70]
[15,17,45,48,75]
[null,null,null,null,{"$f":"+E2934+1","v":421}]
[]
[10,16,33,58,67]
[14,28,37,54,63]
[13,17,null,46,69]
[6,22,34,56,73]
[9,23,32,50,61]
[null,null,null,null,{"$f":"+E2941+1","v":422}]
[]
[11,27,41,50,62]
[10,28,43,52,64]
[5,21,null,60,72]
[7,19,38,54,61]
[4,25,32,58,70]
[null,null,null,null,{"$f":"+E2948+1","v":423}]
[]
[5,21,36,56,66]
[3,30,44,48,63]
[7,25,null,52,62]
[9,17,42,47,70]
[6,19,38,51,69]
[null,null,null,null,{"$f":"+E2955+1","v":424}]
[]
[7,22,38,57,61]
[11,23,37,52,71]
[13,29,null,60,68]
[15,30,35,58,73]
[3,17,31,53,72]
[null,null,null,null,{"$f":"+E2962+1","v":425}]
[]
[6,23,36,57,68]
[8,17,33,59,64]
[13,21,null,50,70]
[12,16,41,46,66]
[3,29,39,58,74]
[null,null,null,null,{"$f":"+E2969+1","v":426}]
[]
[2,30,42,47,62]
[10,28,33,50,73]
[9,20,null,52,61]
[3,26,45,58,74]
[6,24,38,55,75]
[null,null,null,null,{"$f":"+E2976+1","v":427}]
[]
[6,16,35,54,71]
[9,24,43,60,69]
[11,29,null,57,74]
[5,25,31,48,68]
[7,27,32,47,65]
[null,null,null,null,{"$f":"+E2983+1","v":428}]
[]
[6,25,37,59,72]
[1,20,44,57,66]
[7,26,null,56,61]
[4,22,33,60,75]
[9,16,38,51,73]
[null,null,null,null,{"$f":"+E2990+1","v":429}]
[]
[10,21,37,54,70]
[4,23,31,56,62]
[15,28,null,51,66]
[1,26,45,49,65]
[14,30,36,50,63]
[null,null,null,null,{"$f":"+E2997+1","v":430}]
[]
[11,23,42,53,65]
[9,29,40,60,64]
[6,18,null,47,62]
[15,21,38,56,71]
[2,19,32,46,66]
[null,null,null,null,{"$f":"+E3004+1","v":431}]
[]
[4,25,40,47,69]
[5,24,34,48,64]
[8,26,null,52,62]
[1,20,33,50,61]
[11,19,35,51,70]
[null,null,null,null,{"$f":"+E3011+1","v":432}]
[]
[10,24,34,53,72]
[14,27,31,48,74]
[7,25,null,60,71]
[4,18,45,59,62]
[9,17,37,57,73]
[null,null,null,null,{"$f":"+E3018+1","v":433}]
[]
[13,26,35,51,71]
[1,16,34,47,73]
[12,24,null,60,74]
[8,22,41,52,62]
[14,21,31,49,69]
[null,null,null,null,{"$f":"+E3025+1","v":434}]
[]
[12,23,45,56,74]
[2,17,43,55,63]
[13,27,null,50,73]
[1,22,36,53,61]
[11,20,32,51,66]
[null,null,null,null,{"$f":"+E3032+1","v":435}]
[]
[7,26,38,54,68]
[14,27,37,52,74]
[10,21,null,55,70]
[8,23,35,57,75]
[9,22,31,56,67]
[null,null,null,null,{"$f":"+E3039+1","v":436}]
[]
[6,18,33,52,66]
[3,24,45,53,62]
[2,28,null,56,64]
[12,16,31,55,63]
[13,17,42,50,73]
[null,null,null,null,{"$f":"+E3046+1","v":437}]
[]
[3,26,39,58,65]
[11,30,31,53,69]
[8,25,null,55,67]
[2,24,43,47,70]
[4,20,44,57,61]
[null,null,null,null,{"$f":"+E3053+1","v":438}]
[]
[9,23,36,58,64]
[10,26,34,59,63]
[6,16,null,49,70]
[5,24,33,47,68]
[4,25,44,56,66]
[null,null,null,null,{"$f":"+E3060+1","v":439}]
[]
[9,16,35,51,68]
[3,28,43,52,74]
[6,29,null,49,72]
[4,26,44,55,66]
[5,22,41,59,71]
[null,null,null,null,{"$f":"+E3067+1","v":440}]
[]
[7,25,40,58,62]
[2,16,31,48,67]
[15,20,null,56,72]
[9,24,41,57,75]
[8,21,42,59,64]
[null,null,null,null,{"$f":"+E3074+1","v":441}]
[]
[12,21,42,47,62]
[7,18,40,48,71]
[2,20,null,46,75]
[10,22,35,49,68]
[14,16,45,60,64]
[null,null,null,null,{"$f":"+E3081+1","v":442}]
[]
[14,23,41,57,73]
[13,19,39,56,66]
[7,24,null,53,61]
[5,26,37,51,75]
[11,18,44,58,71]
[null,null,null,null,{"$f":"+E3088+1","v":443}]
[]
[9,23,38,46,74]
[5,17,37,58,69]
[1,28,null,48,65]
[13,16,36,50,63]
[6,24,39,55,75]
[null,null,null,null,{"$f":"+E3095+1","v":444}]
[]
[6,23,35,53,72]
[8,30,40,46,75]
[3,16,null,57,62]
[12,22,39,49,63]
[9,27,37,48,66]
[null,null,null,null,{"$f":"+E3102+1","v":445}]
[]
[11,22,35,57,65]
[8,25,43,51,71]
[10,28,null,56,72]
[15,23,45,49,74]
[5,24,38,53,67]
[null,null,null,null,{"$f":"+E3109+1","v":446}]
[]
[6,28,32,57,61]
[8,29,31,50,73]
[10,20,null,48,68]
[13,22,35,59,70]
[12,23,39,56,67]
[null,null,null,null,{"$f":"+E3116+1","v":447}]
[]
[7,30,38,55,66]
[6,17,34,60,69]
[12,16,null,56,72]
[13,20,31,47,62]
[3,25,39,49,70]
[null,null,null,null,{"$f":"+E3123+1","v":448}]
[]
[1,21,36,47,61]
[8,20,35,49,69]
[4,25,null,56,66]
[2,16,38,59,71]
[13,19,39,51,65]
[null,null,null,null,{"$f":"+E3130+1","v":449}]
[]
[3,27,36,50,62]
[4,25,43,53,65]
[1,16,null,57,74]
[5,20,38,58,67]
[2,22,41,55,66]
[null,null,null,null,{"$f":"+E3137+1","v":450}]
[]
[6,20,33,59,71]
[15,26,44,47,70]
[14,28,null,48,72]
[9,27,36,50,62]
[11,29,40,52,65]
[null,null,null,null,{"$f":"+E3144+1","v":451}]
[]
[9,16,37,53,73]
[7,21,32,55,65]
[11,23,null,50,72]
[1,17,35,54,64]
[12,27,45,48,61]
[null,null,null,null,{"$f":"+E3151+1","v":452}]
[]
[5,24,42,55,66]
[13,16,39,51,70]
[14,20,null,58,61]
[11,29,36,50,65]
[6,25,37,49,62]
[null,null,null,null,{"$f":"+E3158+1","v":453}]
[]
[13,26,32,50,61]
[4,29,40,53,63]
[6,28,null,52,70]
[14,24,39,59,74]
[7,17,41,60,71]
[null,null,null,null,{"$f":"+E3165+1","v":454}]
[]
[4,27,41,46,75]
[6,30,32,60,65]
[5,20,null,51,71]
[13,26,38,55,62]
[3,17,34,49,73]
[null,null,null,null,{"$f":"+E3172+1","v":455}]
[]
[7,29,42,46,62]
[1,16,38,59,67]
[11,20,null,55,74]
[8,24,34,51,72]
[15,30,37,53,69]
[null,null,null,null,{"$f":"+E3179+1","v":456}]
[]
[3,25,40,51,73]
[9,30,31,55,69]
[14,24,null,57,62]
[2,23,41,49,67]
[11,17,43,54,72]
[null,null,null,null,{"$f":"+E3186+1","v":457}]
[]
[7,23,31,54,66]
[8,20,44,49,70]
[10,19,null,47,62]
[14,21,37,46,63]
[6,26,41,58,64]
[null,null,null,null,{"$f":"+E3193+1","v":458}]
[]
[13,29,45,60,73]
[9,24,36,50,71]
[14,26,null,54,75]
[7,30,35,46,63]
[3,20,42,59,61]
[null,null,null,null,{"$f":"+E3200+1","v":459}]
[]
[1,28,41,48,74]
[5,18,34,53,67]
[8,21,null,59,68]
[10,24,32,54,73]
[13,25,31,57,64]
[null,null,null,null,{"$f":"+E3207+1","v":460}]
[]
[9,20,34,54,65]
[2,25,45,58,67]
[4,30,null,53,71]
[11,17,35,51,61]
[8,29,41,49,72]
[null,null,null,null,{"$f":"+E3214+1","v":461}]
[]
[9,29,39,57,70]
[11,25,40,54,63]
[2,24,null,50,72]
[1,26,34,52,75]
[4,18,32,49,61]
[null,null,null,null,{"$f":"+E3221+1","v":462}]
[]
[11,16,39,55,61]
[2,27,43,54,62]
[9,23,null,50,73]
[5,30,32,58,66]
[10,24,37,48,71]
[null,null,null,null,{"$f":"+E3228+1","v":463}]
[]
[10,22,38,59,61]
[6,20,31,51,64]
[9,16,null,50,74]
[2,17,41,46,68]
[4,19,39,49,63]
[null,null,null,null,{"$f":"+E3235+1","v":464}]
[]
[9,21,34,46,68]
[10,29,42,56,67]
[14,17,null,58,74]
[5,20,31,50,62]
[6,26,41,60,65]
[null,null,null,null,{"$f":"+E3242+1","v":465}]
[]
[11,16,34,53,68]
[7,17,31,54,63]
[8,27,null,50,73]
[9,18,37,60,74]
[4,20,42,56,62]
[null,null,null,null,{"$f":"+E3249+1","v":466}]
[]
[14,22,45,57,66]
[8,28,38,48,65]
[12,21,null,55,69]
[13,29,41,56,74]
[15,17,32,60,70]
[null,null,null,null,{"$f":"+E3256+1","v":467}]
[]
[14,18,33,57,75]
[7,30,44,60,69]
[2,24,null,55,70]
[3,22,34,51,63]
[9,21,36,54,61]
[null,null,null,null,{"$f":"+E3263+1","v":468}]
[]
[8,18,35,55,71]
[9,19,34,52,65]
[4,26,null,48,66]
[11,17,43,59,69]
[15,28,45,54,63]
[null,null,null,null,{"$f":"+E3270+1","v":469}]
[]
[15,29,45,47,65]
[1,22,33,53,62]
[3,27,null,50,70]
[14,19,32,59,72]
[4,30,38,55,67]
[null,null,null,null,{"$f":"+E3277+1","v":470}]
[]
[9,21,43,51,74]
[12,16,34,48,73]
[7,19,null,57,64]
[6,30,38,60,62]
[11,27,32,49,61]
[null,null,null,null,{"$f":"+E3284+1","v":471}]
[]
[6,24,37,52,62]
[3,21,42,58,72]
[15,17,null,49,66]
[8,29,40,46,71]
[4,22,31,57,73]
[null,null,null,null,{"$f":"+E3291+1","v":472}]
[]
[8,21,32,55,67]
[1,20,45,59,68]
[9,16,null,60,65]
[15,22,33,51,73]
[7,27,39,52,62]
[null,null,null,null,{"$f":"+E3298+1","v":473}]
[]
[8,16,34,51,68]
[15,25,40,55,74]
[2,24,null,59,65]
[12,27,41,49,71]
[10,19,31,47,61]
[null,null,null,null,{"$f":"+E3305+1","v":474}]
[]
[11,25,32,49,71]
[12,19,43,47,66]
[9,26,null,48,61]
[15,23,45,56,73]
[10,28,36,53,75]
[null,null,null,null,{"$f":"+E3312+1","v":475}]
[]
[4,16,45,53,61]
[9,28,32,57,72]
[2,30,null,56,75]
[13,21,40,55,66]
[1,20,42,58,63]
[null,null,null,null,{"$f":"+E3319+1","v":476}]
[]
[10,22,41,51,62]
[9,23,40,53,74]
[12,30,null,58,65]
[4,29,45,56,63]
[3,20,44,55,61]
[null,null,null,null,{"$f":"+E3326+1","v":477}]
[]
[8,20,34,58,73]
[10,17,43,55,67]
[1,30,null,54,61]
[6,16,42,46,68]
[12,22,40,48,62]
[null,null,null,null,{"$f":"+E3333+1","v":478}]
[]
[7,22,44,57,68]
[2,20,38,46,75]
[14,23,null,48,69]
[4,18,42,52,63]
[8,27,33,55,62]
[null,null,null,null,{"$f":"+E3340+1","v":479}]
[]
[8,24,31,50,74]
[4,26,33,52,69]
[3,30,null,53,66]
[6,22,43,49,67]
[1,23,36,58,62]
[null,null,null,null,{"$f":"+E3347+1","v":480}]
[]
[15,29,38,46,63]
[1,19,37,50,71]
[8,20,null,48,62]
[14,24,32,52,72]
[6,26,45,57,68]
[null,null,null,null,{"$f":"+E3354+1","v":481}]
[]
[11,21,41,52,66]
[1,27,45,47,64]
[14,25,null,55,61]
[13,17,40,54,63]
[3,24,34,57,75]
[null,null,null,null,{"$f":"+E3361+1","v":482}]
[]
[4,29,43,46,63]
[7,25,31,56,68]
[6,23,null,50,70]
[10,18,35,47,62]
[14,26,37,57,75]
[null,null,null,null,{"$f":"+E3368+1","v":483}]
[]
[6,21,42,54,69]
[1,27,33,52,74]
[12,29,null,48,62]
[5,28,31,51,71]
[13,17,44,49,63]
[null,null,null,null,{"$f":"+E3375+1","v":484}]
[]
[2,17,41,46,71]
[6,22,44,60,62]
[11,25,null,49,69]
[1,18,33,57,75]
[7,20,45,50,65]
[null,null,null,null,{"$f":"+E3382+1","v":485}]
[]
[4,28,31,52,72]
[2,27,43,54,67]
[14,30,null,59,69]
[8,22,35,50,64]
[10,16,38,60,65]
[null,null,null,null,{"$f":"+E3389+1","v":486}]
[]
[9,25,37,47,73]
[12,28,33,50,66]
[1,24,null,49,61]
[15,19,45,53,71]
[11,27,39,46,62]
[null,null,null,null,{"$f":"+E3396+1","v":487}]
[]
[10,21,31,54,64]
[14,30,41,48,67]
[5,20,null,46,70]
[12,25,33,59,69]
[9,16,45,47,65]
[null,null,null,null,{"$f":"+E3403+1","v":488}]
[]
[3,20,43,50,68]
[7,25,39,47,71]
[10,30,null,48,70]
[1,21,45,56,65]
[5,16,44,49,66]
[null,null,null,null,{"$f":"+E3410+1","v":489}]
[]
[5,22,44,60,73]
[3,17,41,56,66]
[6,28,null,59,70]
[14,19,33,54,68]
[7,26,35,58,62]
[null,null,null,null,{"$f":"+E3417+1","v":490}]
[]
[1,16,43,52,65]
[14,24,37,58,71]
[15,22,null,60,63]
[5,25,44,48,69]
[7,20,41,55,72]
[null,null,null,null,{"$f":"+E3424+1","v":491}]
[]
[2,16,38,56,62]
[10,28,39,49,71]
[8,25,null,58,66]
[9,19,44,57,72]
[7,23,41,60,63]
[null,null,null,null,{"$f":"+E3431+1","v":492}]
[]
[13,27,39,52,64]
[1,30,38,57,75]
[6,25,null,53,69]
[5,20,37,60,61]
[11,19,40,47,74]
[null,null,null,null,{"$f":"+E3438+1","v":493}]
[]
[1,25,32,58,66]
[10,18,36,54,75]
[11,19,null,59,69]
[7,21,37,57,74]
[13,26,33,49,71]
[null,null,null,null,{"$f":"+E3445+1","v":494}]
[]
[6,17,31,54,70]
[14,19,44,49,71]
[4,26,null,55,69]
[12,27,43,57,72]
[3,25,36,48,61]
[null,null,null,null,{"$f":"+E3452+1","v":495}]
[]
[12,22,34,49,71]
[14,19,41,47,68]
[7,16,null,54,61]
[5,20,36,57,62]
[1,18,37,51,75]
[null,null,null,null,{"$f":"+E3459+1","v":496}]
[]
[13,30,36,47,64]
[8,29,35,49,73]
[5,23,null,57,69]
[1,16,42,51,66]
[15,18,41,52,63]
[null,null,null,null,{"$f":"+E3466+1","v":497}]
[]
[2,24,43,50,74]
[4,17,39,59,63]
[5,30,null,57,69]
[13,20,40,53,70]
[1,21,34,54,67]
[null,null,null,null,{"$f":"+E3473+1","v":498}]
[]
[12,30,31,52,75]
[5,18,38,56,68]
[2,28,null,46,62]
[10,19,44,49,71]
[6,27,42,51,70]
[null,null,null,null,{"$f":"+E3480+1","v":499}]
[]
[5,19,42,48,66]
[2,25,45,50,72]
[15,16,null,60,68]
[9,17,33,56,75]
[7,24,31,49,64]
[null,null,null,null,{"$f":"+E3487+1","v":500}]
[]
[6,16,43,59,65]
[4,28,40,50,73]
[1,24,null,55,69]
[9,25,31,52,61]
[8,29,33,47,74]
[null,null,null,null,{"$f":"+E3494+1","v":501}]
[]
[7,16,32,57,75]
[4,19,37,46,61]
[11,21,null,47,67]
[10,23,31,60,63]
[6,26,43,54,64]
[null,null,null,null,{"$f":"+E3501+1","v":502}]
[]
[8,26,39,56,67]
[11,30,42,46,63]
[2,25,null,58,68]
[1,24,40,47,64]
[13,16,43,49,70]
[null,null,null,null,{"$f":"+E3508+1","v":503}]
[]
[4,20,33,59,70]
[5,30,44,58,71]
[1,23,null,48,67]
[15,21,38,49,72]
[9,18,37,51,62]
[null,null,null,null,{"$f":"+E3515+1","v":504}]
[]
[12,30,31,47,62]
[8,27,42,56,71]
[14,21,null,60,70]
[6,23,33,49,63]
[1,17,35,48,73]
[null,null,null,null,{"$f":"+E3522+1","v":505}]
[]
[14,18,36,49,72]
[13,27,33,47,70]
[15,29,null,51,63]
[5,30,40,54,74]
[9,20,38,55,69]
[null,null,null,null,{"$f":"+E3529+1","v":506}]
[]
[13,26,40,54,68]
[9,30,33,52,70]
[15,24,null,57,62]
[8,23,44,59,63]
[10,16,31,55,73]
[null,null,null,null,{"$f":"+E3536+1","v":507}]
[]
[7,20,33,57,68]
[8,16,43,51,62]
[5,28,null,54,71]
[9,21,31,59,66]
[2,26,44,55,70]
[null,null,null,null,{"$f":"+E3543+1","v":508}]
[]
[5,16,38,57,75]
[2,27,42,46,69]
[9,22,null,58,63]
[1,26,34,50,71]
[13,23,40,47,70]
[null,null,null,null,{"$f":"+E3550+1","v":509}]
[]
[5,21,35,53,65]
[8,29,42,55,73]
[12,24,null,52,70]
[14,19,40,50,69]
[9,18,34,56,68]
[null,null,null,null,{"$f":"+E3557+1","v":510}]
[]
[12,29,34,54,66]
[10,21,39,53,62]
[13,26,null,58,68]
[1,22,41,48,63]
[11,27,36,47,65]
[null,null,null,null,{"$f":"+E3564+1","v":511}]
[]
[15,30,32,48,75]
[7,21,39,46,61]
[8,27,null,54,67]
[13,26,34,50,65]
[9,24,45,51,68]
[null,null,null,null,{"$f":"+E3571+1","v":512}]
[]
[8,19,39,46,73]
[7,23,31,57,61]
[4,22,null,49,74]
[2,26,43,55,63]
[14,21,33,50,71]
[null,null,null,null,{"$f":"+E3578+1","v":513}]
[]
[14,28,39,56,67]
[15,21,36,51,69]
[9,20,null,52,63]
[13,23,42,48,70]
[8,29,40,60,74]
[null,null,null,null,{"$f":"+E3585+1","v":514}]
[]
[1,18,38,53,69]
[7,20,40,52,64]
[3,25,null,50,67]
[4,28,42,57,61]
[13,24,34,46,75]
[null,null,null,null,{"$f":"+E3592+1","v":515}]
[]
[1,25,35,51,71]
[10,28,42,52,69]
[12,17,null,46,66]
[4,21,39,60,62]
[15,18,36,57,74]
[null,null,null,null,{"$f":"+E3599+1","v":516}]
[]
[15,19,43,51,61]
[8,20,42,46,64]
[13,26,null,60,74]
[2,16,40,50,71]
[12,18,34,52,66]
[null,null,null,null,{"$f":"+E3606+1","v":517}]
[]
[8,19,37,60,63]
[13,17,34,47,67]
[3,25,null,54,65]
[7,30,38,50,64]
[12,29,41,55,66]
[null,null,null,null,{"$f":"+E3613+1","v":518}]
[]
[13,20,43,53,67]
[12,18,42,56,61]
[15,30,null,59,69]
[10,16,35,51,74]
[9,29,32,57,62]
[null,null,null,null,{"$f":"+E3620+1","v":519}]
[]
[10,29,40,47,71]
[13,26,45,60,67]
[7,25,null,57,65]
[12,21,41,56,69]
[3,24,32,53,62]
[null,null,null,null,{"$f":"+E3627+1","v":520}]
[]
[3,28,39,54,72]
[7,23,37,52,69]
[2,27,null,56,68]
[8,18,44,57,64]
[14,20,32,55,66]
[null,null,null,null,{"$f":"+E3634+1","v":521}]
[]
[8,21,35,55,69]
[11,16,37,57,70]
[9,24,null,50,61]
[6,27,45,51,65]
[10,18,39,46,67]
[null,null,null,null,{"$f":"+E3641+1","v":522}]
[]
[15,21,36,56,64]
[9,16,38,59,71]
[7,18,null,58,66]
[14,28,44,50,61]
[6,26,31,54,70]
[null,null,null,null,{"$f":"+E3648+1","v":523}]
[]
[2,26,40,46,67]
[1,27,41,56,68]
[10,21,null,55,64]
[14,29,36,49,75]
[8,22,31,60,74]
[null,null,null,null,{"$f":"+E3655+1","v":524}]
[]
[6,24,35,55,63]
[7,21,32,53,65]
[9,18,null,59,64]
[1,30,43,57,74]
[2,16,42,52,67]
[null,null,null,null,{"$f":"+E3662+1","v":525}]
[]
[8,26,42,50,66]
[3,18,32,46,73]
[5,28,null,49,65]
[14,22,33,59,63]
[6,19,31,53,61]
[null,null,null,null,{"$f":"+E3669+1","v":526}]
[]
[10,18,43,50,61]
[14,27,34,56,73]
[9,16,null,47,65]
[8,21,32,57,62]
[4,25,35,53,68]
[null,null,null,null,{"$f":"+E3676+1","v":527}]
[]
[15,24,35,47,63]
[2,20,34,51,72]
[8,21,null,57,68]
[13,30,44,56,75]
[12,27,39,46,74]
[null,null,null,null,{"$f":"+E3683+1","v":528}]
[]
[5,26,35,53,66]
[15,28,34,47,62]
[10,17,null,55,67]
[1,30,31,49,68]
[14,29,39,51,61]
[null,null,null,null,{"$f":"+E3690+1","v":529}]
[]
[5,29,34,55,67]
[9,16,41,56,68]
[8,23,null,46,64]
[4,25,35,57,61]
[12,24,42,53,62]
[null,null,null,null,{"$f":"+E3697+1","v":530}]
[]
[1,22,37,55,69]
[4,17,40,50,72]
[6,19,null,57,68]
[8,28,43,53,65]
[11,21,35,46,70]
[null,null,null,null,{"$f":"+E3704+1","v":531}]
[]
[3,25,44,53,66]
[11,18,31,56,74]
[6,24,null,47,70]
[9,17,33,49,62]
[7,19,35,58,68]
[null,null,null,null,{"$f":"+E3711+1","v":532}]
[]
[9,22,34,55,62]
[11,18,35,53,64]
[12,28,null,58,68]
[7,26,33,56,74]
[15,23,36,50,63]
[null,null,null,null,{"$f":"+E3718+1","v":533}]
[]
[5,28,31,56,61]
[9,24,39,58,72]
[13,18,null,46,71]
[2,23,45,48,74]
[6,30,35,59,64]
[null,null,null,null,{"$f":"+E3725+1","v":534}]
[]
[8,22,36,55,75]
[3,20,34,47,62]
[15,24,null,51,65]
[7,28,32,50,67]
[14,18,44,46,74]
[null,null,null,null,{"$f":"+E3732+1","v":535}]
[]
[8,20,33,55,70]
[7,27,36,49,61]
[3,30,null,60,71]
[12,19,35,59,63]
[2,18,32,48,75]
[null,null,null,null,{"$f":"+E3739+1","v":536}]
[]
[3,24,32,54,70]
[15,19,31,57,74]
[11,21,null,55,62]
[6,26,45,49,73]
[14,30,42,50,67]
[null,null,null,null,{"$f":"+E3746+1","v":537}]
[]
[9,30,43,48,63]
[13,24,37,53,65]
[8,20,null,50,75]
[1,22,33,47,72]
[12,19,35,46,74]
[null,null,null,null,{"$f":"+E3753+1","v":538}]
[]
[4,18,43,54,62]
[1,26,41,49,70]
[15,21,null,50,69]
[8,25,34,53,73]
[6,16,40,57,68]
[null,null,null,null,{"$f":"+E3760+1","v":539}]
[]
[6,24,36,46,61]
[9,23,44,56,62]
[11,21,null,49,64]
[3,20,43,51,66]
[10,17,41,47,71]
[null,null,null,null,{"$f":"+E3767+1","v":540}]
[]
[2,26,39,51,61]
[4,17,34,54,66]
[5,29,null,60,74]
[10,24,45,46,72]
[1,19,38,55,70]
[null,null,null,null,{"$f":"+E3774+1","v":541}]
[]
[2,17,40,54,68]
[13,18,43,53,62]
[9,21,null,52,67]
[10,22,35,47,66]
[4,29,41,48,74]
[null,null,null,null,{"$f":"+E3781+1","v":542}]
[]
[15,29,44,55,63]
[5,27,35,49,72]
[6,25,null,46,66]
[10,22,38,59,69]
[3,26,34,52,75]
[null,null,null,null,{"$f":"+E3788+1","v":543}]
[]
[15,26,31,47,63]
[7,23,35,50,73]
[10,16,null,60,66]
[9,22,41,57,64]
[3,29,44,56,61]
[null,null,null,null,{"$f":"+E3795+1","v":544}]
[]
[13,21,41,46,74]
[15,24,37,47,75]
[2,18,null,48,71]
[10,30,33,58,61]
[8,25,44,51,73]
[null,null,null,null,{"$f":"+E3802+1","v":545}]
[]
[12,19,38,50,72]
[5,23,32,47,64]
[1,29,null,54,61]
[4,28,37,56,63]
[14,20,36,60,69]
[null,null,null,null,{"$f":"+E3809+1","v":546}]
[]
[7,29,44,58,63]
[4,23,45,46,64]
[6,26,null,50,67]
[10,27,37,60,71]
[13,19,40,59,68]
[null,null,null,null,{"$f":"+E3816+1","v":547}]
[]
[11,21,32,46,61]
[2,17,35,50,74]
[1,24,null,56,68]
[6,26,37,55,66]
[10,16,41,52,67]
[null,null,null,null,{"$f":"+E3823+1","v":548}]
[]
[10,26,38,46,66]
[5,22,42,52,69]
[8,21,null,58,71]
[4,29,40,55,63]
[3,28,35,47,64]
[null,null,null,null,{"$f":"+E3830+1","v":549}]
[]
[10,30,32,56,75]
[15,20,40,58,68]
[1,25,null,52,72]
[3,22,45,54,66]
[14,26,41,48,74]
[null,null,null,null,{"$f":"+E3837+1","v":550}]
[]
[4,23,43,53,70]
[1,16,41,59,63]
[10,26,null,56,61]
[8,18,38,51,75]
[7,19,34,57,67]
[null,null,null,null,{"$f":"+E3844+1","v":551}]
[]
[3,22,43,52,74]
[7,18,41,59,64]
[13,17,null,53,68]
[6,19,39,49,72]
[8,30,35,60,62]
[null,null,null,null,{"$f":"+E3851+1","v":552}]
[]
[14,17,41,49,74]
[10,30,45,60,72]
[3,26,null,47,70]
[11,25,34,59,65]
[7,19,33,57,68]
[null,null,null,null,{"$f":"+E3858+1","v":553}]
[]
[8,25,33,47,69]
[10,16,41,60,70]
[1,19,null,46,64]
[12,26,34,54,71]
[5,28,38,57,75]
[null,null,null,null,{"$f":"+E3865+1","v":554}]
[]
[15,22,39,54,73]
[1,29,41,57,74]
[11,26,null,59,75]
[5,19,44,60,72]
[4,21,34,52,65]
[null,null,null,null,{"$f":"+E3872+1","v":555}]
[]
[13,21,34,56,66]
[9,29,38,51,70]
[14,17,null,55,71]
[8,26,37,54,69]
[1,16,43,59,65]
[null,null,null,null,{"$f":"+E3879+1","v":556}]
[]
[9,24,38,48,67]
[7,30,32,58,62]
[11,27,null,52,72]
[1,16,35,50,68]
[13,28,43,59,75]
[null,null,null,null,{"$f":"+E3886+1","v":557}]
[]
[2,18,33,57,72]
[15,19,35,56,67]
[1,26,null,51,74]
[14,22,31,52,75]
[5,16,40,46,65]
[null,null,null,null,{"$f":"+E3893+1","v":558}]
[]
[3,20,31,57,63]
[10,29,35,53,72]
[14,18,null,48,67]
[13,26,42,52,66]
[4,30,39,58,73]
[null,null,null,null,{"$f":"+E3900+1","v":559}]
[]
[1,17,44,51,63]
[11,22,36,57,64]
[10,16,null,56,66]
[15,28,40,60,67]
[2,30,34,46,61]
[null,null,null,null,{"$f":"+E3907+1","v":560}]
[]
[7,29,39,54,75]
[12,26,43,59,71]
[13,17,null,55,70]
[5,21,36,50,67]
[6,23,38,58,66]
[null,null,null,null,{"$f":"+E3914+1","v":561}]
[]
[5,27,42,57,73]
[7,20,40,56,68]
[10,23,null,50,71]
[8,24,32,55,67]
[1,17,44,58,69]
[null,null,null,null,{"$f":"+E3921+1","v":562}]
[]
[6,23,39,50,75]
[5,25,44,59,73]
[1,22,null,54,70]
[10,17,31,53,66]
[13,16,37,58,61]
[null,null,null,null,{"$f":"+E3928+1","v":563}]
[]
[14,23,32,50,65]
[9,20,45,48,64]
[1,18,null,59,67]
[12,29,34,57,74]
[10,22,44,47,75]
[null,null,null,null,{"$f":"+E3935+1","v":564}]
[]
[9,18,31,59,63]
[4,24,36,55,72]
[7,29,null,48,75]
[12,25,40,50,68]
[3,20,34,47,66]
[null,null,null,null,{"$f":"+E3942+1","v":565}]
[]
[11,30,45,59,63]
[4,26,43,56,65]
[7,25,null,46,75]
[8,24,32,57,61]
[6,27,41,49,68]
[null,null,null,null,{"$f":"+E3949+1","v":566}]
[]
[11,24,38,58,63]
[10,27,42,53,66]
[5,28,null,46,67]
[6,19,40,57,75]
[9,16,39,59,61]
[null,null,null,null,{"$f":"+E3956+1","v":567}]
[]
[13,16,43,48,62]
[7,25,35,59,63]
[4,24,null,52,69]
[3,29,37,58,74]
[10,19,33,54,71]
[null,null,null,null,{"$f":"+E3963+1","v":568}]
[]
[6,24,45,52,68]
[2,18,37,50,69]
[13,23,null,51,64]
[14,22,38,58,73]
[1,30,36,57,66]
[null,null,null,null,{"$f":"+E3970+1","v":569}]
[]
[14,29,42,53,73]
[5,18,31,59,69]
[1,27,null,50,66]
[15,21,35,46,64]
[13,20,44,54,74]
[null,null,null,null,{"$f":"+E3977+1","v":570}]
[]
[14,23,40,48,70]
[3,27,33,52,68]
[15,18,null,57,73]
[7,16,41,60,69]
[12,21,39,53,67]
[null,null,null,null,{"$f":"+E3984+1","v":571}]
[]
[3,26,32,60,75]
[2,21,45,54,62]
[6,24,null,51,69]
[15,25,43,47,68]
[4,19,35,56,61]
[null,null,null,null,{"$f":"+E3991+1","v":572}]
[]
[12,18,45,60,71]
[4,16,40,50,65]
[11,21,null,59,74]
[6,17,37,46,66]
[3,29,44,48,73]
[null,null,null,null,{"$f":"+E3998+1","v":573}]
[]
[4,22,41,55,70]
[1,16,37,52,61]
[3,24,null,59,64]
[9,18,35,58,69]
[2,30,32,46,65]
[null,null,null,null,{"$f":"+E4005+1","v":574}]
[]
[15,17,41,50,73]
[1,20,38,48,72]
[12,16,null,51,64]
[10,26,32,60,70]
[7,25,40,47,66]
[null,null,null,null,{"$f":"+E4012+1","v":575}]
[]
[5,29,44,46,75]
[7,28,36,55,67]
[11,19,null,60,65]
[15,22,40,59,62]
[12,24,43,51,66]
[null,null,null,null,{"$f":"+E4019+1","v":576}]
[]
[7,16,40,52,68]
[11,21,37,49,66]
[10,26,null,55,63]
[2,23,31,53,71]
[13,17,38,57,72]
[null,null,null,null,{"$f":"+E4026+1","v":577}]
[]
[2,21,45,49,68]
[13,24,36,51,65]
[10,30,null,47,71]
[5,17,37,53,67]
[7,29,34,50,75]
[null,null,null,null,{"$f":"+E4033+1","v":578}]
[]
[9,30,36,49,68]
[5,17,35,51,66]
[4,21,null,58,72]
[1,26,43,50,62]
[2,23,39,53,64]
[null,null,null,null,{"$f":"+E4040+1","v":579}]
[]
[8,29,39,53,68]
[2,20,37,46,73]
[7,25,null,48,62]
[11,23,43,50,75]
[1,26,44,51,64]
[null,null,null,null,{"$f":"+E4047+1","v":580}]
[]
[11,19,41,60,70]
[7,30,39,48,75]
[14,29,null,54,73]
[15,24,36,55,62]
[1,18,34,59,65]
[null,null,null,null,{"$f":"+E4054+1","v":581}]
[]
[10,25,42,60,72]
[14,28,38,52,62]
[2,21,null,57,64]
[4,18,44,48,71]
[1,16,36,51,70]
[null,null,null,null,{"$f":"+E4061+1","v":582}]
[]
[9,29,32,48,61]
[10,28,43,58,64]
[1,20,null,60,70]
[6,30,42,47,72]
[7,21,38,57,66]
[null,null,null,null,{"$f":"+E4068+1","v":583}]
[]
[3,19,31,56,63]
[8,26,39,47,75]
[7,28,null,60,71]
[12,29,41,51,65]
[13,24,35,46,72]
[null,null,null,null,{"$f":"+E4075+1","v":584}]
[]
[5,16,37,56,64]
[2,25,38,51,70]
[7,23,null,59,66]
[13,22,42,50,71]
[4,24,43,47,74]
[null,null,null,null,{"$f":"+E4082+1","v":585}]
[]
[10,21,35,52,67]
[6,20,41,55,74]
[15,28,null,46,70]
[3,25,37,49,62]
[5,27,43,51,71]
[null,null,null,null,{"$f":"+E4089+1","v":586}]
[]
[10,29,41,55,67]
[11,25,37,50,63]
[9,22,null,48,64]
[12,16,42,59,66]
[4,17,33,56,65]
[null,null,null,null,{"$f":"+E4096+1","v":587}]
[]
[6,26,36,55,72]
[9,25,42,46,74]
[15,17,null,59,70]
[14,21,41,53,61]
[10,19,43,54,62]
[null,null,null,null,{"$f":"+E4103+1","v":588}]
[]
[13,26,34,54,64]
[9,30,33,60,61]
[6,21,null,53,62]
[15,29,45,56,74]
[7,27,36,49,69]
[null,null,null,null,{"$f":"+E4110+1","v":589}]
[]
[13,20,32,60,70]
[15,23,38,47,63]
[12,28,null,52,61]
[6,21,44,48,66]
[9,27,35,53,74]
[null,null,null,null,{"$f":"+E4117+1","v":590}]
[]
[5,30,38,49,69]
[10,26,41,47,65]
[1,23,null,50,74]
[6,18,42,46,68]
[12,17,44,58,62]
[null,null,null,null,{"$f":"+E4124+1","v":591}]
[]
[13,16,32,51,73]
[15,29,31,49,72]
[12,19,null,47,65]
[2,30,43,52,66]
[1,18,39,46,69]
[null,null,null,null,{"$f":"+E4131+1","v":592}]
[]
[12,29,38,49,63]
[8,30,37,54,66]
[2,17,null,56,64]
[5,26,45,50,61]
[1,18,33,51,68]
[null,null,null,null,{"$f":"+E4138+1","v":593}]
[]
[9,25,41,49,75]
[2,29,45,53,67]
[4,26,null,54,61]
[13,22,40,52,64]
[10,17,39,57,70]
[null,null,null,null,{"$f":"+E4145+1","v":594}]
[]
[5,26,44,47,75]
[7,20,41,60,72]
[12,23,null,56,66]
[9,29,36,58,71]
[13,16,35,55,61]
[null,null,null,null,{"$f":"+E4152+1","v":595}]
[]
[8,20,40,54,68]
[10,16,43,56,70]
[6,23,null,57,65]
[13,21,34,50,63]
[3,18,38,51,73]
[null,null,null,null,{"$f":"+E4159+1","v":596}]
[]
[11,25,45,59,64]
[2,20,40,47,73]
[3,17,null,57,74]
[15,27,41,52,68]
[6,24,34,55,67]
[null,null,null,null,{"$f":"+E4166+1","v":597}]
[]
[9,16,34,56,67]
[15,28,37,60,64]
[2,22,null,49,61]
[7,27,45,58,68]
[11,30,38,57,74]
[null,null,null,null,{"$f":"+E4173+1","v":598}]
[]
[5,29,33,54,71]
[8,24,44,53,72]
[1,18,null,52,65]
[3,26,43,56,69]
[14,25,32,60,63]
[null,null,null,null,{"$f":"+E4180+1","v":599}]
[]
[13,19,34,57,69]
[11,17,35,52,61]
[14,29,null,48,72]
[3,24,40,59,74]
[7,28,37,56,63]
[null,null,null,null,{"$f":"+E4187+1","v":600}]
[]
[8,20,35,46,74]
[9,27,44,52,73]
[10,26,null,60,66]
[6,22,42,56,72]
[7,24,31,57,75]
[null,null,null,null,{"$f":"+E4194+1","v":601}]
[]
[10,16,38,56,71]
[3,20,34,58,62]
[15,19,null,57,65]
[12,29,36,48,69]
[5,24,44,53,66]
[null,null,null,null,{"$f":"+E4201+1","v":602}]
[]
[5,19,40,58,74]
[11,23,36,56,75]
[2,20,null,53,62]
[10,26,31,48,66]
[8,27,39,47,67]
[null,null,null,null,{"$f":"+E4208+1","v":603}]
[]
[9,24,41,56,67]
[6,29,43,48,73]
[13,27,null,60,64]
[11,30,37,51,63]
[4,28,33,55,61]
[null,null,null,null,{"$f":"+E4215+1","v":604}]
[]
[1,21,33,47,73]
[13,17,39,49,63]
[9,28,null,54,71]
[14,20,43,46,67]
[10,30,41,57,72]
[null,null,null,null,{"$f":"+E4222+1","v":605}]
[]
[10,29,45,48,64]
[4,19,39,57,61]
[5,18,null,56,72]
[1,24,31,60,65]
[15,20,38,54,69]
[null,null,null,null,{"$f":"+E4229+1","v":606}]
[]
[7,28,45,55,71]
[14,22,44,57,67]
[8,30,null,59,74]
[6,21,34,51,66]
[9,26,38,49,64]
[null,null,null,null,{"$f":"+E4236+1","v":607}]
[]
[4,23,35,48,73]
[6,28,37,52,68]
[2,18,null,56,62]
[11,17,34,60,61]
[14,25,45,59,63]
[null,null,null,null,{"$f":"+E4243+1","v":608}]
[]
[6,25,33,59,69]
[9,27,35,54,71]
[14,30,null,52,68]
[4,21,42,57,72]
[10,29,40,53,64]
[null,null,null,null,{"$f":"+E4250+1","v":609}]
[]
[12,25,39,48,74]
[5,24,41,53,61]
[9,20,null,46,75]
[10,19,44,47,73]
[13,27,38,49,66]
[null,null,null,null,{"$f":"+E4257+1","v":610}]
[]
[14,19,44,58,63]
[13,20,42,54,72]
[9,27,null,53,69]
[5,21,43,52,61]
[11,24,31,49,67]

{"sheet":"cartones jugados","index":5,"n_rows":4009,"n_cols":12,"rows_kept":4009,"cut":false,"hidden":false,"merged":[[0,1,0,2]]}
[null,"Nºs en juego (Rango)"]
["Nºs en juego","desde","hasta",null,"NUMEROS JUGADOS"]
[null,null,null,null,null,null,null,null,null,null,null,{"$f":"+E3","v":0}]
[null,null,null,null,null,null,null,null,null,null,null,{"$f":"+E4","v":0}]
[null,null,null,null,null,null,null,null,null,null,null,0]
[null,null,null,null,null,null,null,null,null,null,null,0]
[null,null,null,null,null,null,null,null,null,null,null,0]
[null,null,null,null,null,null,null,null,null,null,null,0]
[null,null,null,null,null,null,null,null,null,null,null,0]
[null,null,null,null,null,null,null,null,null,null,null,0]
[null,null,null,null,null,null,null,null,null,null,null,0]
[null,null,null,null,null,null,null,null,null,null,null,0]
[null,null,null,null,null,null,null,null,null,null,null,0]
[null,null,null,null,null,null,null,null,null,null,null,0]
[null,null,null,null,null,null,null,null,null,null,null,0]
[null,null,null,null,null,null,null,null,null,null,null,0]
[null,null,null,null,null,null,null,null,null,null,null,0]
[null,null,null,null,null,null,null,null,null,null,null,0]
[null,null,null,null,null,null,null,null,null,null,null,0]
[null,null,null,null,null,null,null,null,null,null,null,0]
[null,null,null,null,null,null,null,null,null,null,null,0]
[null,null,null,null,null,null,null,null,null,null,null,0]
[null,null,null,null,null,null,null,null,null,null,null,0]
[null,null,null,null,null,null,null,null,null,null,null,0]
[null,null,null,null,null,null,null,null,null,null,null,0]
[null,null,null,null,null,null,null,null,null,null,null,0]
[null,null,null,null,null,null,null,null,null,null,null,0]
[null,null,null,null,null,null,null,null,null,null,null,0]
[null,null,null,null,null,null,null,null,null,null,null,0]
[null,null,null,null,null,null,null,null,null,null,null,0]
[null,null,null,null,null,null,null,null,null,null,null,0]
[null,null,null,null,null,null,null,null,null,null,null,0]
[null,null,null,null,null,null,null,null,null,null,null,0]
[null,null,null,null,null,null,null,null,null,null,null,0]
[null,null,null,null,null,null,null,null,null,null,null,0]
[null,null,null,null,null,null,null,null,null,null,null,0]
[null,null,null,null,null,null,null,null,null,null,null,0]
[null,null,null,null,null,null,null,null,null,null,null,0]
[null,null,null,null,null,null,null,null,null,null,null,0]
[null,null,null,null,null,null,null,null,null,null,null,0]
[null,null,null,null,null,null,null,null,null,null,null,0]
[null,null,null,null,null,null,null,null,null,null,null,0]
[null,null,null,null,null,null,null,null,null,null,null,0]
[null,null,null,null,null,null,null,null,null,null,null,0]
[null,null,null,null,null,null,null,null,null,null,null,0]
[null,null,null,null,null,null,null,null,null,null,null,0]
[null,null,null,null,null,null,null,null,null,null,null,0]
[null,null,null,null,null,null,null,null,null,null,null,0]
[null,null,null,null,null,null,null,null,null,null,null,0]
[null,null,null,null,null,null,null,null,null,null,null,0]
[null,null,null,null,null,null,null,null,null,null,null,0]
[null,null,null,null,null,null,null,null,null,null,null,0]
[null,null,null,null,null,null,null,null,null,null,null,0]
[null,null,null,null,null,null,null,null,null,null,null,0]
[null,null,null,null,null,null,null,null,null,null,null,0]
[null,null,null,null,null,null,null,null,null,null,null,0]
[null,null,null,null,null,null,null,null,null,null,null,0]
[null,null,null,null,null,null,null,null,null,null,null,0]
[null,null,null,null,null,null,null,null,null,null,null,0]
[null,null,null,null,null,null,null,null,null,null,null,0]
[null,null,null,null,null,null,null,null,null,null,null,0]
[null,null,null,null,null,null,null,null,null,null,null,0]
[null,null,null,null,null,null,null,null,null,null,null,0]
[null,null,null,null,null,null,null,null,null,null,null,0]
[null,null,null,null,null,null,null,null,null,null,null,0]
[null,null,null,null,null,null,null,null,null,null,null,0]
[null,null,null,null,null,null,null,null,null,null,null,0]
[null,null,null,null,null,null,null,null,null,null,null,{"$f":"+E68","v":0}]
[null,null,null,null,null,null,null,null,null,null,null,0]
[null,null,null,null,null,null,null,null,null,null,null,0]
[null,null,null,null,null,null,null,null,null,null,null,0]
[null,null,null,null,null,null,null,null,null,null,null,0]
[null,null,null,null,null,null,null,null,null,null,null,0]
[null,null,null,null,null,null,null,null,null,null,null,0]
[null,null,null,null,null,null,null,null,null,null,null,0]
[null,null,null,null,null,null,null,null,null,null,null,0]
[null,null,null,null,null,null,null,null,null,null,null,0]
[null,null,null,null,null,null,null,null,null,null,null,0]
[null,null,null,null,null,null,null,null,null,null,null,0]
[null,null,null,null,null,null,null,null,null,null,null,0]
[null,null,null,null,null,null,null,null,null,null,null,0]
[null,null,null,null,null,null,null,null,null,null,null,0]
[null,null,null,null,null,null,null,null,null,null,null,0]
[null,null,null,null,null,null,null,null,null,null,null,0]
[null,null,null,null,null,null,null,null,null,null,null,0]
[null,null,null,null,null,null,null,null,null,null,null,0]
[null,null,null,null,null,null,null,null,null,null,null,0]
[null,null,null,null,null,null,null,null,null,null,null,0]
[null,null,null,null,null,null,null,null,null,null,null,0]
[null,null,null,null,null,null,null,null,null,null,null,0]
[null,null,null,null,null,null,null,null,null,null,null,0]
[null,null,null,null,null,null,null,null,null,null,null,0]
[null,null,null,null,null,null,null,null,null,null,null,0]
[null,null,null,null,null,null,null,null,null,null,null,0]
[null,null,null,null,null,null,null,null,null,null,null,0]
[null,null,null,null,null,null,null,null,null,null,null,0]
[null,null,null,null,null,null,null,null,null,null,null,0]
[null,null,null,null,null,null,null,null,null,null,null,0]
[null,null,null,null,null,null,null,null,null,null,null,0]
[null,null,null,null,null,null,null,null,null,null,null,0]
[null,null,null,null,null,null,null,null,null,null,null,0]
[null,null,null,null,null,null,null,null,null,null,null,0]
[null,null,null,null,null,null,null,null,null,null,null,0]
[null,null,null,null,null,null,null,null,null,null,null,0]
[null,null,null,null,null,null,null,null,null,null,null,0]
[null,null,null,null,null,null,null,null,null,null,null,0]
[null,null,null,null,null,null,null,null,null,null,null,0]
[null,null,null,null,null,null,null,null,null,null,null,0]
[null,null,null,null,null,null,null,null,null,null,null,0]
[null,null,null,null,null,null,null,null,null,null,null,0]
[null,null,null,null,null,null,null,null,null,null,null,0]
[null,null,null,null,null,null,null,null,null,null,null,0]
[null,null,null,null,null,null,null,null,null,null,null,0]
[null,null,null,null,null,null,null,null,null,null,null,0]
[null,null,null,null,null,null,null,null,null,null,null,0]
[null,null,null,null,null,null,null,null,null,null,null,0]
[null,null,null,null,null,null,null,null,null,null,null,0]
[null,null,null,null,null,null,null,null,null,null,null,0]
[null,null,null,null,null,null,null,null,null,null,null,0]
[null,null,null,null,null,null,null,null,null,null,null,0]
[null,null,null,null,null,null,null,null,null,null,null,0]
[null,null,null,null,null,null,null,null,null,null,null,0]
[null,null,null,null,null,null,null,null,null,null,null,0]
[null,null,null,null,null,null,null,null,null,null,null,0]
[null,null,null,null,null,null,null,null,null,null,null,0]
[null,null,null,null,null,null,null,null,null,null,null,0]
[null,null,null,null,null,null,null,null,null,null,null,0]
[null,null,null,null,null,null,null,null,null,null,null,0]
[null,null,null,null,null,null,null,null,null,null,null,0]
[null,null,null,null,null,null,null,null,null,null,null,0]
[null,null,null,null,null,null,null,null,null,null,null,0]
[null,null,null,null,null,null,null,null,null,null,null,{"$f":"+E132","v":0}]
[null,null,null,null,null,null,null,null,null,null,null,0]
[null,null,null,null,null,null,null,null,null,null,null,0]
[null,null,null,null,null,null,null,null,null,null,null,0]
[null,null,null,null,null,null,null,null,null,null,null,0]
[null,null,null,null,null,null,null,null,null,null,null,0]
[null,null,null,null,null,null,null,null,null,null,null,0]
[null,null,null,null,null,null,null,null,null,null,null,0]
[null,null,null,null,null,null,null,null,null,null,null,0]
[null,null,null,null,null,null,null,null,null,null,null,0]
[null,null,null,null,null,null,null,null,null,null,null,0]
[null,null,null,null,null,null,null,null,null,null,null,0]
[null,null,null,null,null,null,null,null,null,null,null,0]
[null,null,null,null,null,null,null,null,null,null,null,0]
[null,null,null,null,null,null,null,null,null,null,null,0]
[null,null,null,null,null,null,null,null,null,null,null,0]
[null,null,null,null,null,null,null,null,null,null,null,0]
[null,null,null,null,null,null,null,null,null,null,null,0]
[null,null,null,null,null,null,null,null,null,null,null,0]
[null,null,null,null,null,null,null,null,null,null,null,0]
[null,null,null,null,null,null,null,null,null,null,null,0]
[null,null,null,null,null,null,null,null,null,null,null,0]
[null,null,null,null,null,null,null,null,null,null,null,0]
[null,null,null,null,null,null,null,null,null,null,null,0]
[null,null,null,null,null,null,null,null,null,null,null,0]
[null,null,null,null,null,null,null,null,null,null,null,0]
[null,null,null,null,null,null,null,null,null,null,null,0]
[null,null,null,null,null,null,null,null,null,null,null,0]
[null,null,null,null,null,null,null,null,null,null,null,0]
[null,null,null,null,null,null,null,null,null,null,null,0]
[null,null,null,null,null,null,null,null,null,null,null,0]
[null,null,null,null,null,null,null,null,null,null,null,0]
[null,null,null,null,null,null,null,null,null,null,null,0]
[null,null,null,null,null,null,null,null,null,null,null,0]
[null,null,null,null,null,null,null,null,null,null,null,0]
[null,null,null,null,null,null,null,null,null,null,null,0]
[null,null,null,null,null,null,null,null,null,null,null,0]
[null,null,null,null,null,null,null,null,null,null,null,0]
[null,null,null,null,null,null,null,null,null,null,null,0]
[null,null,null,null,null,null,null,null,null,null,null,0]
[null,null,null,null,null,null,null,null,null,null,null,0]
[null,null,null,null,null,null,null,null,null,null,null,0]
[null,null,null,null,null,null,null,null,null,null,null,0]
[null,null,null,null,null,null,null,null,null,null,null,0]
[null,null,null,null,null,null,null,null,null,null,null,0]
[null,null,null,null,null,null,null,null,null,null,null,0]
[null,null,null,null,null,null,null,null,null,null,null,0]
[null,null,null,null,null,null,null,null,null,null,null,0]
[null,null,null,null,null,null,null,null,null,null,null,0]
[null,null,null,null,null,null,null,null,null,null,null,0]
[null,null,null,null,null,null,null,null,null,null,null,0]
[null,null,null,null,null,null,null,null,null,null,null,0]
[null,null,null,null,null,null,null,null,null,null,null,0]
[null,null,null,null,null,null,null,null,null,null,null,0]
[null,null,null,null,null,null,null,null,null,null,null,0]
[null,null,null,null,null,null,null,null,null,null,null,0]
[null,null,null,null,null,null,null,null,null,null,null,0]
[null,null,null,null,null,null,null,null,null,null,null,0]
[null,null,null,null,null,null,null,null,null,null,null,0]
[null,null,null,null,null,null,null,null,null,null,null,0]
[null,null,null,null,null,null,null,null,null,null,null,0]
[null,null,null,null,null,null,null,null,null,null,null,0]
[null,null,null,null,null,null,null,null,null,null,null,0]
[null,null,null,null,null,null,null,null,null,null,null,0]
[null,null,null,null,null,null,null,null,null,null,null,{"$f":"+E196","v":0}]
[null,null,null,null,null,null,null,null,null,null,null,0]
[null,null,null,null,null,null,null,null,null,null,null,0]
[null,null,null,null,null,null,null,null,null,null,null,0]
[null,null,null,null,null,null,null,null,null,null,null,0]
[null,null,null,null,null,null,null,null,null,null,null,0]
[null,null,null,null,null,null,null,null,null,null,null,0]
[null,null,null,null,null,null,null,null,null,null,null,0]
[null,null,null,null,null,null,null,null,null,null,null,0]
[null,null,null,null,null,null,null,null,null,null,null,0]
[null,null,null,null,null,null,null,null,null,null,null,0]
[null,null,null,null,null,null,null,null,null,null,null,0]
[null,null,null,null,null,null,null,null,null,null,null,0]
[null,null,null,null,null,null,null,null,null,null,null,0]
[null,null,null,null,null,null,null,null,null,null,null,0]
[null,null,null,null,null,null,null,null,null,null,null,0]
[null,null,null,null,null,null,null,null,null,null,null,0]
[null,null,null,null,null,null,null,null,null,null,null,0]
[null,null,null,null,null,null,null,null,null,null,null,0]
[null,null,null,null,null,null,null,null,null,null,null,0]
[null,null,null,null,null,null,null,null,null,null,null,0]
[null,null,null,null,null,null,null,null,null,null,null,0]
[null,null,null,null,null,null,null,null,null,null,null,0]
[null,null,null,null,null,null,null,null,null,null,null,0]
[null,null,null,null,null,null,null,null,null,null,null,0]
[null,null,null,null,null,null,null,null,null,null,null,0]
[null,null,null,null,null,null,null,null,null,null,null,0]
[null,null,null,null,null,null,null,null,null,null,null,0]
[null,null,null,null,null,null,null,null,null,null,null,0]
[null,null,null,null,null,null,null,null,null,null,null,0]
[null,null,null,null,null,null,null,null,null,null,null,0]
[null,null,null,null,null,null,null,null,null,null,null,0]
[null,null,null,null,null,null,null,null,null,null,null,0]
[null,null,null,null,null,null,null,null,null,null,null,0]
[null,null,null,null,null,null,null,null,null,null,null,0]
[null,null,null,null,null,null,null,null,null,null,null,0]
[null,null,null,null,null,null,null,null,null,null,null,0]
[null,null,null,null,null,null,null,null,null,null,null,0]
[null,null,null,null,null,null,null,null,null,null,null,0]
[null,null,null,null,null,null,null,null,null,null,null,0]
[null,null,null,null,null,null,null,null,null,null,null,0]
[null,null,null,null,null,null,null,null,null,null,null,0]
[null,null,null,null,null,null,null,null,null,null,null,0]
[null,null,null,null,null,null,null,null,null,null,null,0]
[null,null,null,null,null,null,null,null,null,null,null,0]
[null,null,null,null,null,null,null,null,null,null,null,0]
[null,null,null,null,null,null,null,null,null,null,null,0]
[null,null,null,null,null,null,null,null,null,null,null,0]
[null,null,null,null,null,null,null,null,null,null,null,0]
[null,null,null,null,null,null,null,null,null,null,null,0]
[null,null,null,null,null,null,null,null,null,null,null,0]
[null,null,null,null,null,null,null,null,null,null,null,0]
[null,null,null,null,null,null,null,null,null,null,null,0]
[null,null,null,null,null,null,null,null,null,null,null,0]
[null,null,null,null,null,null,null,null,null,null,null,0]
[null,null,null,null,null,null,null,null,null,null,null,0]
[null,null,null,null,null,null,null,null,null,null,null,0]
[null,null,null,null,null,null,null,null,null,null,null,0]
[null,null,null,null,null,null,null,null,null,null,null,0]
[null,null,null,null,null,null,null,null,null,null,null,0]
[null,null,null,null,null,null,null,null,null,null,null,0]
[null,null,null,null,null,null,null,null,null,null,null,0]
[null,null,null,null,null,null,null,null,null,null,null,0]
[null,null,null,null,null,null,null,null,null,null,null,0]
[null,null,null,null,null,null,null,null,null,null,null,{"$f":"+E260","v":0}]
[null,null,null,null,null,null,null,null,null,null,null,0]
[null,null,null,null,null,null,null,null,null,null,null,0]
[null,null,null,null,null,null,null,null,null,null,null,0]
[null,null,null,null,null,null,null,null,null,null,null,0]
[null,null,null,null,null,null,null,null,null,null,null,0]
[null,null,null,null,null,null,null,null,null,null,null,0]
[null,null,null,null,null,null,null,null,null,null,null,0]
[null,null,null,null,null,null,null,null,null,null,null,0]
[null,null,null,null,null,null,null,null,null,null,null,0]
[null,null,null,null,null,null,null,null,null,null,null,0]
[null,null,null,null,null,null,null,null,null,null,null,0]
[null,null,null,null,null,null,null,null,null,null,null,0]
[null,null,null,null,null,null,null,null,null,null,null,0]
[null,null,null,null,null,null,null,null,null,null,null,0]
[null,null,null,null,null,null,null,null,null,null,null,0]
[null,null,null,null,null,null,null,null,null,null,null,0]
[null,null,null,null,null,null,null,null,null,null,null,0]
[null,null,null,null,null,null,null,null,null,null,null,0]
[null,null,null,null,null,null,null,null,null,null,null,0]
[null,null,null,null,null,null,null,null,null,null,null,0]
[null,null,null,null,null,null,null,null,null,null,null,0]
[null,null,null,null,null,null,null,null,null,null,null,0]
[null,null,null,null,null,null,null,null,null,null,null,0]
[null,null,null,null,null,null,null,null,null,null,null,0]
[null,null,null,null,null,null,null,null,null,null,null,0]
[null,null,null,null,null,null,null,null,null,null,null,0]
[null,null,null,null,null,null,null,null,null,null,null,0]
[null,null,null,null,null,null,null,null,null,null,null,0]
[null,null,null,null,null,null,null,null,null,null,null,0]
[null,null,null,null,null,null,null,null,null,null,null,0]
[null,null,null,null,null,null,null,null,null,null,null,0]
[null,null,null,null,null,null,null,null,null,null,null,0]
[null,null,null,null,null,null,null,null,null,null,null,0]
[null,null,null,null,null,null,null,null,null,null,null,0]
[null,null,null,null,null,null,null,null,null,null,null,0]
[null,null,null,null,null,null,null,null,null,null,null,0]
[null,null,null,null,null,null,null,null,null,null,null,0]
[null,null,null,null,null,null,null,null,null,null,null,0]
[null,null,null,null,null,null,null,null,null,null,null,0]
[null,null,null,null,null,null,null,null,null,null,null,0]
[null,null,null,null,null,null,null,null,null,null,null,0]
[null,null,null,null,null,null,null,null,null,null,null,0]
[null,null,null,null,null,null,null,null,null,null,null,0]
[null,null,null,null,null,null,null,null,null,null,null,0]
[null,null,null,null,null,null,null,null,null,null,null,0]
[null,null,null,null,null,null,null,null,null,null,null,0]
[null,null,null,null,null,null,null,null,null,null,null,0]
[null,null,null,null,null,null,null,null,null,null,null,0]
[null,null,null,null,null,null,null,null,null,null,null,0]
[null,null,null,null,null,null,null,null,null,null,null,0]
[null,null,null,null,null,null,null,null,null,null,null,0]
[null,null,null,null,null,null,null,null,null,null,null,0]
[null,null,null,null,null,null,null,null,null,null,null,0]
[null,null,null,null,null,null,null,null,null,null,null,0]
[null,null,null,null,null,null,null,null,null,null,null,0]
[null,null,null,null,null,null,null,null,null,null,null,0]
[null,null,null,null,null,null,null,null,null,null,null,0]
[null,null,null,null,null,null,null,null,null,null,null,0]
[null,null,null,null,null,null,null,null,null,null,null,0]
[null,null,null,null,null,null,null,null,null,null,null,0]
[null,null,null,null,null,null,null,null,null,null,null,0]
[null,null,null,null,null,null,null,null,null,null,null,0]
[null,null,null,null,null,null,null,null,null,null,null,0]
[null,null,null,null,null,null,null,null,null,null,null,{"$f":"+E324","v":0}]
[null,null,null,null,null,null,null,null,null,null,null,0]
[null,null,null,null,null,null,null,null,null,null,null,0]
[null,null,null,null,null,null,null,null,null,null,null,0]
[null,null,null,null,null,null,null,null,null,null,null,0]
[null,null,null,null,null,null,null,null,null,null,null,0]
[null,null,null,null,null,null,null,null,null,null,null,0]
[null,null,null,null,null,null,null,null,null,null,null,0]
[null,null,null,null,null,null,null,null,null,null,null,0]
[null,null,null,null,null,null,null,null,null,null,null,0]
[null,null,null,null,null,null,null,null,null,null,null,0]
[null,null,null,null,null,null,null,null,null,null,null,0]
[null,null,null,null,null,null,null,null,null,null,null,0]
[null,null,null,null,null,null,null,null,null,null,null,0]
[null,null,null,null,null,null,null,null,null,null,null,0]
[null,null,null,null,null,null,null,null,null,null,null,0]
[null,null,null,null,null,null,null,null,null,null,null,0]
[null,null,null,null,null,null,null,null,null,null,null,0]
[null,null,null,null,null,null,null,null,null,null,null,0]
[null,null,null,null,null,null,null,null,null,null,null,0]
[null,null,null,null,null,null,null,null,null,null,null,0]
[null,null,null,null,null,null,null,null,null,null,null,0]
[null,null,null,null,null,null,null,null,null,null,null,0]
[null,null,null,null,null,null,null,null,null,null,null,0]
[null,null,null,null,null,null,null,null,null,null,null,0]
[null,null,null,null,null,null,null,null,null,null,null,0]
[null,null,null,null,null,null,null,null,null,null,null,0]
[null,null,null,null,null,null,null,null,null,null,null,0]
[null,null,null,null,null,null,null,null,null,null,null,0]
[null,null,null,null,null,null,null,null,null,null,null,0]
[null,null,null,null,null,null,null,null,null,null,null,0]
[null,null,null,null,null,null,null,null,null,null,null,0]
[null,null,null,null,null,null,null,null,null,null,null,0]
[null,null,null,null,null,null,null,null,null,null,null,0]
[null,null,null,null,null,null,null,null,null,null,null,0]
[null,null,null,null,null,null,null,null,null,null,null,0]
[null,null,null,null,null,null,null,null,null,null,null,0]
[null,null,null,null,null,null,null,null,null,null,null,0]
[null,null,null,null,null,null,null,null,null,null,null,0]
[null,null,null,null,null,null,null,null,null,null,null,0]
[null,null,null,null,null,null,null,null,null,null,null,0]
[null,null,null,null,null,null,null,null,null,null,null,0]
[null,null,null,null,null,null,null,null,null,null,null,0]
[null,null,null,null,null,null,null,null,null,null,null,0]
[null,null,null,null,null,null,null,null,null,null,null,0]
[null,null,null,null,null,null,null,null,null,null,null,0]
[null,null,null,null,null,null,null,null,null,null,null,0]
[null,null,null,null,null,null,null,null,null,null,null,0]
[null,null,null,null,null,null,null,null,null,null,null,0]
[null,null,null,null,null,null,null,null,null,null,null,0]
[null,null,null,null,null,null,null,null,null,null,null,0]
[null,null,null,null,null,null,null,null,null,null,null,0]
[null,null,null,null,null,null,null,null,null,null,null,0]
[null,null,null,null,null,null,null,null,null,null,null,0]
[null,null,null,null,null,null,null,null,null,null,null,0]
[null,null,null,null,null,null,null,null,null,null,null,0]
[null,null,null,null,null,null,null,null,null,null,null,0]
[null,null,null,null,null,null,null,null,null,null,null,0]
[null,null,null,null,null,null,null,null,null,null,null,0]
[null,null,null,null,null,null,null,null,null,null,null,0]
[null,null,null,null,null,null,null,null,null,null,null,0]
[null,null,null,null,null,null,null,null,null,null,null,0]
[null,null,null,null,null,null,null,null,null,null,null,0]
[null,null,null,null,null,null,null,null,null,null,null,0]
[null,null,null,null,null,null,null,null,null,null,null,{"$f":"+E388","v":0}]
[null,null,null,null,null,null,null,null,null,null,null,0]
[null,null,null,null,null,null,null,null,null,null,null,0]
[null,null,null,null,null,null,null,null,null,null,null,0]
[null,null,null,null,null,null,null,null,null,null,null,0]
[null,null,null,null,null,null,null,null,null,null,null,0]
[null,null,null,null,null,null,null,null,null,null,null,0]
[null,null,null,null,null,null,null,null,null,null,null,0]
[null,null,null,null,null,null,null,null,null,null,null,0]
[null,null,null,null,null,null,null,null,null,null,null,0]
[null,null,null,null,null,null,null,null,null,null,null,0]
[null,null,null,null,null,null,null,null,null,null,null,0]
[null,null,null,null,null,null,null,null,null,null,null,0]
[null,null,null,null,null,null,null,null,null,null,null,0]
[null,null,null,null,null,null,null,null,null,null,null,0]
[null,null,null,null,null,null,null,null,null,null,null,0]
[null,null,null,null,null,null,null,null,null,null,null,0]
[null,null,null,null,null,null,null,null,null,null,null,0]
[null,null,null,null,null,null,null,null,null,null,null,0]
[null,null,null,null,null,null,null,null,null,null,null,0]
[null,null,null,null,null,null,null,null,null,null,null,0]
[null,null,null,null,null,null,null,null,null,null,null,0]
[null,null,null,null,null,null,null,null,null,null,null,0]
[null,null,null,null,null,null,null,null,null,null,null,0]
[null,null,null,null,null,null,null,null,null,null,null,0]
[null,null,null,null,null,null,null,null,null,null,null,0]
[null,null,null,null,null,null,null,null,null,null,null,0]
[null,null,null,null,null,null,null,null,null,null,null,0]
[null,null,null,null,null,null,null,null,null,null,null,0]
[null,null,null,null,null,null,null,null,null,null,null,0]
[null,null,null,null,null,null,null,null,null,null,null,0]
[null,null,null,null,null,null,null,null,null,null,null,0]
[null,null,null,null,null,null,null,null,null,null,null,0]
[null,null,null,null,null,null,null,null,null,null,null,0]
[null,null,null,null,null,null,null,null,null,null,null,0]
[null,null,null,null,null,null,null,null,null,null,null,0]
[null,null,null,null,null,null,null,null,null,null,null,0]
[null,null,null,null,null,null,null,null,null,null,null,0]
[null,null,null,null,null,null,null,null,null,null,null,0]
[null,null,null,null,null,null,null,null,null,null,null,0]
[null,null,null,null,null,null,null,null,null,null,null,0]
[null,null,null,null,null,null,null,null,null,null,null,0]
[null,null,null,null,null,null,null,null,null,null,null,0]
[null,null,null,null,null,null,null,null,null,null,null,0]
[null,null,null,null,null,null,null,null,null,null,null,0]
[null,null,null,null,null,null,null,null,null,null,null,0]
[null,null,null,null,null,null,null,null,null,null,null,0]
[null,null,null,null,null,null,null,null,null,null,null,0]
[null,null,null,null,null,null,null,null,null,null,null,0]
[null,null,null,null,null,null,null,null,null,null,null,0]
[null,null,null,null,null,null,null,null,null,null,null,0]
[null,null,null,null,null,null,null,null,null,null,null,0]
[null,null,null,null,null,null,null,null,null,null,null,0]
[null,null,null,null,null,null,null,null,null,null,null,0]
[null,null,null,null,null,null,null,null,null,null,null,0]
[null,null,null,null,null,null,null,null,null,null,null,0]
[null,null,null,null,null,null,null,null,null,null,null,0]
[null,null,null,null,null,null,null,null,null,null,null,0]
[null,null,null,null,null,null,null,null,null,null,null,0]
[null,null,null,null,null,null,null,null,null,null,null,0]
[null,null,null,null,null,null,null,null,null,null,null,0]
[null,null,null,null,null,null,null,null,null,null,null,0]
[null,null,null,null,null,null,null,null,null,null,null,0]
[null,null,null,null,null,null,null,null,null,null,null,0]
[null,null,null,null,null,null,null,null,null,null,null,{"$f":"+E452","v":0}]
[null,null,null,null,null,null,null,null,null,null,null,0]
[null,null,null,null,null,null,null,null,null,null,null,0]
[null,null,null,null,null,null,null,null,null,null,null,0]
[null,null,null,null,null,null,null,null,null,null,null,0]
[null,null,null,null,null,null,null,null,null,null,null,0]
[null,null,null,null,null,null,null,null,null,null,null,0]
[null,null,null,null,null,null,null,null,null,null,null,0]
[null,null,null,null,null,null,null,null,null,null,null,0]
[null,null,null,null,null,null,null,null,null,null,null,0]
[null,null,null,null,null,null,null,null,null,null,null,0]
[null,null,null,null,null,null,null,null,null,null,null,0]
[null,null,null,null,null,null,null,null,null,null,null,0]
[null,null,null,null,null,null,null,null,null,null,null,0]
[null,null,null,null,null,null,null,null,null,null,null,0]
[null,null,null,null,null,null,null,null,null,null,null,0]
[null,null,null,null,null,null,null,null,null,null,null,0]
[null,null,null,null,null,null,null,null,null,null,null,0]
[null,null,null,null,null,null,null,null,null,null,null,0]
[null,null,null,null,null,null,null,null,null,null,null,0]
[null,null,null,null,null,null,null,null,null,null,null,0]
[null,null,null,null,null,null,null,null,null,null,null,0]
[null,null,null,null,null,null,null,null,null,null,null,0]
[null,null,null,null,null,null,null,null,null,null,null,0]
[null,null,null,null,null,null,null,null,null,null,null,0]
[null,null,null,null,null,null,null,null,null,null,null,0]
[null,null,null,null,null,null,null,null,null,null,null,0]
[null,null,null,null,null,null,null,null,null,null,null,0]
[null,null,null,null,null,null,null,null,null,null,null,0]
[null,null,null,null,null,null,null,null,null,null,null,0]
[null,null,null,null,null,null,null,null,null,null,null,0]
[null,null,null,null,null,null,null,null,null,null,null,0]
[null,null,null,null,null,null,null,null,null,null,null,0]
[null,null,null,null,null,null,null,null,null,null,null,0]
[null,null,null,null,null,null,null,null,null,null,null,0]
[null,null,null,null,null,null,null,null,null,null,null,0]
[null,null,null,null,null,null,null,null,null,null,null,0]
[null,null,null,null,null,null,null,null,null,null,null,0]
[null,null,null,null,null,null,null,null,null,null,null,0]
[null,null,null,null,null,null,null,null,null,null,null,0]
[null,null,null,null,null,null,null,null,null,null,null,0]
[null,null,null,null,null,null,null,null,null,null,null,0]
[null,null,null,null,null,null,null,null,null,null,null,0]
[null,null,null,null,null,null,null,null,null,null,null,0]
[null,null,null,null,null,null,null,null,null,null,null,0]
[null,null,null,null,null,null,null,null,null,null,null,0]
[null,null,null,null,null,null,null,null,null,null,null,0]
[null,null,null,null,null,null,null,null,null,null,null,0]
[null,null,null,null,null,null,null,null,null,null,null,0]
[null,null,null,null,null,null,null,null,null,null,null,0]
[null,null,null,null,null,null,null,null,null,null,null,0]
[null,null,null,null,null,null,null,null,null,null,null,0]
[null,null,null,null,null,null,null,null,null,null,null,0]
[null,null,null,null,null,null,null,null,null,null,null,0]
[null,null,null,null,null,null,null,null,null,null,null,0]
[null,null,null,null,null,null,null,null,null,null,null,0]
[null,null,null,null,null,null,null,null,null,null,null,0]
[null,null,null,null,null,null,null,null,null,null,null,0]
[null,null,null,null,null,null,null,null,null,null,null,0]
[null,null,null,null,null,null,null,null,null,null,null,0]
[null,null,null,null,null,null,null,null,null,null,null,0]
[null,null,null,null,null,null,null,null,null,null,null,0]
[null,null,null,null,null,null,null,null,null,null,null,0]
[null,null,null,null,null,null,null,null,null,null,null,0]
[null,null,null,null,null,null,null,null,null,null,null,{"$f":"+E516","v":0}]
[null,null,null,null,null,null,null,null,null,null,null,0]
[null,null,null,null,null,null,null,null,null,null,null,0]
[null,null,null,null,null,null,null,null,null,null,null,0]
[null,null,null,null,null,null,null,null,null,null,null,0]
[null,null,null,null,null,null,null,null,null,null,null,0]
[null,null,null,null,null,null,null,null,null,null,null,0]
[null,null,null,null,null,null,null,null,null,null,null,0]
[null,null,null,null,null,null,null,null,null,null,null,0]
[null,null,null,null,null,null,null,null,null,null,null,0]
[null,null,null,null,null,null,null,null,null,null,null,0]
[null,null,null,null,null,null,null,null,null,null,null,0]
[null,null,null,null,null,null,null,null,null,null,null,0]
[null,null,null,null,null,null,null,null,null,null,null,0]
[null,null,null,null,null,null,null,null,null,null,null,0]
[null,null,null,null,null,null,null,null,null,null,null,0]
[null,null,null,null,null,null,null,null,null,null,null,0]
[null,null,null,null,null,null,null,null,null,null,null,0]
[null,null,null,null,null,null,null,null,null,null,null,0]
[null,null,null,null,null,null,null,null,null,null,null,0]
[null,null,null,null,null,null,null,null,null,null,null,0]
[null,null,null,null,null,null,null,null,null,null,null,0]
[null,null,null,null,null,null,null,null,null,null,null,0]
[null,null,null,null,null,null,null,null,null,null,null,0]
[null,null,null,null,null,null,null,null,null,null,null,0]
[null,null,null,null,null,null,null,null,null,null,null,0]
[null,null,null,null,null,null,null,null,null,null,null,0]
[null,null,null,null,null,null,null,null,null,null,null,0]
[null,null,null,null,null,null,null,null,null,null,null,0]
[null,null,null,null,null,null,null,null,null,null,null,0]
[null,null,null,null,null,null,null,null,null,null,null,0]
[null,null,null,null,null,null,null,null,null,null,null,0]
[null,null,null,null,null,null,null,null,null,null,null,0]
[null,null,null,null,null,null,null,null,null,null,null,0]
[null,null,null,null,null,null,null,null,null,null,null,0]
[null,null,null,null,null,null,null,null,null,null,null,0]
[null,null,null,null,null,null,null,null,null,null,null,0]
[null,null,null,null,null,null,null,null,null,null,null,0]
[null,null,null,null,null,null,null,null,null,null,null,0]
[null,null,null,null,null,null,null,null,null,null,null,0]
[null,null,null,null,null,null,null,null,null,null,null,0]
[null,null,null,null,null,null,null,null,null,null,null,0]
[null,null,null,null,null,null,null,null,null,null,null,0]
[null,null,null,null,null,null,null,null,null,null,null,0]
[null,null,null,null,null,null,null,null,null,null,null,0]
[null,null,null,null,null,null,null,null,null,null,null,0]
[null,null,null,null,null,null,null,null,null,null,null,0]
[null,null,null,null,null,null,null,null,null,null,null,0]
[null,null,null,null,null,null,null,null,null,null,null,0]
[null,null,null,null,null,null,null,null,null,null,null,0]
[null,null,null,null,null,null,null,null,null,null,null,0]
[null,null,null,null,null,null,null,null,null,null,null,0]
[null,null,null,null,null,null,null,null,null,null,null,0]
[null,null,null,null,null,null,null,null,null,null,null,0]
[null,null,null,null,null,null,null,null,null,null,null,0]
[null,null,null,null,null,null,null,null,null,null,null,0]
[null,null,null,null,null,null,null,null,null,null,null,0]
[null,null,null,null,null,null,null,null,null,null,null,0]
[null,null,null,null,null,null,null,null,null,null,null,0]
[null,null,null,null,null,null,null,null,null,null,null,0]
[null,null,null,null,null,null,null,null,null,null,null,0]
[null,null,null,null,null,null,null,null,null,null,null,0]
[null,null,null,null,null,null,null,null,null,null,null,0]
[null,null,null,null,null,null,null,null,null,null,null,0]
[null,null,null,null,null,null,null,null,null,null,null,{"$f":"+E580","v":0}]
[null,null,null,null,null,null,null,null,null,null,null,0]
[null,null,null,null,null,null,null,null,null,null,null,0]
[null,null,null,null,null,null,null,null,null,null,null,0]
[null,null,null,null,null,null,null,null,null,null,null,0]
[null,null,null,null,null,null,null,null,null,null,null,0]
[null,null,null,null,null,null,null,null,null,null,null,0]
[null,null,null,null,null,null,null,null,null,null,null,0]
[null,null,null,null,null,null,null,null,null,null,null,0]
[null,null,null,null,null,null,null,null,null,null,null,0]
[null,null,null,null,null,null,null,null,null,null,null,0]
[null,null,null,null,null,null,null,null,null,null,null,0]
[null,null,null,null,null,null,null,null,null,null,null,0]
[null,null,null,null,null,null,null,null,null,null,null,0]
[null,null,null,null,null,null,null,null,null,null,null,0]
[null,null,null,null,null,null,null,null,null,null,null,0]
[null,null,null,null,null,null,null,null,null,null,null,0]
[null,null,null,null,null,null,null,null,null,null,null,0]
[null,null,null,null,null,null,null,null,null,null,null,0]
[null,null,null,null,null,null,null,null,null,null,null,0]
[null,null,null,null,null,null,null,null,null,null,null,0]
[null,null,null,null,null,null,null,null,null,null,null,0]
[null,null,null,null,null,null,null,null,null,null,null,0]
[null,null,null,null,null,null,null,null,null,null,null,0]
[null,null,null,null,null,null,null,null,null,null,null,0]
[null,null,null,null,null,null,null,null,null,null,null,0]
[null,null,null,null,null,null,null,null,null,null,null,0]
[null,null,null,null,null,null,null,null,null,null,null,0]
[null,null,null,null,null,null,null,null,null,null,null,0]
[null,null,null,null,null,null,null,null,null,null,null,0]
[null,null,null,null,null,null,null,null,null,null,null,0]
[null,null,null,null,null,null,null,null,null,null,null,0]
[null,null,null,null,null,null,null,null,null,null,null,0]
[null,null,null,null,null,null,null,null,null,null,null,0]
[null,null,null,null,null,null,null,null,null,null,null,0]
[null,null,null,null,null,null,null,null,null,null,null,0]
[null,null,null,null,null,null,null,null,null,null,null,0]
[null,null,null,null,null,null,null,null,null,null,null,0]
[null,null,null,null,null,null,null,null,null,null,null,0]
[null,null,null,null,null,null,null,null,null,null,null,0]
[null,null,null,null,null,null,null,null,null,null,null,0]
[null,null,null,null,null,null,null,null,null,null,null,0]
[null,null,null,null,null,null,null,null,null,null,null,0]
[null,null,null,null,null,null,null,null,null,null,null,0]
[null,null,null,null,null,null,null,null,null,null,null,0]
[null,null,null,null,null,null,null,null,null,null,null,0]
[null,null,null,null,null,null,null,null,null,null,null,0]
[null,null,null,null,null,null,null,null,null,null,null,0]
[null,null,null,null,null,null,null,null,null,null,null,0]
[null,null,null,null,null,null,null,null,null,null,null,0]
[null,null,null,null,null,null,null,null,null,null,null,0]
[null,null,null,null,null,null,null,null,null,null,null,0]
[null,null,null,null,null,null,null,null,null,null,null,0]
[null,null,null,null,null,null,null,null,null,null,null,0]
[null,null,null,null,null,null,null,null,null,null,null,0]
[null,null,null,null,null,null,null,null,null,null,null,0]
[null,null,null,null,null,null,null,null,null,null,null,0]
[null,null,null,null,null,null,null,null,null,null,null,0]
[null,null,null,null,null,null,null,null,null,null,null,0]
[null,null,null,null,null,null,null,null,null,null,null,0]
[null,null,null,null,null,null,null,null,null,null,null,0]
[null,null,null,null,null,null,null,null,null,null,null,0]
[null,null,null,null,null,null,null,null,null,null,null,0]
[null,null,null,null,null,null,null,null,null,null,null,0]
[null,null,null,null,null,null,null,null,null,null,null,{"$f":"+E644","v":0}]
[null,null,null,null,null,null,null,null,null,null,null,0]
[null,null,null,null,null,null,null,null,null,null,null,0]
[null,null,null,null,null,null,null,null,null,null,null,0]
[null,null,null,null,null,null,null,null,null,null,null,0]
[null,null,null,null,null,null,null,null,null,null,null,0]
[null,null,null,null,null,null,null,null,null,null,null,0]
[null,null,null,null,null,null,null,null,null,null,null,0]
[null,null,null,null,null,null,null,null,null,null,null,0]
[null,null,null,null,null,null,null,null,null,null,null,0]
[null,null,null,null,null,null,null,null,null,null,null,0]
[null,null,null,null,null,null,null,null,null,null,null,0]
[null,null,null,null,null,null,null,null,null,null,null,0]
[null,null,null,null,null,null,null,null,null,null,null,0]
[null,null,null,null,null,null,null,null,null,null,null,0]
[null,null,null,null,null,null,null,null,null,null,null,0]
[null,null,null,null,null,null,null,null,null,null,null,0]
[null,null,null,null,null,null,null,null,null,null,null,0]
[null,null,null,null,null,null,null,null,null,null,null,0]
[null,null,null,null,null,null,null,null,null,null,null,0]
[null,null,null,null,null,null,null,null,null,null,null,0]
[null,null,null,null,null,null,null,null,null,null,null,0]
[null,null,null,null,null,null,null,null,null,null,null,0]
[null,null,null,null,null,null,null,null,null,null,null,0]
[null,null,null,null,null,null,null,null,null,null,null,0]
[null,null,null,null,null,null,null,null,null,null,null,0]
[null,null,null,null,null,null,null,null,null,null,null,0]
[null,null,null,null,null,null,null,null,null,null,null,0]
[null,null,null,null,null,null,null,null,null,null,null,0]
[null,null,null,null,null,null,null,null,null,null,null,0]
[null,null,null,null,null,null,null,null,null,null,null,0]
[null,null,null,null,null,null,null,null,null,null,null,0]
[null,null,null,null,null,null,null,null,null,null,null,0]
[null,null,null,null,null,null,null,null,null,null,null,0]
[null,null,null,null,null,null,null,null,null,null,null,0]
[null,null,null,null,null,null,null,null,null,null,null,0]
[null,null,null,null,null,null,null,null,null,null,null,0]
[null,null,null,null,null,null,null,null,null,null,null,0]
[null,null,null,null,null,null,null,null,null,null,null,0]
[null,null,null,null,null,null,null,null,null,null,null,0]
[null,null,null,null,null,null,null,null,null,null,null,0]
[null,null,null,null,null,null,null,null,null,null,null,0]
[null,null,null,null,null,null,null,null,null,null,null,0]
[null,null,null,null,null,null,null,null,null,null,null,0]
[null,null,null,null,null,null,null,null,null,null,null,0]
[null,null,null,null,null,null,null,null,null,null,null,0]
[null,null,null,null,null,null,null,null,null,null,null,0]
[null,null,null,null,null,null,null,null,null,null,null,0]
[null,null,null,null,null,null,null,null,null,null,null,0]
[null,null,null,null,null,null,null,null,null,null,null,0]
[null,null,null,null,null,null,null,null,null,null,null,0]
[null,null,null,null,null,null,null,null,null,null,null,0]
[null,null,null,null,null,null,null,null,null,null,null,0]
[null,null,null,null,null,null,null,null,null,null,null,0]
[null,null,null,null,null,null,null,null,null,null,null,0]
[null,null,null,null,null,null,null,null,null,null,null,0]
[null,null,null,null,null,null,null,null,null,null,null,0]
[null,null,null,null,null,null,null,null,null,null,null,0]
[null,null,null,null,null,null,null,null,null,null,null,0]
[null,null,null,null,null,null,null,null,null,null,null,0]
[null,null,null,null,null,null,null,null,null,null,null,0]
[null,null,null,null,null,null,null,null,null,null,null,0]
[null,null,null,null,null,null,null,null,null,null,null,0]
[null,null,null,null,null,null,null,null,null,null,null,0]
[null,null,null,null,null,null,null,null,null,null,null,{"$f":"+E708","v":0}]
[null,null,null,null,null,null,null,null,null,null,null,0]
[null,null,null,null,null,null,null,null,null,null,null,0]
[null,null,null,null,null,null,null,null,null,null,null,0]
[null,null,null,null,null,null,null,null,null,null,null,0]
[null,null,null,null,null,null,null,null,null,null,null,0]
[null,null,null,null,null,null,null,null,null,null,null,0]
[null,null,null,null,null,null,null,null,null,null,null,0]
[null,null,null,null,null,null,null,null,null,null,null,0]
[null,null,null,null,null,null,null,null,null,null,null,0]
[null,null,null,null,null,null,null,null,null,null,null,0]
[null,null,null,null,null,null,null,null,null,null,null,0]
[null,null,null,null,null,null,null,null,null,null,null,0]
[null,null,null,null,null,null,null,null,null,null,null,0]
[null,null,null,null,null,null,null,null,null,null,null,0]
[null,null,null,null,null,null,null,null,null,null,null,0]
[null,null,null,null,null,null,null,null,null,null,null,0]
[null,null,null,null,null,null,null,null,null,null,null,0]
[null,null,null,null,null,null,null,null,null,null,null,0]
[null,null,null,null,null,null,null,null,null,null,null,0]
[null,null,null,null,null,null,null,null,null,null,null,0]
[null,null,null,null,null,null,null,null,null,null,null,0]
[null,null,null,null,null,null,null,null,null,null,null,0]
[null,null,null,null,null,null,null,null,null,null,null,0]
[null,null,null,null,null,null,null,null,null,null,null,0]
[null,null,null,null,null,null,null,null,null,null,null,0]
[null,null,null,null,null,null,null,null,null,null,null,0]
[null,null,null,null,null,null,null,null,null,null,null,0]
[null,null,null,null,null,null,null,null,null,null,null,0]
[null,null,null,null,null,null,null,null,null,null,null,0]
[null,null,null,null,null,null,null,null,null,null,null,0]
[null,null,null,null,null,null,null,null,null,null,null,0]
[null,null,null,null,null,null,null,null,null,null,null,0]
[null,null,null,null,null,null,null,null,null,null,null,0]
[null,null,null,null,null,null,null,null,null,null,null,0]
[null,null,null,null,null,null,null,null,null,null,null,0]
[null,null,null,null,null,null,null,null,null,null,null,0]
[null,null,null,null,null,null,null,null,null,null,null,0]
[null,null,null,null,null,null,null,null,null,null,null,0]
[null,null,null,null,null,null,null,null,null,null,null,0]
[null,null,null,null,null,null,null,null,null,null,null,0]
[null,null,null,null,null,null,null,null,null,null,null,0]
[null,null,null,null,null,null,null,null,null,null,null,0]
[null,null,null,null,null,null,null,null,null,null,null,0]
[null,null,null,null,null,null,null,null,null,null,null,0]
[null,null,null,null,null,null,null,null,null,null,null,0]
[null,null,null,null,null,null,null,null,null,null,null,0]
[null,null,null,null,null,null,null,null,null,null,null,0]
[null,null,null,null,null,null,null,null,null,null,null,0]
[null,null,null,null,null,null,null,null,null,null,null,0]
[null,null,null,null,null,null,null,null,null,null,null,0]
[null,null,null,null,null,null,null,null,null,null,null,0]
[null,null,null,null,null,null,null,null,null,null,null,0]
[null,null,null,null,null,null,null,null,null,null,null,0]
[null,null,null,null,null,null,null,null,null,null,null,0]
[null,null,null,null,null,null,null,null,null,null,null,0]
[null,null,null,null,null,null,null,null,null,null,null,0]
[null,null,null,null,null,null,null,null,null,null,null,0]
[null,null,null,null,null,null,null,null,null,null,null,0]
[null,null,null,null,null,null,null,null,null,null,null,0]
[null,null,null,null,null,null,null,null,null,null,null,0]
[null,null,null,null,null,null,null,null,null,null,null,0]
[null,null,null,null,null,null,null,null,null,null,null,0]
[null,null,null,null,null,null,null,null,null,null,null,0]
[null,null,null,null,null,null,null,null,null,null,null,{"$f":"+E772","v":0}]
[null,null,null,null,null,null,null,null,null,null,null,0]
[null,null,null,null,null,null,null,null,null,null,null,0]
[null,null,null,null,null,null,null,null,null,null,null,0]
[null,null,null,null,null,null,null,null,null,null,null,0]
[null,null,null,null,null,null,null,null,null,null,null,0]
[null,null,null,null,null,null,null,null,null,null,null,0]
[null,null,null,null,null,null,null,null,null,null,null,0]
[null,null,null,null,null,null,null,null,null,null,null,0]
[null,null,null,null,null,null,null,null,null,null,null,0]
[null,null,null,null,null,null,null,null,null,null,null,0]
[null,null,null,null,null,null,null,null,null,null,null,0]
[null,null,null,null,null,null,null,null,null,null,null,0]
[null,null,null,null,null,null,null,null,null,null,null,0]
[null,null,null,null,null,null,null,null,null,null,null,0]
[null,null,null,null,null,null,null,null,null,null,null,0]
[null,null,null,null,null,null,null,null,null,null,null,0]
[null,null,null,null,null,null,null,null,null,null,null,0]
[null,null,null,null,null,null,null,null,null,null,null,0]
[null,null,null,null,null,null,null,null,null,null,null,0]
[null,null,null,null,null,null,null,null,null,null,null,0]
[null,null,null,null,null,null,null,null,null,null,null,0]
[null,null,null,null,null,null,null,null,null,null,null,0]
[null,null,null,null,null,null,null,null,null,null,null,0]
[null,null,null,null,null,null,null,null,null,null,null,0]
[null,null,null,null,null,null,null,null,null,null,null,0]
[null,null,null,null,null,null,null,null,null,null,null,0]
[null,null,null,null,null,null,null,null,null,null,null,0]
[null,null,null,null,null,null,null,null,null,null,null,0]
[null,null,null,null,null,null,null,null,null,null,null,0]
[null,null,null,null,null,null,null,null,null,null,null,0]
[null,null,null,null,null,null,null,null,null,null,null,0]
[null,null,null,null,null,null,null,null,null,null,null,0]
[null,null,null,null,null,null,null,null,null,null,null,0]
[null,null,null,null,null,null,null,null,null,null,null,0]
[null,null,null,null,null,null,null,null,null,null,null,0]
[null,null,null,null,null,null,null,null,null,null,null,0]
[null,null,null,null,null,null,null,null,null,null,null,0]
[null,null,null,null,null,null,null,null,null,null,null,0]
[null,null,null,null,null,null,null,null,null,null,null,0]
[null,null,null,null,null,null,null,null,null,null,null,0]
[null,null,null,null,null,null,null,null,null,null,null,0]
[null,null,null,null,null,null,null,null,null,null,null,0]
[null,null,null,null,null,null,null,null,null,null,null,0]
[null,null,null,null,null,null,null,null,null,null,null,0]
[null,null,null,null,null,null,null,null,null,null,null,0]
[null,null,null,null,null,null,null,null,null,null,null,0]
[null,null,null,null,null,null,null,null,null,null,null,0]
[null,null,null,null,null,null,null,null,null,null,null,0]
[null,null,null,null,null,null,null,null,null,null,null,0]
[null,null,null,null,null,null,null,null,null,null,null,0]
[null,null,null,null,null,null,null,null,null,null,null,0]
[null,null,null,null,null,null,null,null,null,null,null,0]
[null,null,null,null,null,null,null,null,null,null,null,0]
[null,null,null,null,null,null,null,null,null,null,null,0]
[null,null,null,null,null,null,null,null,null,null,null,0]
[null,null,null,null,null,null,null,null,null,null,null,0]
[null,null,null,null,null,null,null,null,null,null,null,0]
[null,null,null,null,null,null,null,null,null,null,null,0]
[null,null,null,null,null,null,null,null,null,null,null,0]
[null,null,null,null,null,null,null,null,null,null,null,0]
[null,null,null,null,null,null,null,null,null,null,null,0]
[null,null,null,null,null,null,null,null,null,null,null,0]
[null,null,null,null,null,null,null,null,null,null,null,0]
[null,null,null,null,null,null,null,null,null,null,null,{"$f":"+E836","v":0}]
[null,null,null,null,null,null,null,null,null,null,null,0]
[null,null,null,null,null,null,null,null,null,null,null,0]
[null,null,null,null,null,null,null,null,null,null,null,0]
[null,null,null,null,null,null,null,null,null,null,null,0]
[null,null,null,null,null,null,null,null,null,null,null,0]
[null,null,null,null,null,null,null,null,null,null,null,0]
[null,null,null,null,null,null,null,null,null,null,null,0]
[null,null,null,null,null,null,null,null,null,null,null,0]
[null,null,null,null,null,null,null,null,null,null,null,0]
[null,null,null,null,null,null,null,null,null,null,null,0]
[null,null,null,null,null,null,null,null,null,null,null,0]
[null,null,null,null,null,null,null,null,null,null,null,0]
[null,null,null,null,null,null,null,null,null,null,null,0]
[null,null,null,null,null,null,null,null,null,null,null,0]
[null,null,null,null,null,null,null,null,null,null,null,0]
[null,null,null,null,null,null,null,null,null,null,null,0]
[null,null,null,null,null,null,null,null,null,null,null,0]
[null,null,null,null,null,null,null,null,null,null,null,0]
[null,null,null,null,null,null,null,null,null,null,null,0]
[null,null,null,null,null,null,null,null,null,null,null,0]
[null,null,null,null,null,null,null,null,null,null,null,0]
[null,null,null,null,null,null,null,null,null,null,null,0]
[null,null,null,null,null,null,null,null,null,null,null,0]
[null,null,null,null,null,null,null,null,null,null,null,0]
[null,null,null,null,null,null,null,null,null,null,null,0]
[null,null,null,null,null,null,null,null,null,null,null,0]
[null,null,null,null,null,null,null,null,null,null,null,0]
[null,null,null,null,null,null,null,null,null,null,null,0]
[null,null,null,null,null,null,null,null,null,null,null,0]
[null,null,null,null,null,null,null,null,null,null,null,0]
[null,null,null,null,null,null,null,null,null,null,null,0]
[null,null,null,null,null,null,null,null,null,null,null,0]
[null,null,null,null,null,null,null,null,null,null,null,0]
[null,null,null,null,null,null,null,null,null,null,null,0]
[null,null,null,null,null,null,null,null,null,null,null,0]
[null,null,null,null,null,null,null,null,null,null,null,0]
[null,null,null,null,null,null,null,null,null,null,null,0]
[null,null,null,null,null,null,null,null,null,null,null,0]
[null,null,null,null,null,null,null,null,null,null,null,0]
[null,null,null,null,null,null,null,null,null,null,null,0]
[null,null,null,null,null,null,null,null,null,null,null,0]
[null,null,null,null,null,null,null,null,null,null,null,0]
[null,null,null,null,null,null,null,null,null,null,null,0]
[null,null,null,null,null,null,null,null,null,null,null,0]
[null,null,null,null,null,null,null,null,null,null,null,0]
[null,null,null,null,null,null,null,null,null,null,null,0]
[null,null,null,null,null,null,null,null,null,null,null,0]
[null,null,null,null,null,null,null,null,null,null,null,0]
[null,null,null,null,null,null,null,null,null,null,null,0]
[null,null,null,null,null,null,null,null,null,null,null,0]
[null,null,null,null,null,null,null,null,null,null,null,0]
[null,null,null,null,null,null,null,null,null,null,null,0]
[null,null,null,null,null,null,null,null,null,null,null,0]
[null,null,null,null,null,null,null,null,null,null,null,0]
[null,null,null,null,null,null,null,null,null,null,null,0]
[null,null,null,null,null,null,null,null,null,null,null,0]
[null,null,null,null,null,null,null,null,null,null,null,0]
[null,null,null,null,null,null,null,null,null,null,null,0]
[null,null,null,null,null,null,null,null,null,null,null,0]
[null,null,null,null,null,null,null,null,null,null,null,0]
[null,null,null,null,null,null,null,null,null,null,null,0]
[null,null,null,null,null,null,null,null,null,null,null,0]
[null,null,null,null,null,null,null,null,null,null,null,0]
[null,null,null,null,null,null,null,null,null,null,null,{"$f":"+E900","v":0}]
[null,null,null,null,null,null,null,null,null,null,null,0]
[null,null,null,null,null,null,null,null,null,null,null,0]
[null,null,null,null,null,null,null,null,null,null,null,0]
[null,null,null,null,null,null,null,null,null,null,null,0]
[null,null,null,null,null,null,null,null,null,null,null,0]
[null,null,null,null,null,null,null,null,null,null,null,0]
[null,null,null,null,null,null,null,null,null,null,null,0]
[null,null,null,null,null,null,null,null,null,null,null,0]
[null,null,null,null,null,null,null,null,null,null,null,0]
[null,null,null,null,null,null,null,null,null,null,null,0]
[null,null,null,null,null,null,null,null,null,null,null,0]
[null,null,null,null,null,null,null,null,null,null,null,0]
[null,null,null,null,null,null,null,null,null,null,null,0]
[null,null,null,null,null,null,null,null,null,null,null,0]
[null,null,null,null,null,null,null,null,null,null,null,0]
[null,null,null,null,null,null,null,null,null,null,null,0]
[null,null,null,null,null,null,null,null,null,null,null,0]
[null,null,null,null,null,null,null,null,null,null,null,0]
[null,null,null,null,null,null,null,null,null,null,null,0]
[null,null,null,null,null,null,null,null,null,null,null,0]
[null,null,null,null,null,null,null,null,null,null,null,0]
[null,null,null,null,null,null,null,null,null,null,null,0]
[null,null,null,null,null,null,null,null,null,null,null,0]
[null,null,null,null,null,null,null,null,null,null,null,0]
[null,null,null,null,null,null,null,null,null,null,null,0]
[null,null,null,null,null,null,null,null,null,null,null,0]
[null,null,null,null,null,null,null,null,null,null,null,0]
[null,null,null,null,null,null,null,null,null,null,null,0]
[null,null,null,null,null,null,null,null,null,null,null,0]
[null,null,null,null,null,null,null,null,null,null,null,0]
[null,null,null,null,null,null,null,null,null,null,null,0]
[null,null,null,null,null,null,null,null,null,null,null,0]
[null,null,null,null,null,null,null,null,null,null,null,0]
[null,null,null,null,null,null,null,null,null,null,null,0]
[null,null,null,null,null,null,null,null,null,null,null,0]
[null,null,null,null,null,null,null,null,null,null,null,0]
[null,null,null,null,null,null,null,null,null,null,null,0]
[null,null,null,null,null,null,null,null,null,null,null,0]
[null,null,null,null,null,null,null,null,null,null,null,0]
[null,null,null,null,null,null,null,null,null,null,null,0]
[null,null,null,null,null,null,null,null,null,null,null,0]
[null,null,null,null,null,null,null,null,null,null,null,0]
[null,null,null,null,null,null,null,null,null,null,null,0]
[null,null,null,null,null,null,null,null,null,null,null,0]
[null,null,null,null,null,null,null,null,null,null,null,0]
[null,null,null,null,null,null,null,null,null,null,null,0]
[null,null,null,null,null,null,null,null,null,null,null,0]
[null,null,null,null,null,null,null,null,null,null,null,0]
[null,null,null,null,null,null,null,null,null,null,null,0]
[null,null,null,null,null,null,null,null,null,null,null,0]
[null,null,null,null,null,null,null,null,null,null,null,0]
[null,null,null,null,null,null,null,null,null,null,null,0]
[null,null,null,null,null,null,null,null,null,null,null,0]
[null,null,null,null,null,null,null,null,null,null,null,0]
[null,null,null,null,null,null,null,null,null,null,null,0]
[null,null,null,null,null,null,null,null,null,null,null,0]
[null,null,null,null,null,null,null,null,null,null,null,0]
[null,null,null,null,null,null,null,null,null,null,null,0]
[null,null,null,null,null,null,null,null,null,null,null,0]
[null,null,null,null,null,null,null,null,null,null,null,0]
[null,null,null,null,null,null,null,null,null,null,null,0]
[null,null,null,null,null,null,null,null,null,null,null,0]
[null,null,null,null,null,null,null,null,null,null,null,0]
[null,null,null,null,null,null,null,null,null,null,null,{"$f":"+E964","v":0}]
[null,null,null,null,null,null,null,null,null,null,null,0]
[null,null,null,null,null,null,null,null,null,null,null,0]
[null,null,null,null,null,null,null,null,null,null,null,0]
[null,null,null,null,null,null,null,null,null,null,null,0]
[null,null,null,null,null,null,null,null,null,null,null,0]
[null,null,null,null,null,null,null,null,null,null,null,0]
[null,null,null,null,null,null,null,null,null,null,null,0]
[null,null,null,null,null,null,null,null,null,null,null,0]
[null,null,null,null,null,null,null,null,null,null,null,0]
[null,null,null,null,null,null,null,null,null,null,null,0]
[null,null,null,null,null,null,null,null,null,null,null,0]
[null,null,null,null,null,null,null,null,null,null,null,0]
[null,null,null,null,null,null,null,null,null,null,null,0]
[null,null,null,null,null,null,null,null,null,null,null,0]
[null,null,null,null,null,null,null,null,null,null,null,0]
[null,null,null,null,null,null,null,null,null,null,null,0]
[null,null,null,null,null,null,null,null,null,null,null,0]
[null,null,null,null,null,null,null,null,null,null,null,0]
[null,null,null,null,null,null,null,null,null,null,null,0]
[null,null,null,null,null,null,null,null,null,null,null,0]
[null,null,null,null,null,null,null,null,null,null,null,0]
[null,null,null,null,null,null,null,null,null,null,null,0]
[null,null,null,null,null,null,null,null,null,null,null,0]
[null,null,null,null,null,null,null,null,null,null,null,0]
[null,null,null,null,null,null,null,null,null,null,null,0]
[null,null,null,null,null,null,null,null,null,null,null,0]
[null,null,null,null,null,null,null,null,null,null,null,0]
[null,null,null,null,null,null,null,null,null,null,null,0]
[null,null,null,null,null,null,null,null,null,null,null,0]
[null,null,null,null,null,null,null,null,null,null,null,0]
[null,null,null,null,null,null,null,null,null,null,null,0]
[null,null,null,null,null,null,null,null,null,null,null,0]
[null,null,null,null,null,null,null,null,null,null,null,0]
[null,null,null,null,null,null,null,null,null,null,null,0]
[null,null,null,null,null,null,null,null,null,null,null,0]
[null,null,null,null,null,null,null,null,null,null,null,0]
[null,null,null,null,null,null,null,null,null,null,null,0]
[null,null,null,null,null,null,null,null,null,null,null,0]
[null,null,null,null,null,null,null,null,null,null,null,0]
[null,null,null,null,null,null,null,null,null,null,null,0]
[null,null,null,null,null,null,null,null,null,null,null,0]
[null,null,null,null,null,null,null,null,null,null,null,0]
[null,null,null,null,null,null,null,null,null,null,null,0]
[null,null,null,null,null,null,null,null,null,null,null,0]
[null,null,null,null,null,null,null,null,null,null,null,0]
[null,null,null,null,null,null,null,null,null,null,null,0]
[null,null,null,null,null,null,null,null,null,null,null,0]
[null,null,null,null,null,null,null,null,null,null,null,0]
[null,null,null,null,null,null,null,null,null,null,null,0]
[null,null,null,null,null,null,null,null,null,null,null,0]
[null,null,null,null,null,null,null,null,null,null,null,0]
[null,null,null,null,null,null,null,null,null,null,null,0]
[null,null,null,null,null,null,null,null,null,null,null,0]
[null,null,null,null,null,null,null,null,null,null,null,0]
[null,null,null,null,null,null,null,null,null,null,null,0]
[null,null,null,null,null,null,null,null,null,null,null,0]
[null,null,null,null,null,null,null,null,null,null,null,0]
[null,null,null,null,null,null,null,null,null,null,null,0]
[null,null,null,null,null,null,null,null,null,null,null,0]
[null,null,null,null,null,null,null,null,null,null,null,0]
[null,null,null,null,null,null,null,null,null,null,null,0]
[null,null,null,null,null,null,null,null,null,null,null,0]
[null,null,null,null,null,null,null,null,null,null,null,0]
[null,null,null,null,null,null,null,null,null,null,null,{"$f":"+E1028","v":0}]
[null,null,null,null,null,null,null,null,null,null,null,0]
[null,null,null,null,null,null,null,null,null,null,null,0]
[null,null,null,null,null,null,null,null,null,null,null,0]
[null,null,null,null,null,null,null,null,null,null,null,0]
[null,null,null,null,null,null,null,null,null,null,null,0]
[null,null,null,null,null,null,null,null,null,null,null,0]
[null,null,null,null,null,null,null,null,null,null,null,0]
[null,null,null,null,null,null,null,null,null,null,null,0]
[null,null,null,null,null,null,null,null,null,null,null,0]
[null,null,null,null,null,null,null,null,null,null,null,0]
[null,null,null,null,null,null,null,null,null,null,null,0]
[null,null,null,null,null,null,null,null,null,null,null,0]
[null,null,null,null,null,null,null,null,null,null,null,0]
[null,null,null,null,null,null,null,null,null,null,null,0]
[null,null,null,null,null,null,null,null,null,null,null,0]
[null,null,null,null,null,null,null,null,null,null,null,0]
[null,null,null,null,null,null,null,null,null,null,null,0]
[null,null,null,null,null,null,null,null,null,null,null,0]
[null,null,null,null,null,null,null,null,null,null,null,0]
[null,null,null,null,null,null,null,null,null,null,null,0]
[null,null,null,null,null,null,null,null,null,null,null,0]
[null,null,null,null,null,null,null,null,null,null,null,0]
[null,null,null,null,null,null,null,null,null,null,null,0]
[null,null,null,null,null,null,null,null,null,null,null,0]
[null,null,null,null,null,null,null,null,null,null,null,0]
[null,null,null,null,null,null,null,null,null,null,null,0]
[null,null,null,null,null,null,null,null,null,null,null,0]
[null,null,null,null,null,null,null,null,null,null,null,0]
[null,null,null,null,null,null,null,null,null,null,null,0]
[null,null,null,null,null,null,null,null,null,null,null,0]
[null,null,null,null,null,null,null,null,null,null,null,0]
[null,null,null,null,null,null,null,null,null,null,null,0]
[null,null,null,null,null,null,null,null,null,null,null,0]
[null,null,null,null,null,null,null,null,null,null,null,0]
[null,null,null,null,null,null,null,null,null,null,null,0]
[null,null,null,null,null,null,null,null,null,null,null,0]
[null,null,null,null,null,null,null,null,null,null,null,0]
[null,null,null,null,null,null,null,null,null,null,null,0]
[null,null,null,null,null,null,null,null,null,null,null,0]
[null,null,null,null,null,null,null,null,null,null,null,0]
[null,null,null,null,null,null,null,null,null,null,null,0]
[null,null,null,null,null,null,null,null,null,null,null,0]
[null,null,null,null,null,null,null,null,null,null,null,0]
[null,null,null,null,null,null,null,null,null,null,null,0]
[null,null,null,null,null,null,null,null,null,null,null,0]
[null,null,null,null,null,null,null,null,null,null,null,0]
[null,null,null,null,null,null,null,null,null,null,null,0]
[null,null,null,null,null,null,null,null,null,null,null,0]
[null,null,null,null,null,null,null,null,null,null,null,0]
[null,null,null,null,null,null,null,null,null,null,null,0]
[null,null,null,null,null,null,null,null,null,null,null,0]
[null,null,null,null,null,null,null,null,null,null,null,0]
[null,null,null,null,null,null,null,null,null,null,null,0]
[null,null,null,null,null,null,null,null,null,null,null,0]
[null,null,null,null,null,null,null,null,null,null,null,0]
[null,null,null,null,null,null,null,null,null,null,null,0]
[null,null,null,null,null,null,null,null,null,null,null,0]
[null,null,null,null,null,null,null,null,null,null,null,0]
[null,null,null,null,null,null,null,null,null,null,null,0]
[null,null,null,null,null,null,null,null,null,null,null,0]
[null,null,null,null,null,null,null,null,null,null,null,0]
[null,null,null,null,null,null,null,null,null,null,null,0]
[null,null,null,null,null,null,null,null,null,null,null,0]
[null,null,null,null,null,null,null,null,null,null,null,{"$f":"+E1092","v":0}]
[null,null,null,null,null,null,null,null,null,null,null,0]
[null,null,null,null,null,null,null,null,null,null,null,0]
[null,null,null,null,null,null,null,null,null,null,null,0]
[null,null,null,null,null,null,null,null,null,null,null,0]
[null,null,null,null,null,null,null,null,null,null,null,0]
[null,null,null,null,null,null,null,null,null,null,null,0]
[null,null,null,null,null,null,null,null,null,null,null,0]
[null,null,null,null,null,null,null,null,null,null,null,0]
[null,null,null,null,null,null,null,null,null,null,null,0]
[null,null,null,null,null,null,null,null,null,null,null,0]
[null,null,null,null,null,null,null,null,null,null,null,0]
[null,null,null,null,null,null,null,null,null,null,null,0]
[null,null,null,null,null,null,null,null,null,null,null,0]
[null,null,null,null,null,null,null,null,null,null,null,0]
[null,null,null,null,null,null,null,null,null,null,null,0]
[null,null,null,null,null,null,null,null,null,null,null,0]
[null,null,null,null,null,null,null,null,null,null,null,0]
[null,null,null,null,null,null,null,null,null,null,null,0]
[null,null,null,null,null,null,null,null,null,null,null,0]
[null,null,null,null,null,null,null,null,null,null,null,0]
[null,null,null,null,null,null,null,null,null,null,null,0]
[null,null,null,null,null,null,null,null,null,null,null,0]
[null,null,null,null,null,null,null,null,null,null,null,0]
[null,null,null,null,null,null,null,null,null,null,null,0]
[null,null,null,null,null,null,null,null,null,null,null,0]
[null,null,null,null,null,null,null,null,null,null,null,0]
[null,null,null,null,null,null,null,null,null,null,null,0]
[null,null,null,null,null,null,null,null,null,null,null,0]
[null,null,null,null,null,null,null,null,null,null,null,0]
[null,null,null,null,null,null,null,null,null,null,null,0]
[null,null,null,null,null,null,null,null,null,null,null,0]
[null,null,null,null,null,null,null,null,null,null,null,0]
[null,null,null,null,null,null,null,null,null,null,null,0]
[null,null,null,null,null,null,null,null,null,null,null,0]
[null,null,null,null,null,null,null,null,null,null,null,0]
[null,null,null,null,null,null,null,null,null,null,null,0]
[null,null,null,null,null,null,null,null,null,null,null,0]
[null,null,null,null,null,null,null,null,null,null,null,0]
[null,null,null,null,null,null,null,null,null,null,null,0]
[null,null,null,null,null,null,null,null,null,null,null,0]
[null,null,null,null,null,null,null,null,null,null,null,0]
[null,null,null,null,null,null,null,null,null,null,null,0]
[null,null,null,null,null,null,null,null,null,null,null,0]
[null,null,null,null,null,null,null,null,null,null,null,0]
[null,null,null,null,null,null,null,null,null,null,null,0]
[null,null,null,null,null,null,null,null,null,null,null,0]
[null,null,null,null,null,null,null,null,null,null,null,0]
[null,null,null,null,null,null,null,null,null,null,null,0]
[null,null,null,null,null,null,null,null,null,null,null,0]
[null,null,null,null,null,null,null,null,null,null,null,0]
[null,null,null,null,null,null,null,null,null,null,null,0]
[null,null,null,null,null,null,null,null,null,null,null,0]
[null,null,null,null,null,null,null,null,null,null,null,0]
[null,null,null,null,null,null,null,null,null,null,null,0]
[null,null,null,null,null,null,null,null,null,null,null,0]
[null,null,null,null,null,null,null,null,null,null,null,0]
[null,null,null,null,null,null,null,null,null,null,null,0]
[null,null,null,null,null,null,null,null,null,null,null,0]
[null,null,null,null,null,null,null,null,null,null,null,0]
[null,null,null,null,null,null,null,null,null,null,null,0]
[null,null,null,null,null,null,null,null,null,null,null,0]
[null,null,null,null,null,null,null,null,null,null,null,0]
[null,null,null,null,null,null,null,null,null,null,null,0]
[null,null,null,null,null,null,null,null,null,null,null,{"$f":"+E1156","v":0}]
[null,null,null,null,null,null,null,null,null,null,null,0]
[null,null,null,null,null,null,null,null,null,null,null,0]
[null,null,null,null,null,null,null,null,null,null,null,0]
[null,null,null,null,null,null,null,null,null,null,null,0]
[null,null,null,null,null,null,null,null,null,null,null,0]
[null,null,null,null,null,null,null,null,null,null,null,0]
[null,null,null,null,null,null,null,null,null,null,null,0]
[null,null,null,null,null,null,null,null,null,null,null,0]
[null,null,null,null,null,null,null,null,null,null,null,0]
[null,null,null,null,null,null,null,null,null,null,null,0]
[null,null,null,null,null,null,null,null,null,null,null,0]
[null,null,null,null,null,null,null,null,null,null,null,0]
[null,null,null,null,null,null,null,null,null,null,null,0]
[null,null,null,null,null,null,null,null,null,null,null,0]
[null,null,null,null,null,null,null,null,null,null,null,0]
[null,null,null,null,null,null,null,null,null,null,null,0]
[null,null,null,null,null,null,null,null,null,null,null,0]
[null,null,null,null,null,null,null,null,null,null,null,0]
[null,null,null,null,null,null,null,null,null,null,null,0]
[null,null,null,null,null,null,null,null,null,null,null,0]
[null,null,null,null,null,null,null,null,null,null,null,0]
[null,null,null,null,null,null,null,null,null,null,null,0]
[null,null,null,null,null,null,null,null,null,null,null,0]
[null,null,null,null,null,null,null,null,null,null,null,0]
[null,null,null,null,null,null,null,null,null,null,null,0]
[null,null,null,null,null,null,null,null,null,null,null,0]
[null,null,null,null,null,null,null,null,null,null,null,0]
[null,null,null,null,null,null,null,null,null,null,null,0]
[null,null,null,null,null,null,null,null,null,null,null,0]
[null,null,null,null,null,null,null,null,null,null,null,0]
[null,null,null,null,null,null,null,null,null,null,null,0]
[null,null,null,null,null,null,null,null,null,null,null,0]
[null,null,null,null,null,null,null,null,null,null,null,0]
[null,null,null,null,null,null,null,null,null,null,null,0]
[null,null,null,null,null,null,null,null,null,null,null,0]
[null,null,null,null,null,null,null,null,null,null,null,0]
[null,null,null,null,null,null,null,null,null,null,null,0]
[null,null,null,null,null,null,null,null,null,null,null,0]
[null,null,null,null,null,null,null,null,null,null,null,0]
[null,null,null,null,null,null,null,null,null,null,null,0]
[null,null,null,null,null,null,null,null,null,null,null,0]
[null,null,null,null,null,null,null,null,null,null,null,0]
[null,null,null,null,null,null,null,null,null,null,null,0]
[null,null,null,null,null,null,null,null,null,null,null,0]
[null,null,null,null,null,null,null,null,null,null,null,0]
[null,null,null,null,null,null,null,null,null,null,null,0]
[null,null,null,null,null,null,null,null,null,null,null,0]
[null,null,null,null,null,null,null,null,null,null,null,0]
[null,null,null,null,null,null,null,null,null,null,null,0]
[null,null,null,null,null,null,null,null,null,null,null,0]
[null,null,null,null,null,null,null,null,null,null,null,0]
[null,null,null,null,null,null,null,null,null,null,null,0]
[null,null,null,null,null,null,null,null,null,null,null,0]
[null,null,null,null,null,null,null,null,null,null,null,0]
[null,null,null,null,null,null,null,null,null,null,null,0]
[null,null,null,null,null,null,null,null,null,null,null,0]
[null,null,null,null,null,null,null,null,null,null,null,0]
[null,null,null,null,null,null,null,null,null,null,null,0]
[null,null,null,null,null,null,null,null,null,null,null,0]
[null,null,null,null,null,null,null,null,null,null,null,0]
[null,null,null,null,null,null,null,null,null,null,null,0]
[null,null,null,null,null,null,null,null,null,null,null,0]
[null,null,null,null,null,null,null,null,null,null,null,0]
[null,null,null,null,null,null,null,null,null,null,null,{"$f":"+E1220","v":0}]
[null,null,null,null,null,null,null,null,null,null,null,0]
[null,null,null,null,null,null,null,null,null,null,null,0]
[null,null,null,null,null,null,null,null,null,null,null,0]
[null,null,null,null,null,null,null,null,null,null,null,0]
[null,null,null,null,null,null,null,null,null,null,null,0]
[null,null,null,null,null,null,null,null,null,null,null,0]
[null,null,null,null,null,null,null,null,null,null,null,0]
[null,null,null,null,null,null,null,null,null,null,null,0]
[null,null,null,null,null,null,null,null,null,null,null,0]
[null,null,null,null,null,null,null,null,null,null,null,0]
[null,null,null,null,null,null,null,null,null,null,null,0]
[null,null,null,null,null,null,null,null,null,null,null,0]
[null,null,null,null,null,null,null,null,null,null,null,0]
[null,null,null,null,null,null,null,null,null,null,null,0]
[null,null,null,null,null,null,null,null,null,null,null,0]
[null,null,null,null,null,null,null,null,null,null,null,0]
[null,null,null,null,null,null,null,null,null,null,null,0]
[null,null,null,null,null,null,null,null,null,null,null,0]
[null,null,null,null,null,null,null,null,null,null,null,0]
[null,null,null,null,null,null,null,null,null,null,null,0]
[null,null,null,null,null,null,null,null,null,null,null,0]
[null,null,null,null,null,null,null,null,null,null,null,0]
[null,null,null,null,null,null,null,null,null,null,null,0]
[null,null,null,null,null,null,null,null,null,null,null,0]
[null,null,null,null,null,null,null,null,null,null,null,0]
[null,null,null,null,null,null,null,null,null,null,null,0]
[null,null,null,null,null,null,null,null,null,null,null,0]
[null,null,null,null,null,null,null,null,null,null,null,0]
[null,null,null,null,null,null,null,null,null,null,null,0]
[null,null,null,null,null,null,null,null,null,null,null,0]
[null,null,null,null,null,null,null,null,null,null,null,0]
[null,null,null,null,null,null,null,null,null,null,null,0]
[null,null,null,null,null,null,null,null,null,null,null,0]
[null,null,null,null,null,null,null,null,null,null,null,0]
[null,null,null,null,null,null,null,null,null,null,null,0]
[null,null,null,null,null,null,null,null,null,null,null,0]
[null,null,null,null,null,null,null,null,null,null,null,0]
[null,null,null,null,null,null,null,null,null,null,null,0]
[null,null,null,null,null,null,null,null,null,null,null,0]
[null,null,null,null,null,null,null,null,null,null,null,0]
[null,null,null,null,null,null,null,null,null,null,null,0]
[null,null,null,null,null,null,null,null,null,null,null,0]
[null,null,null,null,null,null,null,null,null,null,null,0]
[null,null,null,null,null,null,null,null,null,null,null,0]
[null,null,null,null,null,null,null,null,null,null,null,0]
[null,null,null,null,null,null,null,null,null,null,null,0]
[null,null,null,null,null,null,null,null,null,null,null,0]
[null,null,null,null,null,null,null,null,null,null,null,0]
[null,null,null,null,null,null,null,null,null,null,null,0]
[null,null,null,null,null,null,null,null,null,null,null,0]
[null,null,null,null,null,null,null,null,null,null,null,0]
[null,null,null,null,null,null,null,null,null,null,null,0]
[null,null,null,null,null,null,null,null,null,null,null,0]
[null,null,null,null,null,null,null,null,null,null,null,0]
[null,null,null,null,null,null,null,null,null,null,null,0]
[null,null,null,null,null,null,null,null,null,null,null,0]
[null,null,null,null,null,null,null,null,null,null,null,0]
[null,null,null,null,null,null,null,null,null,null,null,0]
[null,null,null,null,null,null,null,null,null,null,null,0]
[null,null,null,null,null,null,null,null,null,null,null,0]
[null,null,null,null,null,null,null,null,null,null,null,0]
[null,null,null,null,null,null,null,null,null,null,null,0]
[null,null,null,null,null,null,null,null,null,null,null,0]
[null,null,null,null,null,null,null,null,null,null,null,{"$f":"+E1284","v":0}]
[null,null,null,null,null,null,null,null,null,null,null,0]
[null,null,null,null,null,null,null,null,null,null,null,0]
[null,null,null,null,null,null,null,null,null,null,null,0]
[null,null,null,null,null,null,null,null,null,null,null,0]
[null,null,null,null,null,null,null,null,null,null,null,0]
[null,null,null,null,null,null,null,null,null,null,null,0]
[null,null,null,null,null,null,null,null,null,null,null,0]
[null,null,null,null,null,null,null,null,null,null,null,0]
[null,null,null,null,null,null,null,null,null,null,null,0]
[null,null,null,null,null,null,null,null,null,null,null,0]
[null,null,null,null,null,null,null,null,null,null,null,0]
[null,null,null,null,null,null,null,null,null,null,null,0]
[null,null,null,null,null,null,null,null,null,null,null,0]
[null,null,null,null,null,null,null,null,null,null,null,0]
[null,null,null,null,null,null,null,null,null,null,null,0]
[null,null,null,null,null,null,null,null,null,null,null,0]
[null,null,null,null,null,null,null,null,null,null,null,0]
[null,null,null,null,null,null,null,null,null,null,null,0]
[null,null,null,null,null,null,null,null,null,null,null,0]
[null,null,null,null,null,null,null,null,null,null,null,0]
[null,null,null,null,null,null,null,null,null,null,null,0]
[null,null,null,null,null,null,null,null,null,null,null,0]
[null,null,null,null,null,null,null,null,null,null,null,0]
[null,null,null,null,null,null,null,null,null,null,null,0]
[null,null,null,null,null,null,null,null,null,null,null,0]
[null,null,null,null,null,null,null,null,null,null,null,0]
[null,null,null,null,null,null,null,null,null,null,null,0]
[null,null,null,null,null,null,null,null,null,null,null,0]
[null,null,null,null,null,null,null,null,null,null,null,0]
[null,null,null,null,null,null,null,null,null,null,null,0]
[null,null,null,null,null,null,null,null,null,null,null,0]
[null,null,null,null,null,null,null,null,null,null,null,0]
[null,null,null,null,null,null,null,null,null,null,null,0]
[null,null,null,null,null,null,null,null,null,null,null,0]
[null,null,null,null,null,null,null,null,null,null,null,0]
[null,null,null,null,null,null,null,null,null,null,null,0]
[null,null,null,null,null,null,null,null,null,null,null,0]
[null,null,null,null,null,null,null,null,null,null,null,0]
[null,null,null,null,null,null,null,null,null,null,null,0]
[null,null,null,null,null,null,null,null,null,null,null,0]
[null,null,null,null,null,null,null,null,null,null,null,0]
[null,null,null,null,null,null,null,null,null,null,null,0]
[null,null,null,null,null,null,null,null,null,null,null,0]
[null,null,null,null,null,null,null,null,null,null,null,0]
[null,null,null,null,null,null,null,null,null,null,null,0]
[null,null,null,null,null,null,null,null,null,null,null,0]
[null,null,null,null,null,null,null,null,null,null,null,0]
[null,null,null,null,null,null,null,null,null,null,null,0]
[null,null,null,null,null,null,null,null,null,null,null,0]
[null,null,null,null,null,null,null,null,null,null,null,0]
[null,null,null,null,null,null,null,null,null,null,null,0]
[null,null,null,null,null,null,null,null,null,null,null,0]
[null,null,null,null,null,null,null,null,null,null,null,0]
[null,null,null,null,null,null,null,null,null,null,null,0]
[null,null,null,null,null,null,null,null,null,null,null,0]
[null,null,null,null,null,null,null,null,null,null,null,0]
[null,null,null,null,null,null,null,null,null,null,null,0]
[null,null,null,null,null,null,null,null,null,null,null,0]
[null,null,null,null,null,null,null,null,null,null,null,0]
[null,null,null,null,null,null,null,null,null,null,null,0]
[null,null,null,null,null,null,null,null,null,null,null,0]
[null,null,null,null,null,null,null,null,null,null,null,0]
[null,null,null,null,null,null,null,null,null,null,null,0]
[null,null,null,null,null,null,null,null,null,null,null,{"$f":"+E1348","v":0}]
[null,null,null,null,null,null,null,null,null,null,null,0]
[null,null,null,null,null,null,null,null,null,null,null,0]
[null,null,null,null,null,null,null,null,null,null,null,0]
[null,null,null,null,null,null,null,null,null,null,null,0]
[null,null,null,null,null,null,null,null,null,null,null,0]
[null,null,null,null,null,null,null,null,null,null,null,0]
[null,null,null,null,null,null,null,null,null,null,null,0]
[null,null,null,null,null,null,null,null,null,null,null,0]
[null,null,null,null,null,null,null,null,null,null,null,0]
[null,null,null,null,null,null,null,null,null,null,null,0]
[null,null,null,null,null,null,null,null,null,null,null,0]
[null,null,null,null,null,null,null,null,null,null,null,0]
[null,null,null,null,null,null,null,null,null,null,null,0]
[null,null,null,null,null,null,null,null,null,null,null,0]
[null,null,null,null,null,null,null,null,null,null,null,0]
[null,null,null,null,null,null,null,null,null,null,null,0]
[null,null,null,null,null,null,null,null,null,null,null,0]
[null,null,null,null,null,null,null,null,null,null,null,0]
[null,null,null,null,null,null,null,null,null,null,null,0]
[null,null,null,null,null,null,null,null,null,null,null,0]
[null,null,null,null,null,null,null,null,null,null,null,0]
[null,null,null,null,null,null,null,null,null,null,null,0]
[null,null,null,null,null,null,null,null,null,null,null,0]
[null,null,null,null,null,null,null,null,null,null,null,0]
[null,null,null,null,null,null,null,null,null,null,null,0]
[null,null,null,null,null,null,null,null,null,null,null,0]
[null,null,null,null,null,null,null,null,null,null,null,0]
[null,null,null,null,null,null,null,null,null,null,null,0]
[null,null,null,null,null,null,null,null,null,null,null,0]
[null,null,null,null,null,null,null,null,null,null,null,0]
[null,null,null,null,null,null,null,null,null,null,null,0]
[null,null,null,null,null,null,null,null,null,null,null,0]
[null,null,null,null,null,null,null,null,null,null,null,0]
[null,null,null,null,null,null,null,null,null,null,null,0]
[null,null,null,null,null,null,null,null,null,null,null,0]
[null,null,null,null,null,null,null,null,null,null,null,0]
[null,null,null,null,null,null,null,null,null,null,null,0]
[null,null,null,null,null,null,null,null,null,null,null,0]
[null,null,null,null,null,null,null,null,null,null,null,0]
[null,null,null,null,null,null,null,null,null,null,null,0]
[null,null,null,null,null,null,null,null,null,null,null,0]
[null,null,null,null,null,null,null,null,null,null,null,0]
[null,null,null,null,null,null,null,null,null,null,null,0]
[null,null,null,null,null,null,null,null,null,null,null,0]
[null,null,null,null,null,null,null,null,null,null,null,0]
[null,null,null,null,null,null,null,null,null,null,null,0]
[null,null,null,null,null,null,null,null,null,null,null,0]
[null,null,null,null,null,null,null,null,null,null,null,0]
[null,null,null,null,null,null,null,null,null,null,null,0]
[null,null,null,null,null,null,null,null,null,null,null,0]
[null,null,null,null,null,null,null,null,null,null,null,0]
[null,null,null,null,null,null,null,null,null,null,null,0]
[null,null,null,null,null,null,null,null,null,null,null,0]
[null,null,null,null,null,null,null,null,null,null,null,0]
[null,null,null,null,null,null,null,null,null,null,null,0]
[null,null,null,null,null,null,null,null,null,null,null,0]
[null,null,null,null,null,null,null,null,null,null,null,0]
[null,null,null,null,null,null,null,null,null,null,null,0]
[null,null,null,null,null,null,null,null,null,null,null,0]
[null,null,null,null,null,null,null,null,null,null,null,0]
[null,null,null,null,null,null,null,null,null,null,null,0]
[null,null,null,null,null,null,null,null,null,null,null,0]
[null,null,null,null,null,null,null,null,null,null,null,0]
[null,null,null,null,null,null,null,null,null,null,null,{"$f":"+E1412","v":0}]
[null,null,null,null,null,null,null,null,null,null,null,0]
[null,null,null,null,null,null,null,null,null,null,null,0]
[null,null,null,null,null,null,null,null,null,null,null,0]
[null,null,null,null,null,null,null,null,null,null,null,0]
[null,null,null,null,null,null,null,null,null,null,null,0]
[null,null,null,null,null,null,null,null,null,null,null,0]
[null,null,null,null,null,null,null,null,null,null,null,0]
[null,null,null,null,null,null,null,null,null,null,null,0]
[null,null,null,null,null,null,null,null,null,null,null,0]
[null,null,null,null,null,null,null,null,null,null,null,0]
[null,null,null,null,null,null,null,null,null,null,null,0]
[null,null,null,null,null,null,null,null,null,null,null,0]
[null,null,null,null,null,null,null,null,null,null,null,0]
[null,null,null,null,null,null,null,null,null,null,null,0]
[null,null,null,null,null,null,null,null,null,null,null,0]
[null,null,null,null,null,null,null,null,null,null,null,0]
[null,null,null,null,null,null,null,null,null,null,null,0]
[null,null,null,null,null,null,null,null,null,null,null,0]
[null,null,null,null,null,null,null,null,null,null,null,0]
[null,null,null,null,null,null,null,null,null,null,null,0]
[null,null,null,null,null,null,null,null,null,null,null,0]
[null,null,null,null,null,null,null,null,null,null,null,0]
[null,null,null,null,null,null,null,null,null,null,null,0]
[null,null,null,null,null,null,null,null,null,null,null,0]
[null,null,null,null,null,null,null,null,null,null,null,0]
[null,null,null,null,null,null,null,null,null,null,null,0]
[null,null,null,null,null,null,null,null,null,null,null,0]
[null,null,null,null,null,null,null,null,null,null,null,0]
[null,null,null,null,null,null,null,null,null,null,null,0]
[null,null,null,null,null,null,null,null,null,null,null,0]
[null,null,null,null,null,null,null,null,null,null,null,0]
[null,null,null,null,null,null,null,null,null,null,null,0]
[null,null,null,null,null,null,null,null,null,null,null,0]
[null,null,null,null,null,null,null,null,null,null,null,0]
[null,null,null,null,null,null,null,null,null,null,null,0]
[null,null,null,null,null,null,null,null,null,null,null,0]
[null,null,null,null,null,null,null,null,null,null,null,0]
[null,null,null,null,null,null,null,null,null,null,null,0]
[null,null,null,null,null,null,null,null,null,null,null,0]
[null,null,null,null,null,null,null,null,null,null,null,0]
[null,null,null,null,null,null,null,null,null,null,null,0]
[null,null,null,null,null,null,null,null,null,null,null,0]
[null,null,null,null,null,null,null,null,null,null,null,0]
[null,null,null,null,null,null,null,null,null,null,null,0]
[null,null,null,null,null,null,null,null,null,null,null,0]
[null,null,null,null,null,null,null,null,null,null,null,0]
[null,null,null,null,null,null,null,null,null,null,null,0]
[null,null,null,null,null,null,null,null,null,null,null,0]
[null,null,null,null,null,null,null,null,null,null,null,0]
[null,null,null,null,null,null,null,null,null,null,null,0]
[null,null,null,null,null,null,null,null,null,null,null,0]
[null,null,null,null,null,null,null,null,null,null,null,0]
[null,null,null,null,null,null,null,null,null,null,null,0]
[null,null,null,null,null,null,null,null,null,null,null,0]
[null,null,null,null,null,null,null,null,null,null,null,0]
[null,null,null,null,null,null,null,null,null,null,null,0]
[null,null,null,null,null,null,null,null,null,null,null,0]
[null,null,null,null,null,null,null,null,null,null,null,0]
[null,null,null,null,null,null,null,null,null,null,null,0]
[null,null,null,null,null,null,null,null,null,null,null,0]
[null,null,null,null,null,null,null,null,null,null,null,0]
[null,null,null,null,null,null,null,null,null,null,null,0]
[null,null,null,null,null,null,null,null,null,null,null,0]
[null,null,null,null,null,null,null,null,null,null,null,{"$f":"+E1476","v":0}]
[null,null,null,null,null,null,null,null,null,null,null,0]
[null,null,null,null,null,null,null,null,null,null,null,0]
[null,null,null,null,null,null,null,null,null,null,null,0]
[null,null,null,null,null,null,null,null,null,null,null,0]
[null,null,null,null,null,null,null,null,null,null,null,0]
[null,null,null,null,null,null,null,null,null,null,null,0]
[null,null,null,null,null,null,null,null,null,null,null,0]
[null,null,null,null,null,null,null,null,null,null,null,0]
[null,null,null,null,null,null,null,null,null,null,null,0]
[null,null,null,null,null,null,null,null,null,null,null,0]
[null,null,null,null,null,null,null,null,null,null,null,0]
[null,null,null,null,null,null,null,null,null,null,null,0]
[null,null,null,null,null,null,null,null,null,null,null,0]
[null,null,null,null,null,null,null,null,null,null,null,0]
[null,null,null,null,null,null,null,null,null,null,null,0]
[null,null,null,null,null,null,null,null,null,null,null,0]
[null,null,null,null,null,null,null,null,null,null,null,0]
[null,null,null,null,null,null,null,null,null,null,null,0]
[null,null,null,null,null,null,null,null,null,null,null,0]
[null,null,null,null,null,null,null,null,null,null,null,0]
[null,null,null,null,null,null,null,null,null,null,null,0]
[null,null,null,null,null,null,null,null,null,null,null,0]
[null,null,null,null,null,null,null,null,null,null,null,0]
[null,null,null,null,null,null,null,null,null,null,null,0]
[null,null,null,null,null,null,null,null,null,null,null,0]
[null,null,null,null,null,null,null,null,null,null,null,0]
[null,null,null,null,null,null,null,null,null,null,null,0]
[null,null,null,null,null,null,null,null,null,null,null,0]
[null,null,null,null,null,null,null,null,null,null,null,0]
[null,null,null,null,null,null,null,null,null,null,null,0]
[null,null,null,null,null,null,null,null,null,null,null,0]
[null,null,null,null,null,null,null,null,null,null,null,0]
[null,null,null,null,null,null,null,null,null,null,null,0]
[null,null,null,null,null,null,null,null,null,null,null,0]
[null,null,null,null,null,null,null,null,null,null,null,0]
[null,null,null,null,null,null,null,null,null,null,null,0]
[null,null,null,null,null,null,null,null,null,null,null,0]
[null,null,null,null,null,null,null,null,null,null,null,0]
[null,null,null,null,null,null,null,null,null,null,null,0]
[null,null,null,null,null,null,null,null,null,null,null,0]
[null,null,null,null,null,null,null,null,null,null,null,0]
[null,null,null,null,null,null,null,null,null,null,null,0]
[null,null,null,null,null,null,null,null,null,null,null,0]
[null,null,null,null,null,null,null,null,null,null,null,0]
[null,null,null,null,null,null,null,null,null,null,null,0]
[null,null,null,null,null,null,null,null,null,null,null,0]
[null,null,null,null,null,null,null,null,null,null,null,0]
[null,null,null,null,null,null,null,null,null,null,null,0]
[null,null,null,null,null,null,null,null,null,null,null,0]
[null,null,null,null,null,null,null,null,null,null,null,0]
[null,null,null,null,null,null,null,null,null,null,null,0]
[null,null,null,null,null,null,null,null,null,null,null,0]
[null,null,null,null,null,null,null,null,null,null,null,0]
[null,null,null,null,null,null,null,null,null,null,null,0]
[null,null,null,null,null,null,null,null,null,null,null,0]
[null,null,null,null,null,null,null,null,null,null,null,0]
[null,null,null,null,null,null,null,null,null,null,null,0]
[null,null,null,null,null,null,null,null,null,null,null,0]
[null,null,null,null,null,null,null,null,null,null,null,0]
[null,null,null,null,null,null,null,null,null,null,null,0]
[null,null,null,null,null,null,null,null,null,null,null,0]
[null,null,null,null,null,null,null,null,null,null,null,0]
[null,null,null,null,null,null,null,null,null,null,null,0]
[null,null,null,null,null,null,null,null,null,null,null,{"$f":"+E1540","v":0}]
[null,null,null,null,null,null,null,null,null,null,null,0]
[null,null,null,null,null,null,null,null,null,null,null,0]
[null,null,null,null,null,null,null,null,null,null,null,0]
[null,null,null,null,null,null,null,null,null,null,null,0]
[null,null,null,null,null,null,null,null,null,null,null,0]
[null,null,null,null,null,null,null,null,null,null,null,0]
[null,null,null,null,null,null,null,null,null,null,null,0]
[null,null,null,null,null,null,null,null,null,null,null,0]
[null,null,null,null,null,null,null,null,null,null,null,0]
[null,null,null,null,null,null,null,null,null,null,null,0]
[null,null,null,null,null,null,null,null,null,null,null,0]
[null,null,null,null,null,null,null,null,null,null,null,0]
[null,null,null,null,null,null,null,null,null,null,null,0]
[null,null,null,null,null,null,null,null,null,null,null,0]
[null,null,null,null,null,null,null,null,null,null,null,0]
[null,null,null,null,null,null,null,null,null,null,null,0]
[null,null,null,null,null,null,null,null,null,null,null,0]
[null,null,null,null,null,null,null,null,null,null,null,0]
[null,null,null,null,null,null,null,null,null,null,null,0]
[null,null,null,null,null,null,null,null,null,null,null,0]
[null,null,null,null,null,null,null,null,null,null,null,0]
[null,null,null,null,null,null,null,null,null,null,null,0]
[null,null,null,null,null,null,null,null,null,null,null,0]
[null,null,null,null,null,null,null,null,null,null,null,0]
[null,null,null,null,null,null,null,null,null,null,null,0]
[null,null,null,null,null,null,null,null,null,null,null,0]
[null,null,null,null,null,null,null,null,null,null,null,0]
[null,null,null,null,null,null,null,null,null,null,null,0]
[null,null,null,null,null,null,null,null,null,null,null,0]
[null,null,null,null,null,null,null,null,null,null,null,0]
[null,null,null,null,null,null,null,null,null,null,null,0]
[null,null,null,null,null,null,null,null,null,null,null,0]
[null,null,null,null,null,null,null,null,null,null,null,0]
[null,null,null,null,null,null,null,null,null,null,null,0]
[null,null,null,null,null,null,null,null,null,null,null,0]
[null,null,null,null,null,null,null,null,null,null,null,0]
[null,null,null,null,null,null,null,null,null,null,null,0]
[null,null,null,null,null,null,null,null,null,null,null,0]
[null,null,null,null,null,null,null,null,null,null,null,0]
[null,null,null,null,null,null,null,null,null,null,null,0]
[null,null,null,null,null,null,null,null,null,null,null,0]
[null,null,null,null,null,null,null,null,null,null,null,0]
[null,null,null,null,null,null,null,null,null,null,null,0]
[null,null,null,null,null,null,null,null,null,null,null,0]
[null,null,null,null,null,null,null,null,null,null,null,0]
[null,null,null,null,null,null,null,null,null,null,null,0]
[null,null,null,null,null,null,null,null,null,null,null,0]
[null,null,null,null,null,null,null,null,null,null,null,0]
[null,null,null,null,null,null,null,null,null,null,null,0]
[null,null,null,null,null,null,null,null,null,null,null,0]
[null,null,null,null,null,null,null,null,null,null,null,0]
[null,null,null,null,null,null,null,null,null,null,null,0]
[null,null,null,null,null,null,null,null,null,null,null,0]
[null,null,null,null,null,null,null,null,null,null,null,0]
[null,null,null,null,null,null,null,null,null,null,null,0]
[null,null,null,null,null,null,null,null,null,null,null,0]
[null,null,null,null,null,null,null,null,null,null,null,0]
[null,null,null,null,null,null,null,null,null,null,null,0]
[null,null,null,null,null,null,null,null,null,null,null,0]
[null,null,null,null,null,null,null,null,null,null,null,0]
[null,null,null,null,null,null,null,null,null,null,null,0]
[null,null,null,null,null,null,null,null,null,null,null,0]
[null,null,null,null,null,null,null,null,null,null,null,0]
[null,null,null,null,null,null,null,null,null,null,null,{"$f":"+E1604","v":0}]
[null,null,null,null,null,null,null,null,null,null,null,0]
[null,null,null,null,null,null,null,null,null,null,null,0]
[null,null,null,null,null,null,null,null,null,null,null,0]
[null,null,null,null,null,null,null,null,null,null,null,0]
[null,null,null,null,null,null,null,null,null,null,null,0]
[null,null,null,null,null,null,null,null,null,null,null,0]
[null,null,null,null,null,null,null,null,null,null,null,0]
[null,null,null,null,null,null,null,null,null,null,null,0]
[null,null,null,null,null,null,null,null,null,null,null,0]
[null,null,null,null,null,null,null,null,null,null,null,0]
[null,null,null,null,null,null,null,null,null,null,null,0]
[null,null,null,null,null,null,null,null,null,null,null,0]
[null,null,null,null,null,null,null,null,null,null,null,0]
[null,null,null,null,null,null,null,null,null,null,null,0]
[null,null,null,null,null,null,null,null,null,null,null,0]
[null,null,null,null,null,null,null,null,null,null,null,0]
[null,null,null,null,null,null,null,null,null,null,null,0]
[null,null,null,null,null,null,null,null,null,null,null,0]
[null,null,null,null,null,null,null,null,null,null,null,0]
[null,null,null,null,null,null,null,null,null,null,null,0]
[null,null,null,null,null,null,null,null,null,null,null,0]
[null,null,null,null,null,null,null,null,null,null,null,0]
[null,null,null,null,null,null,null,null,null,null,null,0]
[null,null,null,null,null,null,null,null,null,null,null,0]
[null,null,null,null,null,null,null,null,null,null,null,0]
[null,null,null,null,null,null,null,null,null,null,null,0]
[null,null,null,null,null,null,null,null,null,null,null,0]
[null,null,null,null,null,null,null,null,null,null,null,0]
[null,null,null,null,null,null,null,null,null,null,null,0]
[null,null,null,null,null,null,null,null,null,null,null,0]
[null,null,null,null,null,null,null,null,null,null,null,0]
[null,null,null,null,null,null,null,null,null,null,null,0]
[null,null,null,null,null,null,null,null,null,null,null,0]
[null,null,null,null,null,null,null,null,null,null,null,0]
[null,null,null,null,null,null,null,null,null,null,null,0]
[null,null,null,null,null,null,null,null,null,null,null,0]
[null,null,null,null,null,null,null,null,null,null,null,0]
[null,null,null,null,null,null,null,null,null,null,null,0]
[null,null,null,null,null,null,null,null,null,null,null,0]
[null,null,null,null,null,null,null,null,null,null,null,0]
[null,null,null,null,null,null,null,null,null,null,null,0]
[null,null,null,null,null,null,null,null,null,null,null,0]
[null,null,null,null,null,null,null,null,null,null,null,0]
[null,null,null,null,null,null,null,null,null,null,null,0]
[null,null,null,null,null,null,null,null,null,null,null,0]
[null,null,null,null,null,null,null,null,null,null,null,0]
[null,null,null,null,null,null,null,null,null,null,null,0]
[null,null,null,null,null,null,null,null,null,null,null,0]
[null,null,null,null,null,null,null,null,null,null,null,0]
[null,null,null,null,null,null,null,null,null,null,null,0]
[null,null,null,null,null,null,null,null,null,null,null,0]
[null,null,null,null,null,null,null,null,null,null,null,0]
[null,null,null,null,null,null,null,null,null,null,null,0]
[null,null,null,null,null,null,null,null,null,null,null,0]
[null,null,null,null,null,null,null,null,null,null,null,0]
[null,null,null,null,null,null,null,null,null,null,null,0]
[null,null,null,null,null,null,null,null,null,null,null,0]
[null,null,null,null,null,null,null,null,null,null,null,0]
[null,null,null,null,null,null,null,null,null,null,null,0]
[null,null,null,null,null,null,null,null,null,null,null,0]
[null,null,null,null,null,null,null,null,null,null,null,0]
[null,null,null,null,null,null,null,null,null,null,null,0]
[null,null,null,null,null,null,null,null,null,null,null,0]
[null,null,null,null,null,null,null,null,null,null,null,{"$f":"+E1668","v":0}]
[null,null,null,null,null,null,null,null,null,null,null,0]
[null,null,null,null,null,null,null,null,null,null,null,0]
[null,null,null,null,null,null,null,null,null,null,null,0]
[null,null,null,null,null,null,null,null,null,null,null,0]
[null,null,null,null,null,null,null,null,null,null,null,0]
[null,null,null,null,null,null,null,null,null,null,null,0]
[null,null,null,null,null,null,null,null,null,null,null,0]
[null,null,null,null,null,null,null,null,null,null,null,0]
[null,null,null,null,null,null,null,null,null,null,null,0]
[null,null,null,null,null,null,null,null,null,null,null,0]
[null,null,null,null,null,null,null,null,null,null,null,0]
[null,null,null,null,null,null,null,null,null,null,null,0]
[null,null,null,null,null,null,null,null,null,null,null,0]
[null,null,null,null,null,null,null,null,null,null,null,0]
[null,null,null,null,null,null,null,null,null,null,null,0]
[null,null,null,null,null,null,null,null,null,null,null,0]
[null,null,null,null,null,null,null,null,null,null,null,0]
[null,null,null,null,null,null,null,null,null,null,null,0]
[null,null,null,null,null,null,null,null,null,null,null,0]
[null,null,null,null,null,null,null,null,null,null,null,0]
[null,null,null,null,null,null,null,null,null,null,null,0]
[null,null,null,null,null,null,null,null,null,null,null,0]
[null,null,null,null,null,null,null,null,null,null,null,0]
[null,null,null,null,null,null,null,null,null,null,null,0]
[null,null,null,null,null,null,null,null,null,null,null,0]
[null,null,null,null,null,null,null,null,null,null,null,0]
[null,null,null,null,null,null,null,null,null,null,null,0]
[null,null,null,null,null,null,null,null,null,null,null,0]
[null,null,null,null,null,null,null,null,null,null,null,0]
[null,null,null,null,null,null,null,null,null,null,null,0]
[null,null,null,null,null,null,null,null,null,null,null,0]
[null,null,null,null,null,null,null,null,null,null,null,0]
[null,null,null,null,null,null,null,null,null,null,null,0]
[null,null,null,null,null,null,null,null,null,null,null,0]
[null,null,null,null,null,null,null,null,null,null,null,0]
[null,null,null,null,null,null,null,null,null,null,null,0]
[null,null,null,null,null,null,null,null,null,null,null,0]
[null,null,null,null,null,null,null,null,null,null,null,0]
[null,null,null,null,null,null,null,null,null,null,null,0]
[null,null,null,null,null,null,null,null,null,null,null,0]
[null,null,null,null,null,null,null,null,null,null,null,0]
[null,null,null,null,null,null,null,null,null,null,null,0]
[null,null,null,null,null,null,null,null,null,null,null,0]
[null,null,null,null,null,null,null,null,null,null,null,0]
[null,null,null,null,null,null,null,null,null,null,null,0]
[null,null,null,null,null,null,null,null,null,null,null,0]
[null,null,null,null,null,null,null,null,null,null,null,0]
[null,null,null,null,null,null,null,null,null,null,null,0]
[null,null,null,null,null,null,null,null,null,null,null,0]
[null,null,null,null,null,null,null,null,null,null,null,0]
[null,null,null,null,null,null,null,null,null,null,null,0]
[null,null,null,null,null,null,null,null,null,null,null,0]
[null,null,null,null,null,null,null,null,null,null,null,0]
[null,null,null,null,null,null,null,null,null,null,null,0]
[null,null,null,null,null,null,null,null,null,null,null,0]
[null,null,null,null,null,null,null,null,null,null,null,0]
[null,null,null,null,null,null,null,null,null,null,null,0]
[null,null,null,null,null,null,null,null,null,null,null,0]
[null,null,null,null,null,null,null,null,null,null,null,0]
[null,null,null,null,null,null,null,null,null,null,null,0]
[null,null,null,null,null,null,null,null,null,null,null,0]
[null,null,null,null,null,null,null,null,null,null,null,0]
[null,null,null,null,null,null,null,null,null,null,null,0]
[null,null,null,null,null,null,null,null,null,null,null,{"$f":"+E1732","v":0}]
[null,null,null,null,null,null,null,null,null,null,null,0]
[null,null,null,null,null,null,null,null,null,null,null,0]
[null,null,null,null,null,null,null,null,null,null,null,0]
[null,null,null,null,null,null,null,null,null,null,null,0]
[null,null,null,null,null,null,null,null,null,null,null,0]
[null,null,null,null,null,null,null,null,null,null,null,0]
[null,null,null,null,null,null,null,null,null,null,null,0]
[null,null,null,null,null,null,null,null,null,null,null,0]
[null,null,null,null,null,null,null,null,null,null,null,0]
[null,null,null,null,null,null,null,null,null,null,null,0]
[null,null,null,null,null,null,null,null,null,null,null,0]
[null,null,null,null,null,null,null,null,null,null,null,0]
[null,null,null,null,null,null,null,null,null,null,null,0]
[null,null,null,null,null,null,null,null,null,null,null,0]
[null,null,null,null,null,null,null,null,null,null,null,0]
[null,null,null,null,null,null,null,null,null,null,null,0]
[null,null,null,null,null,null,null,null,null,null,null,0]
[null,null,null,null,null,null,null,null,null,null,null,0]
[null,null,null,null,null,null,null,null,null,null,null,0]
[null,null,null,null,null,null,null,null,null,null,null,0]
[null,null,null,null,null,null,null,null,null,null,null,0]
[null,null,null,null,null,null,null,null,null,null,null,0]
[null,null,null,null,null,null,null,null,null,null,null,0]
[null,null,null,null,null,null,null,null,null,null,null,0]
[null,null,null,null,null,null,null,null,null,null,null,0]
[null,null,null,null,null,null,null,null,null,null,null,0]
[null,null,null,null,null,null,null,null,null,null,null,0]
[null,null,null,null,null,null,null,null,null,null,null,0]
[null,null,null,null,null,null,null,null,null,null,null,0]
[null,null,null,null,null,null,null,null,null,null,null,0]
[null,null,null,null,null,null,null,null,null,null,null,0]
[null,null,null,null,null,null,null,null,null,null,null,0]
[null,null,null,null,null,null,null,null,null,null,null,0]
[null,null,null,null,null,null,null,null,null,null,null,0]
[null,null,null,null,null,null,null,null,null,null,null,0]
[null,null,null,null,null,null,null,null,null,null,null,0]
[null,null,null,null,null,null,null,null,null,null,null,0]
[null,null,null,null,null,null,null,null,null,null,null,0]
[null,null,null,null,null,null,null,null,null,null,null,0]
[null,null,null,null,null,null,null,null,null,null,null,0]
[null,null,null,null,null,null,null,null,null,null,null,0]
[null,null,null,null,null,null,null,null,null,null,null,0]
[null,null,null,null,null,null,null,null,null,null,null,0]
[null,null,null,null,null,null,null,null,null,null,null,0]
[null,null,null,null,null,null,null,null,null,null,null,0]
[null,null,null,null,null,null,null,null,null,null,null,0]
[null,null,null,null,null,null,null,null,null,null,null,0]
[null,null,null,null,null,null,null,null,null,null,null,0]
[null,null,null,null,null,null,null,null,null,null,null,0]
[null,null,null,null,null,null,null,null,null,null,null,0]
[null,null,null,null,null,null,null,null,null,null,null,0]
[null,null,null,null,null,null,null,null,null,null,null,0]
[null,null,null,null,null,null,null,null,null,null,null,0]
[null,null,null,null,null,null,null,null,null,null,null,0]
[null,null,null,null,null,null,null,null,null,null,null,0]
[null,null,null,null,null,null,null,null,null,null,null,0]
[null,null,null,null,null,null,null,null,null,null,null,0]
[null,null,null,null,null,null,null,null,null,null,null,0]
[null,null,null,null,null,null,null,null,null,null,null,0]
[null,null,null,null,null,null,null,null,null,null,null,0]
[null,null,null,null,null,null,null,null,null,null,null,0]
[null,null,null,null,null,null,null,null,null,null,null,0]
[null,null,null,null,null,null,null,null,null,null,null,0]
[null,null,null,null,null,null,null,null,null,null,null,{"$f":"+E1796","v":0}]
[null,null,null,null,null,null,null,null,null,null,null,0]
[null,null,null,null,null,null,null,null,null,null,null,0]
[null,null,null,null,null,null,null,null,null,null,null,0]
[null,null,null,null,null,null,null,null,null,null,null,0]
[null,null,null,null,null,null,null,null,null,null,null,0]
[null,null,null,null,null,null,null,null,null,null,null,0]
[null,null,null,null,null,null,null,null,null,null,null,0]
[null,null,null,null,null,null,null,null,null,null,null,0]
[null,null,null,null,null,null,null,null,null,null,null,0]
[null,null,null,null,null,null,null,null,null,null,null,0]
[null,null,null,null,null,null,null,null,null,null,null,0]
[null,null,null,null,null,null,null,null,null,null,null,0]
[null,null,null,null,null,null,null,null,null,null,null,0]
[null,null,null,null,null,null,null,null,null,null,null,0]
[null,null,null,null,null,null,null,null,null,null,null,0]
[null,null,null,null,null,null,null,null,null,null,null,0]
[null,null,null,null,null,null,null,null,null,null,null,0]
[null,null,null,null,null,null,null,null,null,null,null,0]
[null,null,null,null,null,null,null,null,null,null,null,0]
[null,null,null,null,null,null,null,null,null,null,null,0]
[null,null,null,null,null,null,null,null,null,null,null,0]
[null,null,null,null,null,null,null,null,null,null,null,0]
[null,null,null,null,null,null,null,null,null,null,null,0]
[null,null,null,null,null,null,null,null,null,null,null,0]
[null,null,null,null,null,null,null,null,null,null,null,0]
[null,null,null,null,null,null,null,null,null,null,null,0]
[null,null,null,null,null,null,null,null,null,null,null,0]
[null,null,null,null,null,null,null,null,null,null,null,0]
[null,null,null,null,null,null,null,null,null,null,null,0]
[null,null,null,null,null,null,null,null,null,null,null,0]
[null,null,null,null,null,null,null,null,null,null,null,0]
[null,null,null,null,null,null,null,null,null,null,null,0]
[null,null,null,null,null,null,null,null,null,null,null,0]
[null,null,null,null,null,null,null,null,null,null,null,0]
[null,null,null,null,null,null,null,null,null,null,null,0]
[null,null,null,null,null,null,null,null,null,null,null,0]
[null,null,null,null,null,null,null,null,null,null,null,0]
[null,null,null,null,null,null,null,null,null,null,null,0]
[null,null,null,null,null,null,null,null,null,null,null,0]
[null,null,null,null,null,null,null,null,null,null,null,0]
[null,null,null,null,null,null,null,null,null,null,null,0]
[null,null,null,null,null,null,null,null,null,null,null,0]
[null,null,null,null,null,null,null,null,null,null,null,0]
[null,null,null,null,null,null,null,null,null,null,null,0]
[null,null,null,null,null,null,null,null,null,null,null,0]
[null,null,null,null,null,null,null,null,null,null,null,0]
[null,null,null,null,null,null,null,null,null,null,null,0]
[null,null,null,null,null,null,null,null,null,null,null,0]
[null,null,null,null,null,null,null,null,null,null,null,0]
[null,null,null,null,null,null,null,null,null,null,null,0]
[null,null,null,null,null,null,null,null,null,null,null,0]
[null,null,null,null,null,null,null,null,null,null,null,0]
[null,null,null,null,null,null,null,null,null,null,null,0]
[null,null,null,null,null,null,null,null,null,null,null,0]
[null,null,null,null,null,null,null,null,null,null,null,0]
[null,null,null,null,null,null,null,null,null,null,null,0]
[null,null,null,null,null,null,null,null,null,null,null,0]
[null,null,null,null,null,null,null,null,null,null,null,0]
[null,null,null,null,null,null,null,null,null,null,null,0]
[null,null,null,null,null,null,null,null,null,null,null,0]
[null,null,null,null,null,null,null,null,null,null,null,0]
[null,null,null,null,null,null,null,null,null,null,null,0]
[null,null,null,null,null,null,null,null,null,null,null,0]
[null,null,null,null,null,null,null,null,null,null,null,{"$f":"+E1860","v":0}]
[null,null,null,null,null,null,null,null,null,null,null,0]
[null,null,null,null,null,null,null,null,null,null,null,0]
[null,null,null,null,null,null,null,null,null,null,null,0]
[null,null,null,null,null,null,null,null,null,null,null,0]
[null,null,null,null,null,null,null,null,null,null,null,0]
[null,null,null,null,null,null,null,null,null,null,null,0]
[null,null,null,null,null,null,null,null,null,null,null,0]
[null,null,null,null,null,null,null,null,null,null,null,0]
[null,null,null,null,null,null,null,null,null,null,null,0]
[null,null,null,null,null,null,null,null,null,null,null,0]
[null,null,null,null,null,null,null,null,null,null,null,0]
[null,null,null,null,null,null,null,null,null,null,null,0]
[null,null,null,null,null,null,null,null,null,null,null,0]
[null,null,null,null,null,null,null,null,null,null,null,0]
[null,null,null,null,null,null,null,null,null,null,null,0]
[null,null,null,null,null,null,null,null,null,null,null,0]
[null,null,null,null,null,null,null,null,null,null,null,0]
[null,null,null,null,null,null,null,null,null,null,null,0]
[null,null,null,null,null,null,null,null,null,null,null,0]
[null,null,null,null,null,null,null,null,null,null,null,0]
[null,null,null,null,null,null,null,null,null,null,null,0]
[null,null,null,null,null,null,null,null,null,null,null,0]
[null,null,null,null,null,null,null,null,null,null,null,0]
[null,null,null,null,null,null,null,null,null,null,null,0]
[null,null,null,null,null,null,null,null,null,null,null,0]
[null,null,null,null,null,null,null,null,null,null,null,0]
[null,null,null,null,null,null,null,null,null,null,null,0]
[null,null,null,null,null,null,null,null,null,null,null,0]
[null,null,null,null,null,null,null,null,null,null,null,0]
[null,null,null,null,null,null,null,null,null,null,null,0]
[null,null,null,null,null,null,null,null,null,null,null,0]
[null,null,null,null,null,null,null,null,null,null,null,0]
[null,null,null,null,null,null,null,null,null,null,null,0]
[null,null,null,null,null,null,null,null,null,null,null,0]
[null,null,null,null,null,null,null,null,null,null,null,0]
[null,null,null,null,null,null,null,null,null,null,null,0]
[null,null,null,null,null,null,null,null,null,null,null,0]
[null,null,null,null,null,null,null,null,null,null,null,0]
[null,null,null,null,null,null,null,null,null,null,null,0]
[null,null,null,null,null,null,null,null,null,null,null,0]
[null,null,null,null,null,null,null,null,null,null,null,0]
[null,null,null,null,null,null,null,null,null,null,null,0]
[null,null,null,null,null,null,null,null,null,null,null,0]
[null,null,null,null,null,null,null,null,null,null,null,0]
[null,null,null,null,null,null,null,null,null,null,null,0]
[null,null,null,null,null,null,null,null,null,null,null,0]
[null,null,null,null,null,null,null,null,null,null,null,0]
[null,null,null,null,null,null,null,null,null,null,null,0]
[null,null,null,null,null,null,null,null,null,null,null,0]
[null,null,null,null,null,null,null,null,null,null,null,0]
[null,null,null,null,null,null,null,null,null,null,null,0]
[null,null,null,null,null,null,null,null,null,null,null,0]
[null,null,null,null,null,null,null,null,null,null,null,0]
[null,null,null,null,null,null,null,null,null,null,null,0]
[null,null,null,null,null,null,null,null,null,null,null,0]
[null,null,null,null,null,null,null,null,null,null,null,0]
[null,null,null,null,null,null,null,null,null,null,null,0]
[null,null,null,null,null,null,null,null,null,null,null,0]
[null,null,null,null,null,null,null,null,null,null,null,0]
[null,null,null,null,null,null,null,null,null,null,null,0]
[null,null,null,null,null,null,null,null,null,null,null,0]
[null,null,null,null,null,null,null,null,null,null,null,0]
[null,null,null,null,null,null,null,null,null,null,null,0]
[null,null,null,null,null,null,null,null,null,null,null,{"$f":"+E1924","v":0}]
[null,null,null,null,null,null,null,null,null,null,null,0]
[null,null,null,null,null,null,null,null,null,null,null,0]
[null,null,null,null,null,null,null,null,null,null,null,0]
[null,null,null,null,null,null,null,null,null,null,null,0]
[null,null,null,null,null,null,null,null,null,null,null,0]
[null,null,null,null,null,null,null,null,null,null,null,0]
[null,null,null,null,null,null,null,null,null,null,null,0]
[null,null,null,null,null,null,null,null,null,null,null,0]
[null,null,null,null,null,null,null,null,null,null,null,0]
[null,null,null,null,null,null,null,null,null,null,null,0]
[null,null,null,null,null,null,null,null,null,null,null,0]
[null,null,null,null,null,null,null,null,null,null,null,0]
[null,null,null,null,null,null,null,null,null,null,null,0]
[null,null,null,null,null,null,null,null,null,null,null,0]
[null,null,null,null,null,null,null,null,null,null,null,0]
[null,null,null,null,null,null,null,null,null,null,null,0]
[null,null,null,null,null,null,null,null,null,null,null,0]
[null,null,null,null,null,null,null,null,null,null,null,0]
[null,null,null,null,null,null,null,null,null,null,null,0]
[null,null,null,null,null,null,null,null,null,null,null,0]
[null,null,null,null,null,null,null,null,null,null,null,0]
[null,null,null,null,null,null,null,null,null,null,null,0]
[null,null,null,null,null,null,null,null,null,null,null,0]
[null,null,null,null,null,null,null,null,null,null,null,0]
[null,null,null,null,null,null,null,null,null,null,null,0]
[null,null,null,null,null,null,null,null,null,null,null,0]
[null,null,null,null,null,null,null,null,null,null,null,0]
[null,null,null,null,null,null,null,null,null,null,null,0]
[null,null,null,null,null,null,null,null,null,null,null,0]
[null,null,null,null,null,null,null,null,null,null,null,0]
[null,null,null,null,null,null,null,null,null,null,null,0]
[null,null,null,null,null,null,null,null,null,null,null,0]
[null,null,null,null,null,null,null,null,null,null,null,0]
[null,null,null,null,null,null,null,null,null,null,null,0]
[null,null,null,null,null,null,null,null,null,null,null,0]
[null,null,null,null,null,null,null,null,null,null,null,0]
[null,null,null,null,null,null,null,null,null,null,null,0]
[null,null,null,null,null,null,null,null,null,null,null,0]
[null,null,null,null,null,null,null,null,null,null,null,0]
[null,null,null,null,null,null,null,null,null,null,null,0]
[null,null,null,null,null,null,null,null,null,null,null,0]
[null,null,null,null,null,null,null,null,null,null,null,0]
[null,null,null,null,null,null,null,null,null,null,null,0]
[null,null,null,null,null,null,null,null,null,null,null,0]
[null,null,null,null,null,null,null,null,null,null,null,0]
[null,null,null,null,null,null,null,null,null,null,null,0]
[null,null,null,null,null,null,null,null,null,null,null,0]
[null,null,null,null,null,null,null,null,null,null,null,0]
[null,null,null,null,null,null,null,null,null,null,null,0]
[null,null,null,null,null,null,null,null,null,null,null,0]
[null,null,null,null,null,null,null,null,null,null,null,0]
[null,null,null,null,null,null,null,null,null,null,null,0]
[null,null,null,null,null,null,null,null,null,null,null,0]
[null,null,null,null,null,null,null,null,null,null,null,0]
[null,null,null,null,null,null,null,null,null,null,null,0]
[null,null,null,null,null,null,null,null,null,null,null,0]
[null,null,null,null,null,null,null,null,null,null,null,0]
[null,null,null,null,null,null,null,null,null,null,null,0]
[null,null,null,null,null,null,null,null,null,null,null,0]
[null,null,null,null,null,null,null,null,null,null,null,0]
[null,null,null,null,null,null,null,null,null,null,null,0]
[null,null,null,null,null,null,null,null,null,null,null,0]
[null,null,null,null,null,null,null,null,null,null,null,0]
[null,null,null,null,null,null,null,null,null,null,null,{"$f":"+E1988","v":0}]
[null,null,null,null,null,null,null,null,null,null,null,0]
[null,null,null,null,null,null,null,null,null,null,null,0]
[null,null,null,null,null,null,null,null,null,null,null,0]
[null,null,null,null,null,null,null,null,null,null,null,0]
[null,null,null,null,null,null,null,null,null,null,null,0]
[null,null,null,null,null,null,null,null,null,null,null,0]
[null,null,null,null,null,null,null,null,null,null,null,0]
[null,null,null,null,null,null,null,null,null,null,null,0]
[null,null,null,null,null,null,null,null,null,null,null,0]
[null,null,null,null,null,null,null,null,null,null,null,0]
[null,null,null,null,null,null,null,null,null,null,null,0]
[null,null,null,null,null,null,null,null,null,null,null,0]
[null,null,null,null,null,null,null,null,null,null,null,0]
[null,null,null,null,null,null,null,null,null,null,null,0]
[]
[]
[]
[]
[]
[]
[]
[null,null,null,null,null,null,{"$f":"IF((OR(COUNTIF(A:A,H2010)>0,(AND($B$3>0,$C$3>0,H2010>=$B$3,H2010<=$C$3))))=TRUE,H2010,0)","v":0},1]
[null,null,null,null,null,null,0,2]
[null,null,null,null,null,null,0,3]
[null,null,null,null,null,null,0,4]
[null,null,null,null,null,null,0,5]
[null,null,null,null,null,null,0,6]
[null,null,null,null,null,null,0,7]
[null,null,null,null,null,null,0,8]
[null,null,null,null,null,null,0,9]
[null,null,null,null,null,null,0,10]
[null,null,null,null,null,null,0,11]
[null,null,null,null,null,null,0,12]
[null,null,null,null,null,null,0,13]
[null,null,null,null,null,null,0,14]
[null,null,null,null,null,null,0,15]
[null,null,null,null,null,null,0,16]
[null,null,null,null,null,null,0,17]
[null,null,null,null,null,null,0,18]
[null,null,null,null,null,null,0,19]
[null,null,null,null,null,null,0,20]
[null,null,null,null,null,null,0,21]
[null,null,null,null,null,null,0,22]
[null,null,null,null,null,null,0,23]
[null,null,null,null,null,null,0,24]
[null,null,null,null,null,null,0,25]
[null,null,null,null,null,null,0,26]
[null,null,null,null,null,null,0,27]
[null,null,null,null,null,null,0,28]
[null,null,null,null,null,null,0,29]
[null,null,null,null,null,null,0,30]
[null,null,null,null,null,null,0,31]
[null,null,null,null,null,null,0,32]
[null,null,null,null,null,null,0,33]
[null,null,null,null,null,null,0,34]
[null,null,null,null,null,null,0,35]
[null,null,null,null,null,null,0,36]
[null,null,null,null,null,null,0,37]
[null,null,null,null,null,null,0,38]
[null,null,null,null,null,null,0,39]
[null,null,null,null,null,null,0,40]
[null,null,null,null,null,null,0,41]
[null,null,null,null,null,null,0,42]
[null,null,null,null,null,null,0,43]
[null,null,null,null,null,null,0,44]
[null,null,null,null,null,null,0,45]
[null,null,null,null,null,null,0,46]
[null,null,null,null,null,null,0,47]
[null,null,null,null,null,null,0,48]
[null,null,null,null,null,null,0,49]
[null,null,null,null,null,null,0,50]
[null,null,null,null,null,null,0,51]
[null,null,null,null,null,null,0,52]
[null,null,null,null,null,null,0,53]
[null,null,null,null,null,null,0,54]
[null,null,null,null,null,null,0,55]
[null,null,null,null,null,null,0,56]
[null,null,null,null,null,null,0,57]
[null,null,null,null,null,null,0,58]
[null,null,null,null,null,null,0,59]
[null,null,null,null,null,null,0,60]
[null,null,null,null,null,null,0,61]
[null,null,null,null,null,null,0,62]
[null,null,null,null,null,null,0,63]
[null,null,null,null,null,null,0,64]
[null,null,null,null,null,null,{"$f":"IF((OR(COUNTIF(A:A,H2074)>0,(AND($B$3>0,$C$3>0,H2074>=$B$3,H2074<=$C$3))))=TRUE,H2074,0)","v":0},65]
[null,null,null,null,null,null,0,66]
[null,null,null,null,null,null,0,67]
[null,null,null,null,null,null,0,68]
[null,null,null,null,null,null,0,69]
[null,null,null,null,null,null,0,70]
[null,null,null,null,null,null,0,71]
[null,null,null,null,null,null,0,72]
[null,null,null,null,null,null,0,73]
[null,null,null,null,null,null,0,74]
[null,null,null,null,null,null,0,75]
[null,null,null,null,null,null,0,76]
[null,null,null,null,null,null,0,77]
[null,null,null,null,null,null,0,78]
[null,null,null,null,null,null,0,79]
[null,null,null,null,null,null,0,80]
[null,null,null,null,null,null,0,81]
[null,null,null,null,null,null,0,82]
[null,null,null,null,null,null,0,83]
[null,null,null,null,null,null,0,84]
[null,null,null,null,null,null,0,85]
[null,null,null,null,null,null,0,86]
[null,null,null,null,null,null,0,87]
[null,null,null,null,null,null,0,88]
[null,null,null,null,null,null,0,89]
[null,null,null,null,null,null,0,90]
[null,null,null,null,null,null,0,91]
[null,null,null,null,null,null,0,92]
[null,null,null,null,null,null,0,93]
[null,null,null,null,null,null,0,94]
[null,null,null,null,null,null,0,95]
[null,null,null,null,null,null,0,96]
[null,null,null,null,null,null,0,97]
[null,null,null,null,null,null,0,98]
[null,null,null,null,null,null,0,99]
[null,null,null,null,null,null,0,100]
[null,null,null,null,null,null,0,101]
[null,null,null,null,null,null,0,102]
[null,null,null,null,null,null,0,103]
[null,null,null,null,null,null,0,104]
[null,null,null,null,null,null,0,105]
[null,null,null,null,null,null,0,106]
[null,null,null,null,null,null,0,107]
[null,null,null,null,null,null,0,108]
[null,null,null,null,null,null,0,109]
[null,null,null,null,null,null,0,110]
[null,null,null,null,null,null,0,111]
[null,null,null,null,null,null,0,112]
[null,null,null,null,null,null,0,113]
[null,null,null,null,null,null,0,114]
[null,null,null,null,null,null,0,115]
[null,null,null,null,null,null,0,116]
[null,null,null,null,null,null,0,117]
[null,null,null,null,null,null,0,118]
[null,null,null,null,null,null,0,119]
[null,null,null,null,null,null,0,120]
[null,null,null,null,null,null,0,121]
[null,null,null,null,null,null,0,122]
[null,null,null,null,null,null,0,123]
[null,null,null,null,null,null,0,124]
[null,null,null,null,null,null,0,125]
[null,null,null,null,null,null,0,126]
[null,null,null,null,null,null,0,127]
[null,null,null,null,null,null,0,128]
[null,null,null,null,null,null,{"$f":"IF((OR(COUNTIF(A:A,H2138)>0,(AND($B$3>0,$C$3>0,H2138>=$B$3,H2138<=$C$3))))=TRUE,H2138,0)","v":0},129]
[null,null,null,null,null,null,0,130]
[null,null,null,null,null,null,0,131]
[null,null,null,null,null,null,0,132]
[null,null,null,null,null,null,0,133]
[null,null,null,null,null,null,0,134]
[null,null,null,null,null,null,0,135]
[null,null,null,null,null,null,0,136]
[null,null,null,null,null,null,0,137]
[null,null,null,null,null,null,0,138]
[null,null,null,null,null,null,0,139]
[null,null,null,null,null,null,0,140]
[null,null,null,null,null,null,0,141]
[null,null,null,null,null,null,0,142]
[null,null,null,null,null,null,0,143]
[null,null,null,null,null,null,0,144]
[null,null,null,null,null,null,0,145]
[null,null,null,null,null,null,0,146]
[null,null,null,null,null,null,0,147]
[null,null,null,null,null,null,0,148]
[null,null,null,null,null,null,0,149]
[null,null,null,null,null,null,0,150]
[null,null,null,null,null,null,0,151]
[null,null,null,null,null,null,0,152]
[null,null,null,null,null,null,0,153]
[null,null,null,null,null,null,0,154]
[null,null,null,null,null,null,0,155]
[null,null,null,null,null,null,0,156]
[null,null,null,null,null,null,0,157]
[null,null,null,null,null,null,0,158]
[null,null,null,null,null,null,0,159]
[null,null,null,null,null,null,0,160]
[null,null,null,null,null,null,0,161]
[null,null,null,null,null,null,0,162]
[null,null,null,null,null,null,0,163]
[null,null,null,null,null,null,0,164]
[null,null,null,null,null,null,0,165]
[null,null,null,null,null,null,0,166]
[null,null,null,null,null,null,0,167]
[null,null,null,null,null,null,0,168]
[null,null,null,null,null,null,0,169]
[null,null,null,null,null,null,0,170]
[null,null,null,null,null,null,0,171]
[null,null,null,null,null,null,0,172]
[null,null,null,null,null,null,0,173]
[null,null,null,null,null,null,0,174]
[null,null,null,null,null,null,0,175]
[null,null,null,null,null,null,0,176]
[null,null,null,null,null,null,0,177]
[null,null,null,null,null,null,0,178]
[null,null,null,null,null,null,0,179]
[null,null,null,null,null,null,0,180]
[null,null,null,null,null,null,0,181]
[null,null,null,null,null,null,0,182]
[null,null,null,null,null,null,0,183]
[null,null,null,null,null,null,0,184]
[null,null,null,null,null,null,0,185]
[null,null,null,null,null,null,0,186]
[null,null,null,null,null,null,0,187]
[null,null,null,null,null,null,0,188]
[null,null,null,null,null,null,0,189]
[null,null,null,null,null,null,0,190]
[null,null,null,null,null,null,0,191]
[null,null,null,null,null,null,0,192]
[null,null,null,null,null,null,{"$f":"IF((OR(COUNTIF(A:A,H2202)>0,(AND($B$3>0,$C$3>0,H2202>=$B$3,H2202<=$C$3))))=TRUE,H2202,0)","v":0},193]
[null,null,null,null,null,null,0,194]
[null,null,null,null,null,null,0,195]
[null,null,null,null,null,null,0,196]
[null,null,null,null,null,null,0,197]
[null,null,null,null,null,null,0,198]
[null,null,null,null,null,null,0,199]
[null,null,null,null,null,null,0,200]
[null,null,null,null,null,null,0,201]
[null,null,null,null,null,null,0,202]
[null,null,null,null,null,null,0,203]
[null,null,null,null,null,null,0,204]
[null,null,null,null,null,null,0,205]
[null,null,null,null,null,null,0,206]
[null,null,null,null,null,null,0,207]
[null,null,null,null,null,null,0,208]
[null,null,null,null,null,null,0,209]
[null,null,null,null,null,null,0,210]
[null,null,null,null,null,null,0,211]
[null,null,null,null,null,null,0,212]
[null,null,null,null,null,null,0,213]
[null,null,null,null,null,null,0,214]
[null,null,null,null,null,null,0,215]
[null,null,null,null,null,null,0,216]
[null,null,null,null,null,null,0,217]
[null,null,null,null,null,null,0,218]
[null,null,null,null,null,null,0,219]
[null,null,null,null,null,null,0,220]
[null,null,null,null,null,null,0,221]
[null,null,null,null,null,null,0,222]
[null,null,null,null,null,null,0,223]
[null,null,null,null,null,null,0,224]
[null,null,null,null,null,null,0,225]
[null,null,null,null,null,null,0,226]
[null,null,null,null,null,null,0,227]
[null,null,null,null,null,null,0,228]
[null,null,null,null,null,null,0,229]
[null,null,null,null,null,null,0,230]
[null,null,null,null,null,null,0,231]
[null,null,null,null,null,null,0,232]
[null,null,null,null,null,null,0,233]
[null,null,null,null,null,null,0,234]
[null,null,null,null,null,null,0,235]
[null,null,null,null,null,null,0,236]
[null,null,null,null,null,null,0,237]
[null,null,null,null,null,null,0,238]
[null,null,null,null,null,null,0,239]
[null,null,null,null,null,null,0,240]
[null,null,null,null,null,null,0,241]
[null,null,null,null,null,null,0,242]
[null,null,null,null,null,null,0,243]
[null,null,null,null,null,null,0,244]
[null,null,null,null,null,null,0,245]
[null,null,null,null,null,null,0,246]
[null,null,null,null,null,null,0,247]
[null,null,null,null,null,null,0,248]
[null,null,null,null,null,null,0,249]
[null,null,null,null,null,null,0,250]
[null,null,null,null,null,null,0,251]
[null,null,null,null,null,null,0,252]
[null,null,null,null,null,null,0,253]
[null,null,null,null,null,null,0,254]
[null,null,null,null,null,null,0,255]
[null,null,null,null,null,null,0,256]
[null,null,null,null,null,null,{"$f":"IF((OR(COUNTIF(A:A,H2266)>0,(AND($B$3>0,$C$3>0,H2266>=$B$3,H2266<=$C$3))))=TRUE,H2266,0)","v":0},257]
[null,null,null,null,null,null,0,258]
[null,null,null,null,null,null,0,259]
[null,null,null,null,null,null,0,260]
[null,null,null,null,null,null,0,261]
[null,null,null,null,null,null,0,262]
[null,null,null,null,null,null,0,263]
[null,null,null,null,null,null,0,264]
[null,null,null,null,null,null,0,265]
[null,null,null,null,null,null,0,266]
[null,null,null,null,null,null,0,267]
[null,null,null,null,null,null,0,268]
[null,null,null,null,null,null,0,269]
[null,null,null,null,null,null,0,270]
[null,null,null,null,null,null,0,271]
[null,null,null,null,null,null,0,272]
[null,null,null,null,null,null,0,273]
[null,null,null,null,null,null,0,274]
[null,null,null,null,null,null,0,275]
[null,null,null,null,null,null,0,276]
[null,null,null,null,null,null,0,277]
[null,null,null,null,null,null,0,278]
[null,null,null,null,null,null,0,279]
[null,null,null,null,null,null,0,280]
[null,null,null,null,null,null,0,281]
[null,null,null,null,null,null,0,282]
[null,null,null,null,null,null,0,283]
[null,null,null,null,null,null,0,284]
[null,null,null,null,null,null,0,285]
[null,null,null,null,null,null,0,286]
[null,null,null,null,null,null,0,287]
[null,null,null,null,null,null,0,288]
[null,null,null,null,null,null,0,289]
[null,null,null,null,null,null,0,290]
[null,null,null,null,null,null,0,291]
[null,null,null,null,null,null,0,292]
[null,null,null,null,null,null,0,293]
[null,null,null,null,null,null,0,294]
[null,null,null,null,null,null,0,295]
[null,null,null,null,null,null,0,296]
[null,null,null,null,null,null,0,297]
[null,null,null,null,null,null,0,298]
[null,null,null,null,null,null,0,299]
[null,null,null,null,null,null,0,300]
[null,null,null,null,null,null,0,301]
[null,null,null,null,null,null,0,302]
[null,null,null,null,null,null,0,303]
[null,null,null,null,null,null,0,304]
[null,null,null,null,null,null,0,305]
[null,null,null,null,null,null,0,306]
[null,null,null,null,null,null,0,307]
[null,null,null,null,null,null,0,308]
[null,null,null,null,null,null,0,309]
[null,null,null,null,null,null,0,310]
[null,null,null,null,null,null,0,311]
[null,null,null,null,null,null,0,312]
[null,null,null,null,null,null,0,313]
[null,null,null,null,null,null,0,314]
[null,null,null,null,null,null,0,315]
[null,null,null,null,null,null,0,316]
[null,null,null,null,null,null,0,317]
[null,null,null,null,null,null,0,318]
[null,null,null,null,null,null,0,319]
[null,null,null,null,null,null,0,320]
[null,null,null,null,null,null,{"$f":"IF((OR(COUNTIF(A:A,H2330)>0,(AND($B$3>0,$C$3>0,H2330>=$B$3,H2330<=$C$3))))=TRUE,H2330,0)","v":0},321]
[null,null,null,null,null,null,0,322]
[null,null,null,null,null,null,0,323]
[null,null,null,null,null,null,0,324]
[null,null,null,null,null,null,0,325]
[null,null,null,null,null,null,0,326]
[null,null,null,null,null,null,0,327]
[null,null,null,null,null,null,0,328]
[null,null,null,null,null,null,0,329]
[null,null,null,null,null,null,0,330]
[null,null,null,null,null,null,0,331]
[null,null,null,null,null,null,0,332]
[null,null,null,null,null,null,0,333]
[null,null,null,null,null,null,0,334]
[null,null,null,null,null,null,0,335]
[null,null,null,null,null,null,0,336]
[null,null,null,null,null,null,0,337]
[null,null,null,null,null,null,0,338]
[null,null,null,null,null,null,0,339]
[null,null,null,null,null,null,0,340]
[null,null,null,null,null,null,0,341]
[null,null,null,null,null,null,0,342]
[null,null,null,null,null,null,0,343]
[null,null,null,null,null,null,0,344]
[null,null,null,null,null,null,0,345]
[null,null,null,null,null,null,0,346]
[null,null,null,null,null,null,0,347]
[null,null,null,null,null,null,0,348]
[null,null,null,null,null,null,0,349]
[null,null,null,null,null,null,0,350]
[null,null,null,null,null,null,0,351]
[null,null,null,null,null,null,0,352]
[null,null,null,null,null,null,0,353]
[null,null,null,null,null,null,0,354]
[null,null,null,null,null,null,0,355]
[null,null,null,null,null,null,0,356]
[null,null,null,null,null,null,0,357]
[null,null,null,null,null,null,0,358]
[null,null,null,null,null,null,0,359]
[null,null,null,null,null,null,0,360]
[null,null,null,null,null,null,0,361]
[null,null,null,null,null,null,0,362]
[null,null,null,null,null,null,0,363]
[null,null,null,null,null,null,0,364]
[null,null,null,null,null,null,0,365]
[null,null,null,null,null,null,0,366]
[null,null,null,null,null,null,0,367]
[null,null,null,null,null,null,0,368]
[null,null,null,null,null,null,0,369]
[null,null,null,null,null,null,0,370]
[null,null,null,null,null,null,0,371]
[null,null,null,null,null,null,0,372]
[null,null,null,null,null,null,0,373]
[null,null,null,null,null,null,0,374]
[null,null,null,null,null,null,0,375]
[null,null,null,null,null,null,0,376]
[null,null,null,null,null,null,0,377]
[null,null,null,null,null,null,0,378]
[null,null,null,null,null,null,0,379]
[null,null,null,null,null,null,0,380]
[null,null,null,null,null,null,0,381]
[null,null,null,null,null,null,0,382]
[null,null,null,null,null,null,0,383]
[null,null,null,null,null,null,0,384]
[null,null,null,null,null,null,{"$f":"IF((OR(COUNTIF(A:A,H2394)>0,(AND($B$3>0,$C$3>0,H2394>=$B$3,H2394<=$C$3))))=TRUE,H2394,0)","v":0},385]
[null,null,null,null,null,null,0,386]
[null,null,null,null,null,null,0,387]
[null,null,null,null,null,null,0,388]
[null,null,null,null,null,null,0,389]
[null,null,null,null,null,null,0,390]
[null,null,null,null,null,null,0,391]
[null,null,null,null,null,null,0,392]
[null,null,null,null,null,null,0,393]
[null,null,null,null,null,null,0,394]
[null,null,null,null,null,null,0,395]
[null,null,null,null,null,null,0,396]
[null,null,null,null,null,null,0,397]
[null,null,null,null,null,null,0,398]
[null,null,null,null,null,null,0,399]
[null,null,null,null,null,null,0,400]
[null,null,null,null,null,null,0,401]
[null,null,null,null,null,null,0,402]
[null,null,null,null,null,null,0,403]
[null,null,null,null,null,null,0,404]
[null,null,null,null,null,null,0,405]
[null,null,null,null,null,null,0,406]
[null,null,null,null,null,null,0,407]
[null,null,null,null,null,null,0,408]
[null,null,null,null,null,null,0,409]
[null,null,null,null,null,null,0,410]
[null,null,null,null,null,null,0,411]
[null,null,null,null,null,null,0,412]
[null,null,null,null,null,null,0,413]
[null,null,null,null,null,null,0,414]
[null,null,null,null,null,null,0,415]
[null,null,null,null,null,null,0,416]
[null,null,null,null,null,null,0,417]
[null,null,null,null,null,null,0,418]
[null,null,null,null,null,null,0,419]
[null,null,null,null,null,null,0,420]
[null,null,null,null,null,null,0,421]
[null,null,null,null,null,null,0,422]
[null,null,null,null,null,null,0,423]
[null,null,null,null,null,null,0,424]
[null,null,null,null,null,null,0,425]
[null,null,null,null,null,null,0,426]
[null,null,null,null,null,null,0,427]
[null,null,null,null,null,null,0,428]
[null,null,null,null,null,null,0,429]
[null,null,null,null,null,null,0,430]
[null,null,null,null,null,null,0,431]
[null,null,null,null,null,null,0,432]
[null,null,null,null,null,null,0,433]
[null,null,null,null,null,null,0,434]
[null,null,null,null,null,null,0,435]
[null,null,null,null,null,null,0,436]
[null,null,null,null,null,null,0,437]
[null,null,null,null,null,null,0,438]
[null,null,null,null,null,null,0,439]
[null,null,null,null,null,null,0,440]
[null,null,null,null,null,null,0,441]
[null,null,null,null,null,null,0,442]
[null,null,null,null,null,null,0,443]
[null,null,null,null,null,null,0,444]
[null,null,null,null,null,null,0,445]
[null,null,null,null,null,null,0,446]
[null,null,null,null,null,null,0,447]
[null,null,null,null,null,null,0,448]
[null,null,null,null,null,null,{"$f":"IF((OR(COUNTIF(A:A,H2458)>0,(AND($B$3>0,$C$3>0,H2458>=$B$3,H2458<=$C$3))))=TRUE,H2458,0)","v":0},449]
[null,null,null,null,null,null,0,450]
[null,null,null,null,null,null,0,451]
[null,null,null,null,null,null,0,452]
[null,null,null,null,null,null,0,453]
[null,null,null,null,null,null,0,454]
[null,null,null,null,null,null,0,455]
[null,null,null,null,null,null,0,456]
[null,null,null,null,null,null,0,457]
[null,null,null,null,null,null,0,458]
[null,null,null,null,null,null,0,459]
[null,null,null,null,null,null,0,460]
[null,null,null,null,null,null,0,461]
[null,null,null,null,null,null,0,462]
[null,null,null,null,null,null,0,463]
[null,null,null,null,null,null,0,464]
[null,null,null,null,null,null,0,465]
[null,null,null,null,null,null,0,466]
[null,null,null,null,null,null,0,467]
[null,null,null,null,null,null,0,468]
[null,null,null,null,null,null,0,469]
[null,null,null,null,null,null,0,470]
[null,null,null,null,null,null,0,471]
[null,null,null,null,null,null,0,472]
[null,null,null,null,null,null,0,473]
[null,null,null,null,null,null,0,474]
[null,null,null,null,null,null,0,475]
[null,null,null,null,null,null,0,476]
[null,null,null,null,null,null,0,477]
[null,null,null,null,null,null,0,478]
[null,null,null,null,null,null,0,479]
[null,null,null,null,null,null,0,480]
[null,null,null,null,null,null,0,481]
[null,null,null,null,null,null,0,482]
[null,null,null,null,null,null,0,483]
[null,null,null,null,null,null,0,484]
[null,null,null,null,null,null,0,485]
[null,null,null,null,null,null,0,486]
[null,null,null,null,null,null,0,487]
[null,null,null,null,null,null,0,488]
[null,null,null,null,null,null,0,489]
[null,null,null,null,null,null,0,490]
[null,null,null,null,null,null,0,491]
[null,null,null,null,null,null,0,492]
[null,null,null,null,null,null,0,493]
[null,null,null,null,null,null,0,494]
[null,null,null,null,null,null,0,495]
[null,null,null,null,null,null,0,496]
[null,null,null,null,null,null,0,497]
[null,null,null,null,null,null,0,498]
[null,null,null,null,null,null,0,499]
[null,null,null,null,null,null,0,500]
[null,null,null,null,null,null,0,501]
[null,null,null,null,null,null,0,502]
[null,null,null,null,null,null,0,503]
[null,null,null,null,null,null,0,504]
[null,null,null,null,null,null,0,505]
[null,null,null,null,null,null,0,506]
[null,null,null,null,null,null,0,507]
[null,null,null,null,null,null,0,508]
[null,null,null,null,null,null,0,509]
[null,null,null,null,null,null,0,510]
[null,null,null,null,null,null,0,511]
[null,null,null,null,null,null,0,512]
[null,null,null,null,null,null,{"$f":"IF((OR(COUNTIF(A:A,H2522)>0,(AND($B$3>0,$C$3>0,H2522>=$B$3,H2522<=$C$3))))=TRUE,H2522,0)","v":0},513]
[null,null,null,null,null,null,0,514]
[null,null,null,null,null,null,0,515]
[null,null,null,null,null,null,0,516]
[null,null,null,null,null,null,0,517]
[null,null,null,null,null,null,0,518]
[null,null,null,null,null,null,0,519]
[null,null,null,null,null,null,0,520]
[null,null,null,null,null,null,0,521]
[null,null,null,null,null,null,0,522]
[null,null,null,null,null,null,0,523]
[null,null,null,null,null,null,0,524]
[null,null,null,null,null,null,0,525]
[null,null,null,null,null,null,0,526]
[null,null,null,null,null,null,0,527]
[null,null,null,null,null,null,0,528]
[null,null,null,null,null,null,0,529]
[null,null,null,null,null,null,0,530]
[null,null,null,null,null,null,0,531]
[null,null,null,null,null,null,0,532]
[null,null,null,null,null,null,0,533]
[null,null,null,null,null,null,0,534]
[null,null,null,null,null,null,0,535]
[null,null,null,null,null,null,0,536]
[null,null,null,null,null,null,0,537]
[null,null,null,null,null,null,0,538]
[null,null,null,null,null,null,0,539]
[null,null,null,null,null,null,0,540]
[null,null,null,null,null,null,0,541]
[null,null,null,null,null,null,0,542]
[null,null,null,null,null,null,0,543]
[null,null,null,null,null,null,0,544]
[null,null,null,null,null,null,0,545]
[null,null,null,null,null,null,0,546]
[null,null,null,null,null,null,0,547]
[null,null,null,null,null,null,0,548]
[null,null,null,null,null,null,0,549]
[null,null,null,null,null,null,0,550]
[null,null,null,null,null,null,0,551]
[null,null,null,null,null,null,0,552]
[null,null,null,null,null,null,0,553]
[null,null,null,null,null,null,0,554]
[null,null,null,null,null,null,0,555]
[null,null,null,null,null,null,0,556]
[null,null,null,null,null,null,0,557]
[null,null,null,null,null,null,0,558]
[null,null,null,null,null,null,0,559]
[null,null,null,null,null,null,0,560]
[null,null,null,null,null,null,0,561]
[null,null,null,null,null,null,0,562]
[null,null,null,null,null,null,0,563]
[null,null,null,null,null,null,0,564]
[null,null,null,null,null,null,0,565]
[null,null,null,null,null,null,0,566]
[null,null,null,null,null,null,0,567]
[null,null,null,null,null,null,0,568]
[null,null,null,null,null,null,0,569]
[null,null,null,null,null,null,0,570]
[null,null,null,null,null,null,0,571]
[null,null,null,null,null,null,0,572]
[null,null,null,null,null,null,0,573]
[null,null,null,null,null,null,0,574]
[null,null,null,null,null,null,0,575]
[null,null,null,null,null,null,0,576]
[null,null,null,null,null,null,{"$f":"IF((OR(COUNTIF(A:A,H2586)>0,(AND($B$3>0,$C$3>0,H2586>=$B$3,H2586<=$C$3))))=TRUE,H2586,0)","v":0},577]
[null,null,null,null,null,null,0,578]
[null,null,null,null,null,null,0,579]
[null,null,null,null,null,null,0,580]
[null,null,null,null,null,null,0,581]
[null,null,null,null,null,null,0,582]
[null,null,null,null,null,null,0,583]
[null,null,null,null,null,null,0,584]
[null,null,null,null,null,null,0,585]
[null,null,null,null,null,null,0,586]
[null,null,null,null,null,null,0,587]
[null,null,null,null,null,null,0,588]
[null,null,null,null,null,null,0,589]
[null,null,null,null,null,null,0,590]
[null,null,null,null,null,null,0,591]
[null,null,null,null,null,null,0,592]
[null,null,null,null,null,null,0,593]
[null,null,null,null,null,null,0,594]
[null,null,null,null,null,null,0,595]
[null,null,null,null,null,null,0,596]
[null,null,null,null,null,null,0,597]
[null,null,null,null,null,null,0,598]
[null,null,null,null,null,null,0,599]
[null,null,null,null,null,null,0,600]
[null,null,null,null,null,null,0,601]
[null,null,null,null,null,null,0,602]
[null,null,null,null,null,null,0,603]
[null,null,null,null,null,null,0,604]
[null,null,null,null,null,null,0,605]
[null,null,null,null,null,null,0,606]
[null,null,null,null,null,null,0,607]
[null,null,null,null,null,null,0,608]
[null,null,null,null,null,null,0,609]
[null,null,null,null,null,null,0,610]
[null,null,null,null,null,null,0,611]
[null,null,null,null,null,null,0,612]
[null,null,null,null,null,null,0,613]
[null,null,null,null,null,null,0,614]
[null,null,null,null,null,null,0,615]
[null,null,null,null,null,null,0,616]
[null,null,null,null,null,null,0,617]
[null,null,null,null,null,null,0,618]
[null,null,null,null,null,null,0,619]
[null,null,null,null,null,null,0,620]
[null,null,null,null,null,null,0,621]
[null,null,null,null,null,null,0,622]
[null,null,null,null,null,null,0,623]
[null,null,null,null,null,null,0,624]
[null,null,null,null,null,null,0,625]
[null,null,null,null,null,null,0,626]
[null,null,null,null,null,null,0,627]
[null,null,null,null,null,null,0,628]
[null,null,null,null,null,null,0,629]
[null,null,null,null,null,null,0,630]
[null,null,null,null,null,null,0,631]
[null,null,null,null,null,null,0,632]
[null,null,null,null,null,null,0,633]
[null,null,null,null,null,null,0,634]
[null,null,null,null,null,null,0,635]
[null,null,null,null,null,null,0,636]
[null,null,null,null,null,null,0,637]
[null,null,null,null,null,null,0,638]
[null,null,null,null,null,null,0,639]
[null,null,null,null,null,null,0,640]
[null,null,null,null,null,null,{"$f":"IF((OR(COUNTIF(A:A,H2650)>0,(AND($B$3>0,$C$3>0,H2650>=$B$3,H2650<=$C$3))))=TRUE,H2650,0)","v":0},641]
[null,null,null,null,null,null,0,642]
[null,null,null,null,null,null,0,643]
[null,null,null,null,null,null,0,644]
[null,null,null,null,null,null,0,645]
[null,null,null,null,null,null,0,646]
[null,null,null,null,null,null,0,647]
[null,null,null,null,null,null,0,648]
[null,null,null,null,null,null,0,649]
[null,null,null,null,null,null,0,650]
[null,null,null,null,null,null,0,651]
[null,null,null,null,null,null,0,652]
[null,null,null,null,null,null,0,653]
[null,null,null,null,null,null,0,654]
[null,null,null,null,null,null,0,655]
[null,null,null,null,null,null,0,656]
[null,null,null,null,null,null,0,657]
[null,null,null,null,null,null,0,658]
[null,null,null,null,null,null,0,659]
[null,null,null,null,null,null,0,660]
[null,null,null,null,null,null,0,661]
[null,null,null,null,null,null,0,662]
[null,null,null,null,null,null,0,663]
[null,null,null,null,null,null,0,664]
[null,null,null,null,null,null,0,665]
[null,null,null,null,null,null,0,666]
[null,null,null,null,null,null,0,667]
[null,null,null,null,null,null,0,668]
[null,null,null,null,null,null,0,669]
[null,null,null,null,null,null,0,670]
[null,null,null,null,null,null,0,671]
[null,null,null,null,null,null,0,672]
[null,null,null,null,null,null,0,673]
[null,null,null,null,null,null,0,674]
[null,null,null,null,null,null,0,675]
[null,null,null,null,null,null,0,676]
[null,null,null,null,null,null,0,677]
[null,null,null,null,null,null,0,678]
[null,null,null,null,null,null,0,679]
[null,null,null,null,null,null,0,680]
[null,null,null,null,null,null,0,681]
[null,null,null,null,null,null,0,682]
[null,null,null,null,null,null,0,683]
[null,null,null,null,null,null,0,684]
[null,null,null,null,null,null,0,685]
[null,null,null,null,null,null,0,686]
[null,null,null,null,null,null,0,687]
[null,null,null,null,null,null,0,688]
[null,null,null,null,null,null,0,689]
[null,null,null,null,null,null,0,690]
[null,null,null,null,null,null,0,691]
[null,null,null,null,null,null,0,692]
[null,null,null,null,null,null,0,693]
[null,null,null,null,null,null,0,694]
[null,null,null,null,null,null,0,695]
[null,null,null,null,null,null,0,696]
[null,null,null,null,null,null,0,697]
[null,null,null,null,null,null,0,698]
[null,null,null,null,null,null,0,699]
[null,null,null,null,null,null,0,700]
[null,null,null,null,null,null,0,701]
[null,null,null,null,null,null,0,702]
[null,null,null,null,null,null,0,703]
[null,null,null,null,null,null,0,704]
[null,null,null,null,null,null,{"$f":"IF((OR(COUNTIF(A:A,H2714)>0,(AND($B$3>0,$C$3>0,H2714>=$B$3,H2714<=$C$3))))=TRUE,H2714,0)","v":0},705]
[null,null,null,null,null,null,0,706]
[null,null,null,null,null,null,0,707]
[null,null,null,null,null,null,0,708]
[null,null,null,null,null,null,0,709]
[null,null,null,null,null,null,0,710]
[null,null,null,null,null,null,0,711]
[null,null,null,null,null,null,0,712]
[null,null,null,null,null,null,0,713]
[null,null,null,null,null,null,0,714]
[null,null,null,null,null,null,0,715]
[null,null,null,null,null,null,0,716]
[null,null,null,null,null,null,0,717]
[null,null,null,null,null,null,0,718]
[null,null,null,null,null,null,0,719]
[null,null,null,null,null,null,0,720]
[null,null,null,null,null,null,0,721]
[null,null,null,null,null,null,0,722]
[null,null,null,null,null,null,0,723]
[null,null,null,null,null,null,0,724]
[null,null,null,null,null,null,0,725]
[null,null,null,null,null,null,0,726]
[null,null,null,null,null,null,0,727]
[null,null,null,null,null,null,0,728]
[null,null,null,null,null,null,0,729]
[null,null,null,null,null,null,0,730]
[null,null,null,null,null,null,0,731]
[null,null,null,null,null,null,0,732]
[null,null,null,null,null,null,0,733]
[null,null,null,null,null,null,0,734]
[null,null,null,null,null,null,0,735]
[null,null,null,null,null,null,0,736]
[null,null,null,null,null,null,0,737]
[null,null,null,null,null,null,0,738]
[null,null,null,null,null,null,0,739]
[null,null,null,null,null,null,0,740]
[null,null,null,null,null,null,0,741]
[null,null,null,null,null,null,0,742]
[null,null,null,null,null,null,0,743]
[null,null,null,null,null,null,0,744]
[null,null,null,null,null,null,0,745]
[null,null,null,null,null,null,0,746]
[null,null,null,null,null,null,0,747]
[null,null,null,null,null,null,0,748]
[null,null,null,null,null,null,0,749]
[null,null,null,null,null,null,0,750]
[null,null,null,null,null,null,0,751]
[null,null,null,null,null,null,0,752]
[null,null,null,null,null,null,0,753]
[null,null,null,null,null,null,0,754]
[null,null,null,null,null,null,0,755]
[null,null,null,null,null,null,0,756]
[null,null,null,null,null,null,0,757]
[null,null,null,null,null,null,0,758]
[null,null,null,null,null,null,0,759]
[null,null,null,null,null,null,0,760]
[null,null,null,null,null,null,0,761]
[null,null,null,null,null,null,0,762]
[null,null,null,null,null,null,0,763]
[null,null,null,null,null,null,0,764]
[null,null,null,null,null,null,0,765]
[null,null,null,null,null,null,0,766]
[null,null,null,null,null,null,0,767]
[null,null,null,null,null,null,0,768]
[null,null,null,null,null,null,{"$f":"IF((OR(COUNTIF(A:A,H2778)>0,(AND($B$3>0,$C$3>0,H2778>=$B$3,H2778<=$C$3))))=TRUE,H2778,0)","v":0},769]
[null,null,null,null,null,null,0,770]
[null,null,null,null,null,null,0,771]
[null,null,null,null,null,null,0,772]
[null,null,null,null,null,null,0,773]
[null,null,null,null,null,null,0,774]
[null,null,null,null,null,null,0,775]
[null,null,null,null,null,null,0,776]
[null,null,null,null,null,null,0,777]
[null,null,null,null,null,null,0,778]
[null,null,null,null,null,null,0,779]
[null,null,null,null,null,null,0,780]
[null,null,null,null,null,null,0,781]
[null,null,null,null,null,null,0,782]
[null,null,null,null,null,null,0,783]
[null,null,null,null,null,null,0,784]
[null,null,null,null,null,null,0,785]
[null,null,null,null,null,null,0,786]
[null,null,null,null,null,null,0,787]
[null,null,null,null,null,null,0,788]
[null,null,null,null,null,null,0,789]
[null,null,null,null,null,null,0,790]
[null,null,null,null,null,null,0,791]
[null,null,null,null,null,null,0,792]
[null,null,null,null,null,null,0,793]
[null,null,null,null,null,null,0,794]
[null,null,null,null,null,null,0,795]
[null,null,null,null,null,null,0,796]
[null,null,null,null,null,null,0,797]
[null,null,null,null,null,null,0,798]
[null,null,null,null,null,null,0,799]
[null,null,null,null,null,null,0,800]
[null,null,null,null,null,null,0,801]
[null,null,null,null,null,null,0,802]
[null,null,null,null,null,null,0,803]
[null,null,null,null,null,null,0,804]
[null,null,null,null,null,null,0,805]
[null,null,null,null,null,null,0,806]
[null,null,null,null,null,null,0,807]
[null,null,null,null,null,null,0,808]
[null,null,null,null,null,null,0,809]
[null,null,null,null,null,null,0,810]
[null,null,null,null,null,null,0,811]
[null,null,null,null,null,null,0,812]
[null,null,null,null,null,null,0,813]
[null,null,null,null,null,null,0,814]
[null,null,null,null,null,null,0,815]
[null,null,null,null,null,null,0,816]
[null,null,null,null,null,null,0,817]
[null,null,null,null,null,null,0,818]
[null,null,null,null,null,null,0,819]
[null,null,null,null,null,null,0,820]
[null,null,null,null,null,null,0,821]
[null,null,null,null,null,null,0,822]
[null,null,null,null,null,null,0,823]
[null,null,null,null,null,null,0,824]
[null,null,null,null,null,null,0,825]
[null,null,null,null,null,null,0,826]
[null,null,null,null,null,null,0,827]
[null,null,null,null,null,null,0,828]
[null,null,null,null,null,null,0,829]
[null,null,null,null,null,null,0,830]
[null,null,null,null,null,null,0,831]
[null,null,null,null,null,null,0,832]
[null,null,null,null,null,null,{"$f":"IF((OR(COUNTIF(A:A,H2842)>0,(AND($B$3>0,$C$3>0,H2842>=$B$3,H2842<=$C$3))))=TRUE,H2842,0)","v":0},833]
[null,null,null,null,null,null,0,834]
[null,null,null,null,null,null,0,835]
[null,null,null,null,null,null,0,836]
[null,null,null,null,null,null,0,837]
[null,null,null,null,null,null,0,838]
[null,null,null,null,null,null,0,839]
[null,null,null,null,null,null,0,840]
[null,null,null,null,null,null,0,841]
[null,null,null,null,null,null,0,842]
[null,null,null,null,null,null,0,843]
[null,null,null,null,null,null,0,844]
[null,null,null,null,null,null,0,845]
[null,null,null,null,null,null,0,846]
[null,null,null,null,null,null,0,847]
[null,null,null,null,null,null,0,848]
[null,null,null,null,null,null,0,849]
[null,null,null,null,null,null,0,850]
[null,null,null,null,null,null,0,851]
[null,null,null,null,null,null,0,852]
[null,null,null,null,null,null,0,853]
[null,null,null,null,null,null,0,854]
[null,null,null,null,null,null,0,855]
[null,null,null,null,null,null,0,856]
[null,null,null,null,null,null,0,857]
[null,null,null,null,null,null,0,858]
[null,null,null,null,null,null,0,859]
[null,null,null,null,null,null,0,860]
[null,null,null,null,null,null,0,861]
[null,null,null,null,null,null,0,862]
[null,null,null,null,null,null,0,863]
[null,null,null,null,null,null,0,864]
[null,null,null,null,null,null,0,865]
[null,null,null,null,null,null,0,866]
[null,null,null,null,null,null,0,867]
[null,null,null,null,null,null,0,868]
[null,null,null,null,null,null,0,869]
[null,null,null,null,null,null,0,870]
[null,null,null,null,null,null,0,871]
[null,null,null,null,null,null,0,872]
[null,null,null,null,null,null,0,873]
[null,null,null,null,null,null,0,874]
[null,null,null,null,null,null,0,875]
[null,null,null,null,null,null,0,876]
[null,null,null,null,null,null,0,877]
[null,null,null,null,null,null,0,878]
[null,null,null,null,null,null,0,879]
[null,null,null,null,null,null,0,880]
[null,null,null,null,null,null,0,881]
[null,null,null,null,null,null,0,882]
[null,null,null,null,null,null,0,883]
[null,null,null,null,null,null,0,884]
[null,null,null,null,null,null,0,885]
[null,null,null,null,null,null,0,886]
[null,null,null,null,null,null,0,887]
[null,null,null,null,null,null,0,888]
[null,null,null,null,null,null,0,889]
[null,null,null,null,null,null,0,890]
[null,null,null,null,null,null,0,891]
[null,null,null,null,null,null,0,892]
[null,null,null,null,null,null,0,893]
[null,null,null,null,null,null,0,894]
[null,null,null,null,null,null,0,895]
[null,null,null,null,null,null,0,896]
[null,null,null,null,null,null,{"$f":"IF((OR(COUNTIF(A:A,H2906)>0,(AND($B$3>0,$C$3>0,H2906>=$B$3,H2906<=$C$3))))=TRUE,H2906,0)","v":0},897]
[null,null,null,null,null,null,0,898]
[null,null,null,null,null,null,0,899]
[null,null,null,null,null,null,0,900]
[null,null,null,null,null,null,0,901]
[null,null,null,null,null,null,0,902]
[null,null,null,null,null,null,0,903]
[null,null,null,null,null,null,0,904]
[null,null,null,null,null,null,0,905]
[null,null,null,null,null,null,0,906]
[null,null,null,null,null,null,0,907]
[null,null,null,null,null,null,0,908]
[null,null,null,null,null,null,0,909]
[null,null,null,null,null,null,0,910]
[null,null,null,null,null,null,0,911]
[null,null,null,null,null,null,0,912]
[null,null,null,null,null,null,0,913]
[null,null,null,null,null,null,0,914]
[null,null,null,null,null,null,0,915]
[null,null,null,null,null,null,0,916]
[null,null,null,null,null,null,0,917]
[null,null,null,null,null,null,0,918]
[null,null,null,null,null,null,0,919]
[null,null,null,null,null,null,0,920]
[null,null,null,null,null,null,0,921]
[null,null,null,null,null,null,0,922]
[null,null,null,null,null,null,0,923]
[null,null,null,null,null,null,0,924]
[null,null,null,null,null,null,0,925]
[null,null,null,null,null,null,0,926]
[null,null,null,null,null,null,0,927]
[null,null,null,null,null,null,0,928]
[null,null,null,null,null,null,0,929]
[null,null,null,null,null,null,0,930]
[null,null,null,null,null,null,0,931]
[null,null,null,null,null,null,0,932]
[null,null,null,null,null,null,0,933]
[null,null,null,null,null,null,0,934]
[null,null,null,null,null,null,0,935]
[null,null,null,null,null,null,0,936]
[null,null,null,null,null,null,0,937]
[null,null,null,null,null,null,0,938]
[null,null,null,null,null,null,0,939]
[null,null,null,null,null,null,0,940]
[null,null,null,null,null,null,0,941]
[null,null,null,null,null,null,0,942]
[null,null,null,null,null,null,0,943]
[null,null,null,null,null,null,0,944]
[null,null,null,null,null,null,0,945]
[null,null,null,null,null,null,0,946]
[null,null,null,null,null,null,0,947]
[null,null,null,null,null,null,0,948]
[null,null,null,null,null,null,0,949]
[null,null,null,null,null,null,0,950]
[null,null,null,null,null,null,0,951]
[null,null,null,null,null,null,0,952]
[null,null,null,null,null,null,0,953]
[null,null,null,null,null,null,0,954]
[null,null,null,null,null,null,0,955]
[null,null,null,null,null,null,0,956]
[null,null,null,null,null,null,0,957]
[null,null,null,null,null,null,0,958]
[null,null,null,null,null,null,0,959]
[null,null,null,null,null,null,0,960]
[null,null,null,null,null,null,{"$f":"IF((OR(COUNTIF(A:A,H2970)>0,(AND($B$3>0,$C$3>0,H2970>=$B$3,H2970<=$C$3))))=TRUE,H2970,0)","v":0},961]
[null,null,null,null,null,null,0,962]
[null,null,null,null,null,null,0,963]
[null,null,null,null,null,null,0,964]
[null,null,null,null,null,null,0,965]
[null,null,null,null,null,null,0,966]
[null,null,null,null,null,null,0,967]
[null,null,null,null,null,null,0,968]
[null,null,null,null,null,null,0,969]
[null,null,null,null,null,null,0,970]
[null,null,null,null,null,null,0,971]
[null,null,null,null,null,null,0,972]
[null,null,null,null,null,null,0,973]
[null,null,null,null,null,null,0,974]
[null,null,null,null,null,null,0,975]
[null,null,null,null,null,null,0,976]
[null,null,null,null,null,null,0,977]
[null,null,null,null,null,null,0,978]
[null,null,null,null,null,null,0,979]
[null,null,null,null,null,null,0,980]
[null,null,null,null,null,null,0,981]
[null,null,null,null,null,null,0,982]
[null,null,null,null,null,null,0,983]
[null,null,null,null,null,null,0,984]
[null,null,null,null,null,null,0,985]
[null,null,null,null,null,null,0,986]
[null,null,null,null,null,null,0,987]
[null,null,null,null,null,null,0,988]
[null,null,null,null,null,null,0,989]
[null,null,null,null,null,null,0,990]
[null,null,null,null,null,null,0,991]
[null,null,null,null,null,null,0,992]
[null,null,null,null,null,null,0,993]
[null,null,null,null,null,null,0,994]
[null,null,null,null,null,null,0,995]
[null,null,null,null,null,null,0,996]
[null,null,null,null,null,null,0,997]
[null,null,null,null,null,null,0,998]
[null,null,null,null,null,null,0,999]
[null,null,null,null,null,null,0,1000]
[null,null,null,null,null,null,0,1001]
[null,null,null,null,null,null,0,1002]
[null,null,null,null,null,null,0,1003]
[null,null,null,null,null,null,0,1004]
[null,null,null,null,null,null,0,1005]
[null,null,null,null,null,null,0,1006]
[null,null,null,null,null,null,0,1007]
[null,null,null,null,null,null,0,1008]
[null,null,null,null,null,null,0,1009]
[null,null,null,null,null,null,0,1010]
[null,null,null,null,null,null,0,1011]
[null,null,null,null,null,null,0,1012]
[null,null,null,null,null,null,0,1013]
[null,null,null,null,null,null,0,1014]
[null,null,null,null,null,null,0,1015]
[null,null,null,null,null,null,0,1016]
[null,null,null,null,null,null,0,1017]
[null,null,null,null,null,null,0,1018]
[null,null,null,null,null,null,0,1019]
[null,null,null,null,null,null,0,1020]
[null,null,null,null,null,null,0,1021]
[null,null,null,null,null,null,0,1022]
[null,null,null,null,null,null,0,1023]
[null,null,null,null,null,null,0,1024]
[null,null,null,null,null,null,{"$f":"IF((OR(COUNTIF(A:A,H3034)>0,(AND($B$3>0,$C$3>0,H3034>=$B$3,H3034<=$C$3))))=TRUE,H3034,0)","v":0},1025]
[null,null,null,null,null,null,0,1026]
[null,null,null,null,null,null,0,1027]
[null,null,null,null,null,null,0,1028]
[null,null,null,null,null,null,0,1029]
[null,null,null,null,null,null,0,1030]
[null,null,null,null,null,null,0,1031]
[null,null,null,null,null,null,0,1032]
[null,null,null,null,null,null,0,1033]
[null,null,null,null,null,null,0,1034]
[null,null,null,null,null,null,0,1035]
[null,null,null,null,null,null,0,1036]
[null,null,null,null,null,null,0,1037]
[null,null,null,null,null,null,0,1038]
[null,null,null,null,null,null,0,1039]
[null,null,null,null,null,null,0,1040]
[null,null,null,null,null,null,0,1041]
[null,null,null,null,null,null,0,1042]
[null,null,null,null,null,null,0,1043]
[null,null,null,null,null,null,0,1044]
[null,null,null,null,null,null,0,1045]
[null,null,null,null,null,null,0,1046]
[null,null,null,null,null,null,0,1047]
[null,null,null,null,null,null,0,1048]
[null,null,null,null,null,null,0,1049]
[null,null,null,null,null,null,0,1050]
[null,null,null,null,null,null,0,1051]
[null,null,null,null,null,null,0,1052]
[null,null,null,null,null,null,0,1053]
[null,null,null,null,null,null,0,1054]
[null,null,null,null,null,null,0,1055]
[null,null,null,null,null,null,0,1056]
[null,null,null,null,null,null,0,1057]
[null,null,null,null,null,null,0,1058]
[null,null,null,null,null,null,0,1059]
[null,null,null,null,null,null,0,1060]
[null,null,null,null,null,null,0,1061]
[null,null,null,null,null,null,0,1062]
[null,null,null,null,null,null,0,1063]
[null,null,null,null,null,null,0,1064]
[null,null,null,null,null,null,0,1065]
[null,null,null,null,null,null,0,1066]
[null,null,null,null,null,null,0,1067]
[null,null,null,null,null,null,0,1068]
[null,null,null,null,null,null,0,1069]
[null,null,null,null,null,null,0,1070]
[null,null,null,null,null,null,0,1071]
[null,null,null,null,null,null,0,1072]
[null,null,null,null,null,null,0,1073]
[null,null,null,null,null,null,0,1074]
[null,null,null,null,null,null,0,1075]
[null,null,null,null,null,null,0,1076]
[null,null,null,null,null,null,0,1077]
[null,null,null,null,null,null,0,1078]
[null,null,null,null,null,null,0,1079]
[null,null,null,null,null,null,0,1080]
[null,null,null,null,null,null,0,1081]
[null,null,null,null,null,null,0,1082]
[null,null,null,null,null,null,0,1083]
[null,null,null,null,null,null,0,1084]
[null,null,null,null,null,null,0,1085]
[null,null,null,null,null,null,0,1086]
[null,null,null,null,null,null,0,1087]
[null,null,null,null,null,null,0,1088]
[null,null,null,null,null,null,{"$f":"IF((OR(COUNTIF(A:A,H3098)>0,(AND($B$3>0,$C$3>0,H3098>=$B$3,H3098<=$C$3))))=TRUE,H3098,0)","v":0},1089]
[null,null,null,null,null,null,0,1090]
[null,null,null,null,null,null,0,1091]
[null,null,null,null,null,null,0,1092]
[null,null,null,null,null,null,0,1093]
[null,null,null,null,null,null,0,1094]
[null,null,null,null,null,null,0,1095]
[null,null,null,null,null,null,0,1096]
[null,null,null,null,null,null,0,1097]
[null,null,null,null,null,null,0,1098]
[null,null,null,null,null,null,0,1099]
[null,null,null,null,null,null,0,1100]
[null,null,null,null,null,null,0,1101]
[null,null,null,null,null,null,0,1102]
[null,null,null,null,null,null,0,1103]
[null,null,null,null,null,null,0,1104]
[null,null,null,null,null,null,0,1105]
[null,null,null,null,null,null,0,1106]
[null,null,null,null,null,null,0,1107]
[null,null,null,null,null,null,0,1108]
[null,null,null,null,null,null,0,1109]
[null,null,null,null,null,null,0,1110]
[null,null,null,null,null,null,0,1111]
[null,null,null,null,null,null,0,1112]
[null,null,null,null,null,null,0,1113]
[null,null,null,null,null,null,0,1114]
[null,null,null,null,null,null,0,1115]
[null,null,null,null,null,null,0,1116]
[null,null,null,null,null,null,0,1117]
[null,null,null,null,null,null,0,1118]
[null,null,null,null,null,null,0,1119]
[null,null,null,null,null,null,0,1120]
[null,null,null,null,null,null,0,1121]
[null,null,null,null,null,null,0,1122]
[null,null,null,null,null,null,0,1123]
[null,null,null,null,null,null,0,1124]
[null,null,null,null,null,null,0,1125]
[null,null,null,null,null,null,0,1126]
[null,null,null,null,null,null,0,1127]
[null,null,null,null,null,null,0,1128]
[null,null,null,null,null,null,0,1129]
[null,null,null,null,null,null,0,1130]
[null,null,null,null,null,null,0,1131]
[null,null,null,null,null,null,0,1132]
[null,null,null,null,null,null,0,1133]
[null,null,null,null,null,null,0,1134]
[null,null,null,null,null,null,0,1135]
[null,null,null,null,null,null,0,1136]
[null,null,null,null,null,null,0,1137]
[null,null,null,null,null,null,0,1138]
[null,null,null,null,null,null,0,1139]
[null,null,null,null,null,null,0,1140]
[null,null,null,null,null,null,0,1141]
[null,null,null,null,null,null,0,1142]
[null,null,null,null,null,null,0,1143]
[null,null,null,null,null,null,0,1144]
[null,null,null,null,null,null,0,1145]
[null,null,null,null,null,null,0,1146]
[null,null,null,null,null,null,0,1147]
[null,null,null,null,null,null,0,1148]
[null,null,null,null,null,null,0,1149]
[null,null,null,null,null,null,0,1150]
[null,null,null,null,null,null,0,1151]
[null,null,null,null,null,null,0,1152]
[null,null,null,null,null,null,{"$f":"IF((OR(COUNTIF(A:A,H3162)>0,(AND($B$3>0,$C$3>0,H3162>=$B$3,H3162<=$C$3))))=TRUE,H3162,0)","v":0},1153]
[null,null,null,null,null,null,0,1154]
[null,null,null,null,null,null,0,1155]
[null,null,null,null,null,null,0,1156]
[null,null,null,null,null,null,0,1157]
[null,null,null,null,null,null,0,1158]
[null,null,null,null,null,null,0,1159]
[null,null,null,null,null,null,0,1160]
[null,null,null,null,null,null,0,1161]
[null,null,null,null,null,null,0,1162]
[null,null,null,null,null,null,0,1163]
[null,null,null,null,null,null,0,1164]
[null,null,null,null,null,null,0,1165]
[null,null,null,null,null,null,0,1166]
[null,null,null,null,null,null,0,1167]
[null,null,null,null,null,null,0,1168]
[null,null,null,null,null,null,0,1169]
[null,null,null,null,null,null,0,1170]
[null,null,null,null,null,null,0,1171]
[null,null,null,null,null,null,0,1172]
[null,null,null,null,null,null,0,1173]
[null,null,null,null,null,null,0,1174]
[null,null,null,null,null,null,0,1175]
[null,null,null,null,null,null,0,1176]
[null,null,null,null,null,null,0,1177]
[null,null,null,null,null,null,0,1178]
[null,null,null,null,null,null,0,1179]
[null,null,null,null,null,null,0,1180]
[null,null,null,null,null,null,0,1181]
[null,null,null,null,null,null,0,1182]
[null,null,null,null,null,null,0,1183]
[null,null,null,null,null,null,0,1184]
[null,null,null,null,null,null,0,1185]
[null,null,null,null,null,null,0,1186]
[null,null,null,null,null,null,0,1187]
[null,null,null,null,null,null,0,1188]
[null,null,null,null,null,null,0,1189]
[null,null,null,null,null,null,0,1190]
[null,null,null,null,null,null,0,1191]
[null,null,null,null,null,null,0,1192]
[null,null,null,null,null,null,0,1193]
[null,null,null,null,null,null,0,1194]
[null,null,null,null,null,null,0,1195]
[null,null,null,null,null,null,0,1196]
[null,null,null,null,null,null,0,1197]
[null,null,null,null,null,null,0,1198]
[null,null,null,null,null,null,0,1199]
[null,null,null,null,null,null,0,1200]
[null,null,null,null,null,null,0,1201]
[null,null,null,null,null,null,0,1202]
[null,null,null,null,null,null,0,1203]
[null,null,null,null,null,null,0,1204]
[null,null,null,null,null,null,0,1205]
[null,null,null,null,null,null,0,1206]
[null,null,null,null,null,null,0,1207]
[null,null,null,null,null,null,0,1208]
[null,null,null,null,null,null,0,1209]
[null,null,null,null,null,null,0,1210]
[null,null,null,null,null,null,0,1211]
[null,null,null,null,null,null,0,1212]
[null,null,null,null,null,null,0,1213]
[null,null,null,null,null,null,0,1214]
[null,null,null,null,null,null,0,1215]
[null,null,null,null,null,null,0,1216]
[null,null,null,null,null,null,{"$f":"IF((OR(COUNTIF(A:A,H3226)>0,(AND($B$3>0,$C$3>0,H3226>=$B$3,H3226<=$C$3))))=TRUE,H3226,0)","v":0},1217]
[null,null,null,null,null,null,0,1218]
[null,null,null,null,null,null,0,1219]
[null,null,null,null,null,null,0,1220]
[null,null,null,null,null,null,0,1221]
[null,null,null,null,null,null,0,1222]
[null,null,null,null,null,null,0,1223]
[null,null,null,null,null,null,0,1224]
[null,null,null,null,null,null,0,1225]
[null,null,null,null,null,null,0,1226]
[null,null,null,null,null,null,0,1227]
[null,null,null,null,null,null,0,1228]
[null,null,null,null,null,null,0,1229]
[null,null,null,null,null,null,0,1230]
[null,null,null,null,null,null,0,1231]
[null,null,null,null,null,null,0,1232]
[null,null,null,null,null,null,0,1233]
[null,null,null,null,null,null,0,1234]
[null,null,null,null,null,null,0,1235]
[null,null,null,null,null,null,0,1236]
[null,null,null,null,null,null,0,1237]
[null,null,null,null,null,null,0,1238]
[null,null,null,null,null,null,0,1239]
[null,null,null,null,null,null,0,1240]
[null,null,null,null,null,null,0,1241]
[null,null,null,null,null,null,0,1242]
[null,null,null,null,null,null,0,1243]
[null,null,null,null,null,null,0,1244]
[null,null,null,null,null,null,0,1245]
[null,null,null,null,null,null,0,1246]
[null,null,null,null,null,null,0,1247]
[null,null,null,null,null,null,0,1248]
[null,null,null,null,null,null,0,1249]
[null,null,null,null,null,null,0,1250]
[null,null,null,null,null,null,0,1251]
[null,null,null,null,null,null,0,1252]
[null,null,null,null,null,null,0,1253]
[null,null,null,null,null,null,0,1254]
[null,null,null,null,null,null,0,1255]
[null,null,null,null,null,null,0,1256]
[null,null,null,null,null,null,0,1257]
[null,null,null,null,null,null,0,1258]
[null,null,null,null,null,null,0,1259]
[null,null,null,null,null,null,0,1260]
[null,null,null,null,null,null,0,1261]
[null,null,null,null,null,null,0,1262]
[null,null,null,null,null,null,0,1263]
[null,null,null,null,null,null,0,1264]
[null,null,null,null,null,null,0,1265]
[null,null,null,null,null,null,0,1266]
[null,null,null,null,null,null,0,1267]
[null,null,null,null,null,null,0,1268]
[null,null,null,null,null,null,0,1269]
[null,null,null,null,null,null,0,1270]
[null,null,null,null,null,null,0,1271]
[null,null,null,null,null,null,0,1272]
[null,null,null,null,null,null,0,1273]
[null,null,null,null,null,null,0,1274]
[null,null,null,null,null,null,0,1275]
[null,null,null,null,null,null,0,1276]
[null,null,null,null,null,null,0,1277]
[null,null,null,null,null,null,0,1278]
[null,null,null,null,null,null,0,1279]
[null,null,null,null,null,null,0,1280]
[null,null,null,null,null,null,{"$f":"IF((OR(COUNTIF(A:A,H3290)>0,(AND($B$3>0,$C$3>0,H3290>=$B$3,H3290<=$C$3))))=TRUE,H3290,0)","v":0},1281]
[null,null,null,null,null,null,0,1282]
[null,null,null,null,null,null,0,1283]
[null,null,null,null,null,null,0,1284]
[null,null,null,null,null,null,0,1285]
[null,null,null,null,null,null,0,1286]
[null,null,null,null,null,null,0,1287]
[null,null,null,null,null,null,0,1288]
[null,null,null,null,null,null,0,1289]
[null,null,null,null,null,null,0,1290]
[null,null,null,null,null,null,0,1291]
[null,null,null,null,null,null,0,1292]
[null,null,null,null,null,null,0,1293]
[null,null,null,null,null,null,0,1294]
[null,null,null,null,null,null,0,1295]
[null,null,null,null,null,null,0,1296]
[null,null,null,null,null,null,0,1297]
[null,null,null,null,null,null,0,1298]
[null,null,null,null,null,null,0,1299]
[null,null,null,null,null,null,0,1300]
[null,null,null,null,null,null,0,1301]
[null,null,null,null,null,null,0,1302]
[null,null,null,null,null,null,0,1303]
[null,null,null,null,null,null,0,1304]
[null,null,null,null,null,null,0,1305]
[null,null,null,null,null,null,0,1306]
[null,null,null,null,null,null,0,1307]
[null,null,null,null,null,null,0,1308]
[null,null,null,null,null,null,0,1309]
[null,null,null,null,null,null,0,1310]
[null,null,null,null,null,null,0,1311]
[null,null,null,null,null,null,0,1312]
[null,null,null,null,null,null,0,1313]
[null,null,null,null,null,null,0,1314]
[null,null,null,null,null,null,0,1315]
[null,null,null,null,null,null,0,1316]
[null,null,null,null,null,null,0,1317]
[null,null,null,null,null,null,0,1318]
[null,null,null,null,null,null,0,1319]
[null,null,null,null,null,null,0,1320]
[null,null,null,null,null,null,0,1321]
[null,null,null,null,null,null,0,1322]
[null,null,null,null,null,null,0,1323]
[null,null,null,null,null,null,0,1324]
[null,null,null,null,null,null,0,1325]
[null,null,null,null,null,null,0,1326]
[null,null,null,null,null,null,0,1327]
[null,null,null,null,null,null,0,1328]
[null,null,null,null,null,null,0,1329]
[null,null,null,null,null,null,0,1330]
[null,null,null,null,null,null,0,1331]
[null,null,null,null,null,null,0,1332]
[null,null,null,null,null,null,0,1333]
[null,null,null,null,null,null,0,1334]
[null,null,null,null,null,null,0,1335]
[null,null,null,null,null,null,0,1336]
[null,null,null,null,null,null,0,1337]
[null,null,null,null,null,null,0,1338]
[null,null,null,null,null,null,0,1339]
[null,null,null,null,null,null,0,1340]
[null,null,null,null,null,null,0,1341]
[null,null,null,null,null,null,0,1342]
[null,null,null,null,null,null,0,1343]
[null,null,null,null,null,null,0,1344]
[null,null,null,null,null,null,{"$f":"IF((OR(COUNTIF(A:A,H3354)>0,(AND($B$3>0,$C$3>0,H3354>=$B$3,H3354<=$C$3))))=TRUE,H3354,0)","v":0},1345]
[null,null,null,null,null,null,0,1346]
[null,null,null,null,null,null,0,1347]
[null,null,null,null,null,null,0,1348]
[null,null,null,null,null,null,0,1349]
[null,null,null,null,null,null,0,1350]
[null,null,null,null,null,null,0,1351]
[null,null,null,null,null,null,0,1352]
[null,null,null,null,null,null,0,1353]
[null,null,null,null,null,null,0,1354]
[null,null,null,null,null,null,0,1355]
[null,null,null,null,null,null,0,1356]
[null,null,null,null,null,null,0,1357]
[null,null,null,null,null,null,0,1358]
[null,null,null,null,null,null,0,1359]
[null,null,null,null,null,null,0,1360]
[null,null,null,null,null,null,0,1361]
[null,null,null,null,null,null,0,1362]
[null,null,null,null,null,null,0,1363]
[null,null,null,null,null,null,0,1364]
[null,null,null,null,null,null,0,1365]
[null,null,null,null,null,null,0,1366]
[null,null,null,null,null,null,0,1367]
[null,null,null,null,null,null,0,1368]
[null,null,null,null,null,null,0,1369]
[null,null,null,null,null,null,0,1370]
[null,null,null,null,null,null,0,1371]
[null,null,null,null,null,null,0,1372]
[null,null,null,null,null,null,0,1373]
[null,null,null,null,null,null,0,1374]
[null,null,null,null,null,null,0,1375]
[null,null,null,null,null,null,0,1376]
[null,null,null,null,null,null,0,1377]
[null,null,null,null,null,null,0,1378]
[null,null,null,null,null,null,0,1379]
[null,null,null,null,null,null,0,1380]
[null,null,null,null,null,null,0,1381]
[null,null,null,null,null,null,0,1382]
[null,null,null,null,null,null,0,1383]
[null,null,null,null,null,null,0,1384]
[null,null,null,null,null,null,0,1385]
[null,null,null,null,null,null,0,1386]
[null,null,null,null,null,null,0,1387]
[null,null,null,null,null,null,0,1388]
[null,null,null,null,null,null,0,1389]
[null,null,null,null,null,null,0,1390]
[null,null,null,null,null,null,0,1391]
[null,null,null,null,null,null,0,1392]
[null,null,null,null,null,null,0,1393]
[null,null,null,null,null,null,0,1394]
[null,null,null,null,null,null,0,1395]
[null,null,null,null,null,null,0,1396]
[null,null,null,null,null,null,0,1397]
[null,null,null,null,null,null,0,1398]
[null,null,null,null,null,null,0,1399]
[null,null,null,null,null,null,0,1400]
[null,null,null,null,null,null,0,1401]
[null,null,null,null,null,null,0,1402]
[null,null,null,null,null,null,0,1403]
[null,null,null,null,null,null,0,1404]
[null,null,null,null,null,null,0,1405]
[null,null,null,null,null,null,0,1406]
[null,null,null,null,null,null,0,1407]
[null,null,null,null,null,null,0,1408]
[null,null,null,null,null,null,{"$f":"IF((OR(COUNTIF(A:A,H3418)>0,(AND($B$3>0,$C$3>0,H3418>=$B$3,H3418<=$C$3))))=TRUE,H3418,0)","v":0},1409]
[null,null,null,null,null,null,0,1410]
[null,null,null,null,null,null,0,1411]
[null,null,null,null,null,null,0,1412]
[null,null,null,null,null,null,0,1413]
[null,null,null,null,null,null,0,1414]
[null,null,null,null,null,null,0,1415]
[null,null,null,null,null,null,0,1416]
[null,null,null,null,null,null,0,1417]
[null,null,null,null,null,null,0,1418]
[null,null,null,null,null,null,0,1419]
[null,null,null,null,null,null,0,1420]
[null,null,null,null,null,null,0,1421]
[null,null,null,null,null,null,0,1422]
[null,null,null,null,null,null,0,1423]
[null,null,null,null,null,null,0,1424]
[null,null,null,null,null,null,0,1425]
[null,null,null,null,null,null,0,1426]
[null,null,null,null,null,null,0,1427]
[null,null,null,null,null,null,0,1428]
[null,null,null,null,null,null,0,1429]
[null,null,null,null,null,null,0,1430]
[null,null,null,null,null,null,0,1431]
[null,null,null,null,null,null,0,1432]
[null,null,null,null,null,null,0,1433]
[null,null,null,null,null,null,0,1434]
[null,null,null,null,null,null,0,1435]
[null,null,null,null,null,null,0,1436]
[null,null,null,null,null,null,0,1437]
[null,null,null,null,null,null,0,1438]
[null,null,null,null,null,null,0,1439]
[null,null,null,null,null,null,0,1440]
[null,null,null,null,null,null,0,1441]
[null,null,null,null,null,null,0,1442]
[null,null,null,null,null,null,0,1443]
[null,null,null,null,null,null,0,1444]
[null,null,null,null,null,null,0,1445]
[null,null,null,null,null,null,0,1446]
[null,null,null,null,null,null,0,1447]
[null,null,null,null,null,null,0,1448]
[null,null,null,null,null,null,0,1449]
[null,null,null,null,null,null,0,1450]
[null,null,null,null,null,null,0,1451]
[null,null,null,null,null,null,0,1452]
[null,null,null,null,null,null,0,1453]
[null,null,null,null,null,null,0,1454]
[null,null,null,null,null,null,0,1455]
[null,null,null,null,null,null,0,1456]
[null,null,null,null,null,null,0,1457]
[null,null,null,null,null,null,0,1458]
[null,null,null,null,null,null,0,1459]
[null,null,null,null,null,null,0,1460]
[null,null,null,null,null,null,0,1461]
[null,null,null,null,null,null,0,1462]
[null,null,null,null,null,null,0,1463]
[null,null,null,null,null,null,0,1464]
[null,null,null,null,null,null,0,1465]
[null,null,null,null,null,null,0,1466]
[null,null,null,null,null,null,0,1467]
[null,null,null,null,null,null,0,1468]
[null,null,null,null,null,null,0,1469]
[null,null,null,null,null,null,0,1470]
[null,null,null,null,null,null,0,1471]
[null,null,null,null,null,null,0,1472]
[null,null,null,null,null,null,{"$f":"IF((OR(COUNTIF(A:A,H3482)>0,(AND($B$3>0,$C$3>0,H3482>=$B$3,H3482<=$C$3))))=TRUE,H3482,0)","v":0},1473]
[null,null,null,null,null,null,0,1474]
[null,null,null,null,null,null,0,1475]
[null,null,null,null,null,null,0,1476]
[null,null,null,null,null,null,0,1477]
[null,null,null,null,null,null,0,1478]
[null,null,null,null,null,null,0,1479]
[null,null,null,null,null,null,0,1480]
[null,null,null,null,null,null,0,1481]
[null,null,null,null,null,null,0,1482]
[null,null,null,null,null,null,0,1483]
[null,null,null,null,null,null,0,1484]
[null,null,null,null,null,null,0,1485]
[null,null,null,null,null,null,0,1486]
[null,null,null,null,null,null,0,1487]
[null,null,null,null,null,null,0,1488]
[null,null,null,null,null,null,0,1489]
[null,null,null,null,null,null,0,1490]
[null,null,null,null,null,null,0,1491]
[null,null,null,null,null,null,0,1492]
[null,null,null,null,null,null,0,1493]
[null,null,null,null,null,null,0,1494]
[null,null,null,null,null,null,0,1495]
[null,null,null,null,null,null,0,1496]
[null,null,null,null,null,null,0,1497]
[null,null,null,null,null,null,0,1498]
[null,null,null,null,null,null,0,1499]
[null,null,null,null,null,null,0,1500]
[null,null,null,null,null,null,0,1501]
[null,null,null,null,null,null,0,1502]
[null,null,null,null,null,null,0,1503]
[null,null,null,null,null,null,0,1504]
[null,null,null,null,null,null,0,1505]
[null,null,null,null,null,null,0,1506]
[null,null,null,null,null,null,0,1507]
[null,null,null,null,null,null,0,1508]
[null,null,null,null,null,null,0,1509]
[null,null,null,null,null,null,0,1510]
[null,null,null,null,null,null,0,1511]
[null,null,null,null,null,null,0,1512]
[null,null,null,null,null,null,0,1513]
[null,null,null,null,null,null,0,1514]
[null,null,null,null,null,null,0,1515]
[null,null,null,null,null,null,0,1516]
[null,null,null,null,null,null,0,1517]
[null,null,null,null,null,null,0,1518]
[null,null,null,null,null,null,0,1519]
[null,null,null,null,null,null,0,1520]
[null,null,null,null,null,null,0,1521]
[null,null,null,null,null,null,0,1522]
[null,null,null,null,null,null,0,1523]
[null,null,null,null,null,null,0,1524]
[null,null,null,null,null,null,0,1525]
[null,null,null,null,null,null,0,1526]
[null,null,null,null,null,null,0,1527]
[null,null,null,null,null,null,0,1528]
[null,null,null,null,null,null,0,1529]
[null,null,null,null,null,null,0,1530]
[null,null,null,null,null,null,0,1531]
[null,null,null,null,null,null,0,1532]
[null,null,null,null,null,null,0,1533]
[null,null,null,null,null,null,0,1534]
[null,null,null,null,null,null,0,1535]
[null,null,null,null,null,null,0,1536]
[null,null,null,null,null,null,{"$f":"IF((OR(COUNTIF(A:A,H3546)>0,(AND($B$3>0,$C$3>0,H3546>=$B$3,H3546<=$C$3))))=TRUE,H3546,0)","v":0},1537]
[null,null,null,null,null,null,0,1538]
[null,null,null,null,null,null,0,1539]
[null,null,null,null,null,null,0,1540]
[null,null,null,null,null,null,0,1541]
[null,null,null,null,null,null,0,1542]
[null,null,null,null,null,null,0,1543]
[null,null,null,null,null,null,0,1544]
[null,null,null,null,null,null,0,1545]
[null,null,null,null,null,null,0,1546]
[null,null,null,null,null,null,0,1547]
[null,null,null,null,null,null,0,1548]
[null,null,null,null,null,null,0,1549]
[null,null,null,null,null,null,0,1550]
[null,null,null,null,null,null,0,1551]
[null,null,null,null,null,null,0,1552]
[null,null,null,null,null,null,0,1553]
[null,null,null,null,null,null,0,1554]
[null,null,null,null,null,null,0,1555]
[null,null,null,null,null,null,0,1556]
[null,null,null,null,null,null,0,1557]
[null,null,null,null,null,null,0,1558]
[null,null,null,null,null,null,0,1559]
[null,null,null,null,null,null,0,1560]
[null,null,null,null,null,null,0,1561]
[null,null,null,null,null,null,0,1562]
[null,null,null,null,null,null,0,1563]
[null,null,null,null,null,null,0,1564]
[null,null,null,null,null,null,0,1565]
[null,null,null,null,null,null,0,1566]
[null,null,null,null,null,null,0,1567]
[null,null,null,null,null,null,0,1568]
[null,null,null,null,null,null,0,1569]
[null,null,null,null,null,null,0,1570]
[null,null,null,null,null,null,0,1571]
[null,null,null,null,null,null,0,1572]
[null,null,null,null,null,null,0,1573]
[null,null,null,null,null,null,0,1574]
[null,null,null,null,null,null,0,1575]
[null,null,null,null,null,null,0,1576]
[null,null,null,null,null,null,0,1577]
[null,null,null,null,null,null,0,1578]
[null,null,null,null,null,null,0,1579]
[null,null,null,null,null,null,0,1580]
[null,null,null,null,null,null,0,1581]
[null,null,null,null,null,null,0,1582]
[null,null,null,null,null,null,0,1583]
[null,null,null,null,null,null,0,1584]
[null,null,null,null,null,null,0,1585]
[null,null,null,null,null,null,0,1586]
[null,null,null,null,null,null,0,1587]
[null,null,null,null,null,null,0,1588]
[null,null,null,null,null,null,0,1589]
[null,null,null,null,null,null,0,1590]
[null,null,null,null,null,null,0,1591]
[null,null,null,null,null,null,0,1592]
[null,null,null,null,null,null,0,1593]
[null,null,null,null,null,null,0,1594]
[null,null,null,null,null,null,0,1595]
[null,null,null,null,null,null,0,1596]
[null,null,null,null,null,null,0,1597]
[null,null,null,null,null,null,0,1598]
[null,null,null,null,null,null,0,1599]
[null,null,null,null,null,null,0,1600]
[null,null,null,null,null,null,{"$f":"IF((OR(COUNTIF(A:A,H3610)>0,(AND($B$3>0,$C$3>0,H3610>=$B$3,H3610<=$C$3))))=TRUE,H3610,0)","v":0},1601]
[null,null,null,null,null,null,0,1602]
[null,null,null,null,null,null,0,1603]
[null,null,null,null,null,null,0,1604]
[null,null,null,null,null,null,0,1605]
[null,null,null,null,null,null,0,1606]
[null,null,null,null,null,null,0,1607]
[null,null,null,null,null,null,0,1608]
[null,null,null,null,null,null,0,1609]
[null,null,null,null,null,null,0,1610]
[null,null,null,null,null,null,0,1611]
[null,null,null,null,null,null,0,1612]
[null,null,null,null,null,null,0,1613]
[null,null,null,null,null,null,0,1614]
[null,null,null,null,null,null,0,1615]
[null,null,null,null,null,null,0,1616]
[null,null,null,null,null,null,0,1617]
[null,null,null,null,null,null,0,1618]
[null,null,null,null,null,null,0,1619]
[null,null,null,null,null,null,0,1620]
[null,null,null,null,null,null,0,1621]
[null,null,null,null,null,null,0,1622]
[null,null,null,null,null,null,0,1623]
[null,null,null,null,null,null,0,1624]
[null,null,null,null,null,null,0,1625]
[null,null,null,null,null,null,0,1626]
[null,null,null,null,null,null,0,1627]
[null,null,null,null,null,null,0,1628]
[null,null,null,null,null,null,0,1629]
[null,null,null,null,null,null,0,1630]
[null,null,null,null,null,null,0,1631]
[null,null,null,null,null,null,0,1632]
[null,null,null,null,null,null,0,1633]
[null,null,null,null,null,null,0,1634]
[null,null,null,null,null,null,0,1635]
[null,null,null,null,null,null,0,1636]
[null,null,null,null,null,null,0,1637]
[null,null,null,null,null,null,0,1638]
[null,null,null,null,null,null,0,1639]
[null,null,null,null,null,null,0,1640]
[null,null,null,null,null,null,0,1641]
[null,null,null,null,null,null,0,1642]
[null,null,null,null,null,null,0,1643]
[null,null,null,null,null,null,0,1644]
[null,null,null,null,null,null,0,1645]
[null,null,null,null,null,null,0,1646]
[null,null,null,null,null,null,0,1647]
[null,null,null,null,null,null,0,1648]
[null,null,null,null,null,null,0,1649]
[null,null,null,null,null,null,0,1650]
[null,null,null,null,null,null,0,1651]
[null,null,null,null,null,null,0,1652]
[null,null,null,null,null,null,0,1653]
[null,null,null,null,null,null,0,1654]
[null,null,null,null,null,null,0,1655]
[null,null,null,null,null,null,0,1656]
[null,null,null,null,null,null,0,1657]
[null,null,null,null,null,null,0,1658]
[null,null,null,null,null,null,0,1659]
[null,null,null,null,null,null,0,1660]
[null,null,null,null,null,null,0,1661]
[null,null,null,null,null,null,0,1662]
[null,null,null,null,null,null,0,1663]
[null,null,null,null,null,null,0,1664]
[null,null,null,null,null,null,{"$f":"IF((OR(COUNTIF(A:A,H3674)>0,(AND($B$3>0,$C$3>0,H3674>=$B$3,H3674<=$C$3))))=TRUE,H3674,0)","v":0},1665]
[null,null,null,null,null,null,0,1666]
[null,null,null,null,null,null,0,1667]
[null,null,null,null,null,null,0,1668]
[null,null,null,null,null,null,0,1669]
[null,null,null,null,null,null,0,1670]
[null,null,null,null,null,null,0,1671]
[null,null,null,null,null,null,0,1672]
[null,null,null,null,null,null,0,1673]
[null,null,null,null,null,null,0,1674]
[null,null,null,null,null,null,0,1675]
[null,null,null,null,null,null,0,1676]
[null,null,null,null,null,null,0,1677]
[null,null,null,null,null,null,0,1678]
[null,null,null,null,null,null,0,1679]
[null,null,null,null,null,null,0,1680]
[null,null,null,null,null,null,0,1681]
[null,null,null,null,null,null,0,1682]
[null,null,null,null,null,null,0,1683]
[null,null,null,null,null,null,0,1684]
[null,null,null,null,null,null,0,1685]
[null,null,null,null,null,null,0,1686]
[null,null,null,null,null,null,0,1687]
[null,null,null,null,null,null,0,1688]
[null,null,null,null,null,null,0,1689]
[null,null,null,null,null,null,0,1690]
[null,null,null,null,null,null,0,1691]
[null,null,null,null,null,null,0,1692]
[null,null,null,null,null,null,0,1693]
[null,null,null,null,null,null,0,1694]
[null,null,null,null,null,null,0,1695]
[null,null,null,null,null,null,0,1696]
[null,null,null,null,null,null,0,1697]
[null,null,null,null,null,null,0,1698]
[null,null,null,null,null,null,0,1699]
[null,null,null,null,null,null,0,1700]
[null,null,null,null,null,null,0,1701]
[null,null,null,null,null,null,0,1702]
[null,null,null,null,null,null,0,1703]
[null,null,null,null,null,null,0,1704]
[null,null,null,null,null,null,0,1705]
[null,null,null,null,null,null,0,1706]
[null,null,null,null,null,null,0,1707]
[null,null,null,null,null,null,0,1708]
[null,null,null,null,null,null,0,1709]
[null,null,null,null,null,null,0,1710]
[null,null,null,null,null,null,0,1711]
[null,null,null,null,null,null,0,1712]
[null,null,null,null,null,null,0,1713]
[null,null,null,null,null,null,0,1714]
[null,null,null,null,null,null,0,1715]
[null,null,null,null,null,null,0,1716]
[null,null,null,null,null,null,0,1717]
[null,null,null,null,null,null,0,1718]
[null,null,null,null,null,null,0,1719]
[null,null,null,null,null,null,0,1720]
[null,null,null,null,null,null,0,1721]
[null,null,null,null,null,null,0,1722]
[null,null,null,null,null,null,0,1723]
[null,null,null,null,null,null,0,1724]
[null,null,null,null,null,null,0,1725]
[null,null,null,null,null,null,0,1726]
[null,null,null,null,null,null,0,1727]
[null,null,null,null,null,null,0,1728]
[null,null,null,null,null,null,{"$f":"IF((OR(COUNTIF(A:A,H3738)>0,(AND($B$3>0,$C$3>0,H3738>=$B$3,H3738<=$C$3))))=TRUE,H3738,0)","v":0},1729]
[null,null,null,null,null,null,0,1730]
[null,null,null,null,null,null,0,1731]
[null,null,null,null,null,null,0,1732]
[null,null,null,null,null,null,0,1733]
[null,null,null,null,null,null,0,1734]
[null,null,null,null,null,null,0,1735]
[null,null,null,null,null,null,0,1736]
[null,null,null,null,null,null,0,1737]
[null,null,null,null,null,null,0,1738]
[null,null,null,null,null,null,0,1739]
[null,null,null,null,null,null,0,1740]
[null,null,null,null,null,null,0,1741]
[null,null,null,null,null,null,0,1742]
[null,null,null,null,null,null,0,1743]
[null,null,null,null,null,null,0,1744]
[null,null,null,null,null,null,0,1745]
[null,null,null,null,null,null,0,1746]
[null,null,null,null,null,null,0,1747]
[null,null,null,null,null,null,0,1748]
[null,null,null,null,null,null,0,1749]
[null,null,null,null,null,null,0,1750]
[null,null,null,null,null,null,0,1751]
[null,null,null,null,null,null,0,1752]
[null,null,null,null,null,null,0,1753]
[null,null,null,null,null,null,0,1754]
[null,null,null,null,null,null,0,1755]
[null,null,null,null,null,null,0,1756]
[null,null,null,null,null,null,0,1757]
[null,null,null,null,null,null,0,1758]
[null,null,null,null,null,null,0,1759]
[null,null,null,null,null,null,0,1760]
[null,null,null,null,null,null,0,1761]
[null,null,null,null,null,null,0,1762]
[null,null,null,null,null,null,0,1763]
[null,null,null,null,null,null,0,1764]
[null,null,null,null,null,null,0,1765]
[null,null,null,null,null,null,0,1766]
[null,null,null,null,null,null,0,1767]
[null,null,null,null,null,null,0,1768]
[null,null,null,null,null,null,0,1769]
[null,null,null,null,null,null,0,1770]
[null,null,null,null,null,null,0,1771]
[null,null,null,null,null,null,0,1772]
[null,null,null,null,null,null,0,1773]
[null,null,null,null,null,null,0,1774]
[null,null,null,null,null,null,0,1775]
[null,null,null,null,null,null,0,1776]
[null,null,null,null,null,null,0,1777]
[null,null,null,null,null,null,0,1778]
[null,null,null,null,null,null,0,1779]
[null,null,null,null,null,null,0,1780]
[null,null,null,null,null,null,0,1781]
[null,null,null,null,null,null,0,1782]
[null,null,null,null,null,null,0,1783]
[null,null,null,null,null,null,0,1784]
[null,null,null,null,null,null,0,1785]
[null,null,null,null,null,null,0,1786]
[null,null,null,null,null,null,0,1787]
[null,null,null,null,null,null,0,1788]
[null,null,null,null,null,null,0,1789]
[null,null,null,null,null,null,0,1790]
[null,null,null,null,null,null,0,1791]
[null,null,null,null,null,null,0,1792]
[null,null,null,null,null,null,{"$f":"IF((OR(COUNTIF(A:A,H3802)>0,(AND($B$3>0,$C$3>0,H3802>=$B$3,H3802<=$C$3))))=TRUE,H3802,0)","v":0},1793]
[null,null,null,null,null,null,0,1794]
[null,null,null,null,null,null,0,1795]
[null,null,null,null,null,null,0,1796]
[null,null,null,null,null,null,0,1797]
[null,null,null,null,null,null,0,1798]
[null,null,null,null,null,null,0,1799]
[null,null,null,null,null,null,0,1800]
[null,null,null,null,null,null,0,1801]
[null,null,null,null,null,null,0,1802]
[null,null,null,null,null,null,0,1803]
[null,null,null,null,null,null,0,1804]
[null,null,null,null,null,null,0,1805]
[null,null,null,null,null,null,0,1806]
[null,null,null,null,null,null,0,1807]
[null,null,null,null,null,null,0,1808]
[null,null,null,null,null,null,0,1809]
[null,null,null,null,null,null,0,1810]
[null,null,null,null,null,null,0,1811]
[null,null,null,null,null,null,0,1812]
[null,null,null,null,null,null,0,1813]
[null,null,null,null,null,null,0,1814]
[null,null,null,null,null,null,0,1815]
[null,null,null,null,null,null,0,1816]
[null,null,null,null,null,null,0,1817]
[null,null,null,null,null,null,0,1818]
[null,null,null,null,null,null,0,1819]
[null,null,null,null,null,null,0,1820]
[null,null,null,null,null,null,0,1821]
[null,null,null,null,null,null,0,1822]
[null,null,null,null,null,null,0,1823]
[null,null,null,null,null,null,0,1824]
[null,null,null,null,null,null,0,1825]
[null,null,null,null,null,null,0,1826]
[null,null,null,null,null,null,0,1827]
[null,null,null,null,null,null,0,1828]
[null,null,null,null,null,null,0,1829]
[null,null,null,null,null,null,0,1830]
[null,null,null,null,null,null,0,1831]
[null,null,null,null,null,null,0,1832]
[null,null,null,null,null,null,0,1833]
[null,null,null,null,null,null,0,1834]
[null,null,null,null,null,null,0,1835]
[null,null,null,null,null,null,0,1836]
[null,null,null,null,null,null,0,1837]
[null,null,null,null,null,null,0,1838]
[null,null,null,null,null,null,0,1839]
[null,null,null,null,null,null,0,1840]
[null,null,null,null,null,null,0,1841]
[null,null,null,null,null,null,0,1842]
[null,null,null,null,null,null,0,1843]
[null,null,null,null,null,null,0,1844]
[null,null,null,null,null,null,0,1845]
[null,null,null,null,null,null,0,1846]
[null,null,null,null,null,null,0,1847]
[null,null,null,null,null,null,0,1848]
[null,null,null,null,null,null,0,1849]
[null,null,null,null,null,null,0,1850]
[null,null,null,null,null,null,0,1851]
[null,null,null,null,null,null,0,1852]
[null,null,null,null,null,null,0,1853]
[null,null,null,null,null,null,0,1854]
[null,null,null,null,null,null,0,1855]
[null,null,null,null,null,null,0,1856]
[null,null,null,null,null,null,{"$f":"IF((OR(COUNTIF(A:A,H3866)>0,(AND($B$3>0,$C$3>0,H3866>=$B$3,H3866<=$C$3))))=TRUE,H3866,0)","v":0},1857]
[null,null,null,null,null,null,0,1858]
[null,null,null,null,null,null,0,1859]
[null,null,null,null,null,null,0,1860]
[null,null,null,null,null,null,0,1861]
[null,null,null,null,null,null,0,1862]
[null,null,null,null,null,null,0,1863]
[null,null,null,null,null,null,0,1864]
[null,null,null,null,null,null,0,1865]
[null,null,null,null,null,null,0,1866]
[null,null,null,null,null,null,0,1867]
[null,null,null,null,null,null,0,1868]
[null,null,null,null,null,null,0,1869]
[null,null,null,null,null,null,0,1870]
[null,null,null,null,null,null,0,1871]
[null,null,null,null,null,null,0,1872]
[null,null,null,null,null,null,0,1873]
[null,null,null,null,null,null,0,1874]
[null,null,null,null,null,null,0,1875]
[null,null,null,null,null,null,0,1876]
[null,null,null,null,null,null,0,1877]
[null,null,null,null,null,null,0,1878]
[null,null,null,null,null,null,0,1879]
[null,null,null,null,null,null,0,1880]
[null,null,null,null,null,null,0,1881]
[null,null,null,null,null,null,0,1882]
[null,null,null,null,null,null,0,1883]
[null,null,null,null,null,null,0,1884]
[null,null,null,null,null,null,0,1885]
[null,null,null,null,null,null,0,1886]
[null,null,null,null,null,null,0,1887]
[null,null,null,null,null,null,0,1888]
[null,null,null,null,null,null,0,1889]
[null,null,null,null,null,null,0,1890]
[null,null,null,null,null,null,0,1891]
[null,null,null,null,null,null,0,1892]
[null,null,null,null,null,null,0,1893]
[null,null,null,null,null,null,0,1894]
[null,null,null,null,null,null,0,1895]
[null,null,null,null,null,null,0,1896]
[null,null,null,null,null,null,0,1897]
[null,null,null,null,null,null,0,1898]
[null,null,null,null,null,null,0,1899]
[null,null,null,null,null,null,0,1900]
[null,null,null,null,null,null,0,1901]
[null,null,null,null,null,null,0,1902]
[null,null,null,null,null,null,0,1903]
[null,null,null,null,null,null,0,1904]
[null,null,null,null,null,null,0,1905]
[null,null,null,null,null,null,0,1906]
[null,null,null,null,null,null,0,1907]
[null,null,null,null,null,null,0,1908]
[null,null,null,null,null,null,0,1909]
[null,null,null,null,null,null,0,1910]
[null,null,null,null,null,null,0,1911]
[null,null,null,null,null,null,0,1912]
[null,null,null,null,null,null,0,1913]
[null,null,null,null,null,null,0,1914]
[null,null,null,null,null,null,0,1915]
[null,null,null,null,null,null,0,1916]
[null,null,null,null,null,null,0,1917]
[null,null,null,null,null,null,0,1918]
[null,null,null,null,null,null,0,1919]
[null,null,null,null,null,null,0,1920]
[null,null,null,null,null,null,{"$f":"IF((OR(COUNTIF(A:A,H3930)>0,(AND($B$3>0,$C$3>0,H3930>=$B$3,H3930<=$C$3))))=TRUE,H3930,0)","v":0},1921]
[null,null,null,null,null,null,0,1922]
[null,null,null,null,null,null,0,1923]
[null,null,null,null,null,null,0,1924]
[null,null,null,null,null,null,0,1925]
[null,null,null,null,null,null,0,1926]
[null,null,null,null,null,null,0,1927]
[null,null,null,null,null,null,0,1928]
[null,null,null,null,null,null,0,1929]
[null,null,null,null,null,null,0,1930]
[null,null,null,null,null,null,0,1931]
[null,null,null,null,null,null,0,1932]
[null,null,null,null,null,null,0,1933]
[null,null,null,null,null,null,0,1934]
[null,null,null,null,null,null,0,1935]
[null,null,null,null,null,null,0,1936]
[null,null,null,null,null,null,0,1937]
[null,null,null,null,null,null,0,1938]
[null,null,null,null,null,null,0,1939]
[null,null,null,null,null,null,0,1940]
[null,null,null,null,null,null,0,1941]
[null,null,null,null,null,null,0,1942]
[null,null,null,null,null,null,0,1943]
[null,null,null,null,null,null,0,1944]
[null,null,null,null,null,null,0,1945]
[null,null,null,null,null,null,0,1946]
[null,null,null,null,null,null,0,1947]
[null,null,null,null,null,null,0,1948]
[null,null,null,null,null,null,0,1949]
[null,null,null,null,null,null,0,1950]
[null,null,null,null,null,null,0,1951]
[null,null,null,null,null,null,0,1952]
[null,null,null,null,null,null,0,1953]
[null,null,null,null,null,null,0,1954]
[null,null,null,null,null,null,0,1955]
[null,null,null,null,null,null,0,1956]
[null,null,null,null,null,null,0,1957]
[null,null,null,null,null,null,0,1958]
[null,null,null,null,null,null,0,1959]
[null,null,null,null,null,null,0,1960]
[null,null,null,null,null,null,0,1961]
[null,null,null,null,null,null,0,1962]
[null,null,null,null,null,null,0,1963]
[null,null,null,null,null,null,0,1964]
[null,null,null,null,null,null,0,1965]
[null,null,null,null,null,null,0,1966]
[null,null,null,null,null,null,0,1967]
[null,null,null,null,null,null,0,1968]
[null,null,null,null,null,null,0,1969]
[null,null,null,null,null,null,0,1970]
[null,null,null,null,null,null,0,1971]
[null,null,null,null,null,null,0,1972]
[null,null,null,null,null,null,0,1973]
[null,null,null,null,null,null,0,1974]
[null,null,null,null,null,null,0,1975]
[null,null,null,null,null,null,0,1976]
[null,null,null,null,null,null,0,1977]
[null,null,null,null,null,null,0,1978]
[null,null,null,null,null,null,0,1979]
[null,null,null,null,null,null,0,1980]
[null,null,null,null,null,null,0,1981]
[null,null,null,null,null,null,0,1982]
[null,null,null,null,null,null,0,1983]
[null,null,null,null,null,null,0,1984]
[null,null,null,null,null,null,{"$f":"IF((OR(COUNTIF(A:A,H3994)>0,(AND($B$3>0,$C$3>0,H3994>=$B$3,H3994<=$C$3))))=TRUE,H3994,0)","v":0},1985]
[null,null,null,null,null,null,0,1986]
[null,null,null,null,null,null,0,1987]
[null,null,null,null,null,null,0,1988]
[null,null,null,null,null,null,0,1989]
[null,null,null,null,null,null,0,1990]
[null,null,null,null,null,null,0,1991]
[null,null,null,null,null,null,0,1992]
[null,null,null,null,null,null,0,1993]
[null,null,null,null,null,null,0,1994]
[null,null,null,null,null,null,0,1995]
[null,null,null,null,null,null,0,1996]
[null,null,null,null,null,null,0,1997]
[null,null,null,null,null,null,0,1998]
[null,null,null,null,null,null,0,1999]
[null,null,null,null,null,null,0,2000]